Workbook

Sheet 1. Information Sheet
U1: a | AA1: =IF(OR(F16="", F16="(if applicable)"), F14, F14 & " - " & F16) -> Erie Thames Powerlines Corporation
M12: Version | N12: 1.1
E14: Utility Name | F14: Erie Thames Powerlines Corporation
E16: Service Territory
E18: Assigned EB Number | F18: EB-2014-0070
E20: Name of Contact and Title | F20: Graig Pettit, Manager of Finance and Regulatory Affairs
E22: Phone Number | F22: 519-485-1820 ext 254
E24: Email Address | F24: gpettit@eriethamespower.com
E26: We are applying for rates effective | F26: 2015-05-01
E28: Rate-Setting Method | F28: Price Cap IR
A30: Please indicate in which Rate Year the Group 1 accounts were last cleared1 | F30: 2014
A32: Please indicate the last Cost of Service Re-Basing Year | F32: 2012
B35: Notes
C37: Pale green cells represent input cells.
C39: Pale blue cells represent drop-down lists. The applicant should select the appropriate item from the drop-down list.
C41: White cells contain fixed values, automatically generated values or formulae.
A44: Note: 1. Rate year of application

Sheet 2. Related Links
A13: ● | B13: Ontario Energy Board's 2015 Electricity Distribution Rates Webpage
A15: ● | B15: An updated version of Chapter 3 of the Filing Requirements for Electricity Distribution Rate Applications for 2015 rates.

Sheet 3. Rate Class Selection
A12: Select the appropriate rate classes as they appear on your most recent Board-Approved Tariff of Rates and Charges, including the MicroFit Class.
A14: How many classes are on your most recent Board-Approved Tariff of Rates and Charges? | J14: 10
A16: Select Your Rate Classes from the Blue Cells below. Please ensure that a rate class is assigned to each shaded cell.
B18: Rate Class Classification | Q18: # of duplicates
A19: 1 | B19: RESIDENTIAL | P19: =COUNTIF($B$19:$J$40, B19) -> 1 | Q19: =COUNTIF(P19:P40, 2)/2 -> 0
A20: 2 | B20: GENERAL SERVICE LESS THAN 50 KW | P20: =COUNTIF($B$19:$J$40, B20) -> 1
A21: 3 | B21: GENERAL SERVICE 50 TO 999 KW | P21: 1
A22: 4 | B22: GENERAL SERVICE 1,000 TO 4,999 KW | P22: 1
A23: 5 | B23: LARGE USE | P23: 1
A24: 6 | B24: STREET LIGHTING | P24: 1
A25: 7 | B25: SENTINEL LIGHTING | P25: 1
A26: 8 | B26: UNMETERED SCATTERED LOAD | P26: 1
A27: 9 | B27: EMBEDDED DISTRIBUTOR | P27: 1
A28: 10 | B28: microFIT | P28: 1
P29: 0
P30: 0
P31: 0
P32: 0
P33: 0

Sheet 4. Current Tariff Schedule
Z1: 3 | AA1: January | AB1: ≥
AA2: February
AA3: March
AA4: April
AA5: May
AA6: June
AA7: July
AA8: August
AA9: September
AA10: October
AA11: November
B12: For each class, Applicants are required to copy and paste the class descriptions (located directly under the class name) and the description of the applicability of those rates (description is found under the class name and directly under the word "APPLICATION"). By using the drop-down lists located under the column labeled "Rate Description", please select the descriptions of the rates and charges that BEST MATCHES the descriptions on your most recent Board-Approved Tariff of Rates and Charges. If the description is not found in the drop-down list, please enter the description in the green cells under the correct class exactly as it appears on the tariff. Please do not enter more than one "Service Charge" for each class for which a base monthly fixed charge applies. | AA12: December
B21: =IF(ISBLANK('1. Information Sheet'!F14), "Please Choose Distributor Name on Sheet 1", '1. Information Sheet'!F14) -> Erie Thames Powerlines Corporation
B22: TARIFF OF RATES AND CHARGES
A24: RESIDENTIAL | B24: RESIDENTIAL Service Classification
A25: RESIDENTIAL
A26: RESIDENTIAL | B26: This classification refers to the supply of electrical energy to customers residing in residential dwelling units. Further servicing details are available in the distributor's Conditions of Service.
A27: RESIDENTIAL
A28: RESIDENTIAL
A29: RESIDENTIAL
A30: RESIDENTIAL
A31: RESIDENTIAL
A32: RESIDENTIAL | B32: APPLICATION
A33: RESIDENTIAL
A34: RESIDENTIAL | B34: The application of these rates and charges shall be in accordance with the Licence of the Distributor and any Code or Order of the Board, and amendments thereto as approved by the Board, which may be applicable to the administration of this schedule.
A35: RESIDENTIAL
A36: RESIDENTIAL
A37: RESIDENTIAL | B37: No rates and charges for the distribution of electricity and charges to meet the costs of any work or service done or furnished for the purpose of the distribution of electricity shall be made except as permitted by this schedule unless required by the Distributors's Licence or a Code or Order of the Board, and amendments thereto as approved by the Board, or as specified herein.
A38: RESIDENTIAL
A39: RESIDENTIAL
A40: RESIDENTIAL
A41: RESIDENTIAL | B41: Unless specifically noted, this schedule does not contain any charges for the electricity commodity, be it under the Regulated Price Plan, a contract with a retailer or the wholesale market price, as applicable. In addition, the charges in the MONTHLY RATES AND CHARGES -- Regulatory Component of this schedule do not apply to a customer that is an embedded wholesale market participant.
A42: RESIDENTIAL
A43: RESIDENTIAL
A44: RESIDENTIAL | B44: It should be noted that this schedule does not list any charges, assessments or credits that are required by law to be invoiced by a distributor and that are not subject to Board approval, such as the Debt Retirement Charge, the Global Adjustment, the Ontario Clean Energy Benefit and the HST.
A45: RESIDENTIAL
A46: RESIDENTIAL
A47: RESIDENTIAL
A48: RESIDENTIAL | B48: MONTHLY RATES AND CHARGES - Delivery Component (If applicable, Effective Date MUST be included in rate description)
A49: RESIDENTIAL | B49: Service Charge | H49: $ | I49: 15.44 | K49: 1_C_MSC
A50: RESIDENTIAL | B50: Rate Rider for Disposition of Residual Historical Smart Meter Costs – effective until December 31, 2014 | H50: $ | I50: 0.23 | K50: 1_C_MSC_Rate_Rider_1 | L50: 2014-12-31
A51: RESIDENTIAL | B51: Rate Rider for Recovery of Stranded Meter Assets – effective until December 31, 2014 | H51: $ | I51: 1.36 | K51: 1_C_MSC_Rate_Rider_2 | L51: 2014-12-31
A52: RESIDENTIAL | B52: Distribution Volumetric Rate | H52: $/kWh | I52: 0.018 | K52: 1_C_VC_1
A53: RESIDENTIAL | B53: Low Voltage Volumetric Rate | H53: $/kWh | I53: 0.0021 | K53: 1_C_LVrate
A54: RESIDENTIAL | B54: Rate Rider for Recovery of Lost Revenue Adjustment Mechanism (LRAM)/Shared Savings Mechanism (SSM) - effective until December 31, 2014 and applicable in the service area excluding the former service areas of Clinton Power and West Perth Power | H54: $/kWh | I54: 0.0004 | K54: 1_C_VC_Rate_Rider_kWh_1 | L54: 2014-12-31
A55: RESIDENTIAL | B55: Rate Rider for Recovery of Lost Revenue Adjustment Mechanism (LRAM)/Shared Savings Mechanism (SSM) - effective until December 31, 2014 and applicable only in the former service area of Clinton Power | H55: $/kWh | I55: 0.0006 | K55: 1_C_VC_Rate_Rider_kWh_2 | L55: 2014-12-31
A56: RESIDENTIAL | B56: Rate Rider for Recovery of Lost Revenue Adjustment Mechanism (LRAM)/Shared Savings Mechanism (SSM) - effective until December 31, 2014 and applicable only in the former service area of West Perth Power | H56: $/kWh | I56: 0.0005 | K56: 1_C_VC_Rate_Rider_kWh_3 | L56: 2014-12-31
A57: RESIDENTIAL
A58: RESIDENTIAL | B58: Rate Rider for Disposition of Deferral/Variance Accounts (2012) – effective until December 31, 2016 Applicable only in the former service area of Clinton Power | H58: $/kWh | I58: 0.0073 | K58: 1_C_VC_DEFVAR_kWh_1 | L58: 2016-12-31
A59: RESIDENTIAL | B59: Retail Transmission Rate - Network Service Rate | H59: $/kWh | I59: 0.0064 | K59: 1_C_RTSR_Network
A60: RESIDENTIAL | B60: Retail Transmission Rate - Line and Transformation Connection Service Rate | H60: $/kWh | I60: 0.0049 | K60: 1_C_RTSR_Connection
A61: RESIDENTIAL | B61: Rate Rider for Smart Metering Entity Charge - effective until October 31, 2018 | H61: $ | I61: 0.79 | K61: 1_C_SMEC | L61: 2018-10-31
A62: RESIDENTIAL
A63: RESIDENTIAL
A64: RESIDENTIAL
A65: RESIDENTIAL
A66: RESIDENTIAL
A67: RESIDENTIAL
A68: RESIDENTIAL
A69: RESIDENTIAL
A70: RESIDENTIAL
A71: RESIDENTIAL
A72: RESIDENTIAL
A73: RESIDENTIAL
A74: RESIDENTIAL
A75: RESIDENTIAL | B75: Rate Rider for the Disposition of Deferred PILs Variance account 1562 effective until April 30 2015 applicable in the service area excluding the former service areas of Clinton Power and West Perth Power | H75: $/kWh | I75: -0.0016 | K75: 1_C_VC_DEFVAR_kWh_2 | L75: 2015-04-30
A76: RESIDENTIAL | B76: Rate Rider for Global Adjustment Account (2014) effective until April 30, 2016 Applicable only for Non-RPP Customers | H76: $/kWh | I76: 0.0015 | K76: 1_C_VC_GA_Rate_Rider_kWh_1 | L76: 2016-04-30
A77: RESIDENTIAL | B77: Rate Rider for Deferral/Variance Account Disposition (2014) effective until April 30, 2016 | H77: $/kWh | I77: -0.0037 | K77: 1_C_VC_DEFVAR_kWh_3 | L77: 2016-04-30
A78: RESIDENTIAL
A79: RESIDENTIAL | B79: MONTHLY RATES AND CHARGES - Regulatory Component
A80: RESIDENTIAL
A81: RESIDENTIAL | B81: Wholesale Market Service Rate | H81: $/kWh | I81: 0.0044 | K81: 1_C_WMSR
A82: RESIDENTIAL | B82: Rural or Remote Electricity Rate Protection Charge (RRRP) | H82: $/kWh | I82: 0.0013 | K82: 1_C_RRPC
A83: RESIDENTIAL | B83: Standard Supply Service - Administrative Charge (if applicable) | H83: $ | I83: 0.25 | K83: 1_C_SSS
A84: RESIDENTIAL
A87: GENERAL SERVICE LESS THAN 50 KW | B87: GENERAL SERVICE LESS THAN 50 KW Service Classification
A88: GENERAL SERVICE LESS THAN 50 KW
A89: GENERAL SERVICE LESS THAN 50 KW | B89: This classification refers to the supply of electrical energy to General Service buildings requiring a connection with a connected load less than 50 kW, and, Town Houses and Condominiums described in section 3.1.9 of the Distributor's Conditions of Service that require centralized bulk metering. General Service buildings are defined as buildins that are used for purposes other than single family dwellings. Further servicing details are available in the distributor's Conditions of Service.
A90: GENERAL SERVICE LESS THAN 50 KW
A91: GENERAL SERVICE LESS THAN 50 KW
A92: GENERAL SERVICE LESS THAN 50 KW
A93: GENERAL SERVICE LESS THAN 50 KW
A94: GENERAL SERVICE LESS THAN 50 KW
A95: GENERAL SERVICE LESS THAN 50 KW | B95: APPLICATION
A96: GENERAL SERVICE LESS THAN 50 KW
A97: GENERAL SERVICE LESS THAN 50 KW | B97: The application of these rates and charges shall be in accordance with the Licence of the Distributor and any Code or Order of the Board, and amendments thereto as approved by the Board, which may be applicable to the administration of this schedule.
A98: GENERAL SERVICE LESS THAN 50 KW
A99: GENERAL SERVICE LESS THAN 50 KW
A100: GENERAL SERVICE LESS THAN 50 KW | B100: No rates and charges for the distribution of electricity and charges to meet the costs of any work or service done or furnished for the purpose of the distribution of electricity shall be made except as permitted by this schedule unless required by the Distributors's Licence or a Code or Order of the Board, and amendments thereto as approved by the Board, or as specified herein.
A101: GENERAL SERVICE LESS THAN 50 KW
A102: GENERAL SERVICE LESS THAN 50 KW
A103: GENERAL SERVICE LESS THAN 50 KW
A104: GENERAL SERVICE LESS THAN 50 KW | B104: Unless specifically noted, this schedule does not contain any charges for the electricity commodity, be it under the Regulated Price Plan, a contract with a retailer or the wholesale market price, as applicable. In addition, the charges in the MONTHLY RATES AND CHARGES -- Regulatory Component of this schedule do not apply to a customer that is an embedded wholesale market participant.
A105: GENERAL SERVICE LESS THAN 50 KW
A106: GENERAL SERVICE LESS THAN 50 KW
A107: GENERAL SERVICE LESS THAN 50 KW | B107: It should be noted that this schedule does not list any charges, assessments or credits that are required by law to be invoiced by a distributor and that are not subject to Board approval, such as the Debt Retirement Charge, the Global Adjustment, the Ontario Clean Energy Benefit and the HST.
A108: GENERAL SERVICE LESS THAN 50 KW
A109: GENERAL SERVICE LESS THAN 50 KW
A110: GENERAL SERVICE LESS THAN 50 KW
A111: GENERAL SERVICE LESS THAN 50 KW | B111: MONTHLY RATES AND CHARGES - Delivery Component (If applicable, Effective Date MUST be included in rate description)
A112: GENERAL SERVICE LESS THAN 50 KW | B112: Service Charge | H112: $ | I112: 21.27 | K112: 2_C_MSC
A113: GENERAL SERVICE LESS THAN 50 KW | B113: Rate Rider for Disposition of Residual Historical Smart Meter Costs – effective until December 31, 2014 | H113: $ | I113: 0.66 | K113: 2_C_MSC_Rate_Rider_1 | L113: 2014-12-31
A114: GENERAL SERVICE LESS THAN 50 KW | B114: Rate Rider for Recovery of Stranded Meter Assets – effective until December 31, 2014 | H114: $ | I114: 1.7 | K114: 2_C_MSC_Rate_Rider_2 | L114: 2014-12-31
A115: GENERAL SERVICE LESS THAN 50 KW | B115: Distribution Volumetric Rate | H115: $/kWh | I115: 0.0138 | K115: 2_C_VC_1
A116: GENERAL SERVICE LESS THAN 50 KW | B116: Low Voltage Volumetric Rate | H116: $/kWh | I116: 0.002 | K116: 2_C_LVrate
A117: GENERAL SERVICE LESS THAN 50 KW | B117: Rate Rider for Recovery of Lost Revenue Adjustment Mechanism (LRAM)/Shared Savings Mechanism (SSM) - effective until December 31, 2014 and applicable in the service area excluding the former service areas of Clinton Power and West Perth Power | H117: $/kWh | I117: 0.0005 | K117: 2_C_VC_Rate_Rider_kWh_1 | L117: 2014-12-31
A118: GENERAL SERVICE LESS THAN 50 KW | B118: Rate Rider for Recovery of Lost Revenue Adjustment Mechanism (LRAM)/Shared Savings Mechanism (SSM) - effective until December 31, 2014 and applicable only in the former service area of Clinton Power | H118: $/kWh | I118: 0.0004 | K118: 2_C_VC_Rate_Rider_kWh_2 | L118: 2014-12-31
A119: GENERAL SERVICE LESS THAN 50 KW | B119: Rate Rider for Recovery of Lost Revenue Adjustment Mechanism (LRAM)/Shared Savings Mechanism (SSM) - effective until December 31, 2014 and applicable only in the former service area of West Perth Power | H119: $/kWh | I119: 0.0003 | K119: 2_C_VC_Rate_Rider_kWh_3 | L119: 2014-12-31
A120: GENERAL SERVICE LESS THAN 50 KW
A121: GENERAL SERVICE LESS THAN 50 KW | B121: Rate Rider for Disposition of Deferral/Variance Accounts (2012) – effective until December 31, 2016 Applicable only in the former service area of Clinton Power | H121: $/kWh | I121: 0.0073 | K121: 2_C_VC_DEFVAR_kWh_1 | L121: 2016-12-31
A122: GENERAL SERVICE LESS THAN 50 KW | B122: Retail Transmission Rate - Network Service Rate | H122: $/kWh | I122: 0.0059 | K122: 2_C_RTSR_Network
A123: GENERAL SERVICE LESS THAN 50 KW | B123: Retail Transmission Rate - Line and Transformation Connection Service Rate | H123: $/kWh | I123: 0.0045 | K123: 2_C_RTSR_Connection
A124: GENERAL SERVICE LESS THAN 50 KW | B124: Rate Rider for Smart Metering Entity Charge - effective until October 31, 2018 | H124: $ | I124: 0.79 | K124: 2_C_SMEC | L124: 2018-10-31
A125: GENERAL SERVICE LESS THAN 50 KW
A126: GENERAL SERVICE LESS THAN 50 KW
A127: GENERAL SERVICE LESS THAN 50 KW
A128: GENERAL SERVICE LESS THAN 50 KW
A129: GENERAL SERVICE LESS THAN 50 KW
A130: GENERAL SERVICE LESS THAN 50 KW
A131: GENERAL SERVICE LESS THAN 50 KW
A132: GENERAL SERVICE LESS THAN 50 KW
A133: GENERAL SERVICE LESS THAN 50 KW
A134: GENERAL SERVICE LESS THAN 50 KW
A135: GENERAL SERVICE LESS THAN 50 KW
A136: GENERAL SERVICE LESS THAN 50 KW
A137: GENERAL SERVICE LESS THAN 50 KW
A138: GENERAL SERVICE LESS THAN 50 KW | B138: Rate Rider for the Disposition of Deferred PILs Variance account 1562 effective until April 30 2015 applicable in the service area excluding the former service areas of Clinton Power and West Perth Power | H138: $/kWh | I138: -0.0016 | K138: 2_C_VC_DEFVAR_kWh_2 | L138: 2015-04-30
A139: GENERAL SERVICE LESS THAN 50 KW | B139: Rate Rider for Global Adjustment Account (2014) effective until April 30, 2016 Applicable only for Non-RPP Customers | H139: $/kWh | I139: 0.0015 | K139: 2_C_VC_GA_Rate_Rider_kWh_1 | L139: 2016-04-30
A140: GENERAL SERVICE LESS THAN 50 KW | B140: Rate Rider for Deferral/Variance Account Disposition (2014) effective until April 30, 2016 | H140: $/kWh | I140: -0.0037 | K140: 2_C_VC_DEFVAR_kWh_3 | L140: 2016-04-30
A141: GENERAL SERVICE LESS THAN 50 KW
A142: GENERAL SERVICE LESS THAN 50 KW | B142: MONTHLY RATES AND CHARGES - Regulatory Component
A143: GENERAL SERVICE LESS THAN 50 KW
A144: GENERAL SERVICE LESS THAN 50 KW | B144: Wholesale Market Service Rate | H144: =H81 -> $/kWh | I144: 0.0044 | K144: 2_C_WMSR
A145: GENERAL SERVICE LESS THAN 50 KW | B145: Rural or Remote Electricity Rate Protection Charge (RRRP) | H145: $/kWh | I145: 0.0013 | K145: 2_C_RRPC
A146: GENERAL SERVICE LESS THAN 50 KW | B146: Standard Supply Service - Administrative Charge (if applicable) | H146: $ | I146: 0.25 | K146: 2_C_SSS
A147: GENERAL SERVICE LESS THAN 50 KW
A150: GENERAL SERVICE 50 TO 999 KW | B150: GENERAL SERVICE 50 TO 999 KW Service Classification
A151: GENERAL SERVICE 50 TO 999 KW
A152: GENERAL SERVICE 50 TO 999 KW | B152: This classification refers to the supply of electrical energy to General Service customers requiring a connection with a connected load, or whose average monthly maximum demand used for biling purposes, is equal to or greater than 50 kW but less than 1000 kW. Further servicing details are available in the distributor's Conditions of Service.
A153: GENERAL SERVICE 50 TO 999 KW
A154: GENERAL SERVICE 50 TO 999 KW
A155: GENERAL SERVICE 50 TO 999 KW
A156: GENERAL SERVICE 50 TO 999 KW
A157: GENERAL SERVICE 50 TO 999 KW
A158: GENERAL SERVICE 50 TO 999 KW | B158: APPLICATION
A159: GENERAL SERVICE 50 TO 999 KW
A160: GENERAL SERVICE 50 TO 999 KW | B160: The application of these rates and charges shall be in accordance with the Licence of the Distributor and any Code or Order of the Board, and amendments thereto as approved by the Board, which may be applicable to the administration of this schedule.
A161: GENERAL SERVICE 50 TO 999 KW
A162: GENERAL SERVICE 50 TO 999 KW
A163: GENERAL SERVICE 50 TO 999 KW | B163: No rates and charges for the distribution of electricity and charges to meet the costs of any work or service done or furnished for the purpose of the distribution of electricity shall be made except as permitted by this schedule unless required by the Distributors's Licence or a Code or Order of the Board, and amendments thereto as approved by the Board, or as specified herein.
A164: GENERAL SERVICE 50 TO 999 KW
A165: GENERAL SERVICE 50 TO 999 KW
A166: GENERAL SERVICE 50 TO 999 KW
A167: GENERAL SERVICE 50 TO 999 KW | B167: Unless specifically noted, this schedule does not contain any charges for the electricity commodity, be it under the Regulated Price Plan, a contract with a retailer or the wholesale market price, as applicable. In addition, the charges in the MONTHLY RATES AND CHARGES -- Regulatory Component of this schedule do not apply to a customer that is an embedded wholesale market participant.
A168: GENERAL SERVICE 50 TO 999 KW
A169: GENERAL SERVICE 50 TO 999 KW
A170: GENERAL SERVICE 50 TO 999 KW | B170: It should be noted that this schedule does not list any charges, assessments or credits that are required by law to be invoiced by a distributor and that are not subject to Board approval, such as the Debt Retirement Charge, the Global Adjustment, the Ontario Clean Energy Benefit and the HST.
A171: GENERAL SERVICE 50 TO 999 KW
A172: GENERAL SERVICE 50 TO 999 KW
A173: GENERAL SERVICE 50 TO 999 KW
A174: GENERAL SERVICE 50 TO 999 KW | B174: MONTHLY RATES AND CHARGES - Delivery Component (If applicable, Effective Date MUST be included in rate description)
A175: GENERAL SERVICE 50 TO 999 KW | B175: Service Charge | H175: $ | I175: 122.08 | K175: 3_C_MSC
A176: GENERAL SERVICE 50 TO 999 KW | B176: Rate Rider for Disposition of Residual Historical Smart Meter Costs – effective until December 31, 2014 | H176: $ | I176: 0.66 | K176: 3_C_MSC_Rate_Rider_1 | L176: 2014-12-31
A177: GENERAL SERVICE 50 TO 999 KW | B177: Rate Rider for Recovery of Stranded Meter Assets – effective until December 31, 2014 | H177: $ | I177: 48.1 | K177: 3_C_MSC_Rate_Rider_2 | L177: 2014-12-31
A178: GENERAL SERVICE 50 TO 999 KW | B178: Distribution Volumetric Rate | H178: $/kW | I178: 2.961 | K178: 3_C_VC_1
A179: GENERAL SERVICE 50 TO 999 KW | B179: Low Voltage Volumetric Rate | H179: $/kW | I179: 0.7099 | K179: 3_C_LVrate
A180: GENERAL SERVICE 50 TO 999 KW | B180: Rate Rider for Recovery of Lost Revenue Adjustment Mechanism (LRAM)/Shared Savings Mechanism (SSM) - effective until December 31, 2014 and applicable in the service area excluding the former service areas of Clinton Power and West Perth Power | H180: $/kW | I180: 0.2647 | K180: 3_C_VC_Rate_Rider_kW_1 | L180: 2014-12-31
A181: GENERAL SERVICE 50 TO 999 KW | B181: Rate Rider for Recovery of Lost Revenue Adjustment Mechanism (LRAM)/Shared Savings Mechanism (SSM) - effective until December 31, 2014 and applicable only in the former service area of Clinton Power | H181: $/kW | I181: 0.3475 | K181: 3_C_VC_Rate_Rider_kW_2 | L181: 2014-12-31
A182: GENERAL SERVICE 50 TO 999 KW | B182: Rate Rider for Recovery of Lost Revenue Adjustment Mechanism (LRAM)/Shared Savings Mechanism (SSM) - effective until December 31, 2014 and applicable only in the former service area of West Perth Power | H182: $/kW | I182: 0.0501 | K182: 3_C_VC_Rate_Rider_kW_3 | L182: 2014-12-31
A183: GENERAL SERVICE 50 TO 999 KW
A184: GENERAL SERVICE 50 TO 999 KW | B184: Rate Rider for Disposition of Deferral/Variance Accounts (2012) – effective until December 31, 2016 Applicable only in the former service area of Clinton Power | H184: $/kW | I184: 2.4601 | K184: 3_C_VC_DEFVAR_kW_1 | L184: 2016-12-31
A185: GENERAL SERVICE 50 TO 999 KW | B185: Retail Transmission Rate - Network Service Rate | H185: $/kW | I185: 2.666 | K185: 3_C_RTSR_Network
A186: GENERAL SERVICE 50 TO 999 KW | B186: Retail Transmission Rate - Line and Transformation Connection Service Rate | H186: $/kW | I186: 1.627 | K186: 3_C_RTSR_Connection
A187: GENERAL SERVICE 50 TO 999 KW
A188: GENERAL SERVICE 50 TO 999 KW
A189: GENERAL SERVICE 50 TO 999 KW
A190: GENERAL SERVICE 50 TO 999 KW
A191: GENERAL SERVICE 50 TO 999 KW
A192: GENERAL SERVICE 50 TO 999 KW
A193: GENERAL SERVICE 50 TO 999 KW
A194: GENERAL SERVICE 50 TO 999 KW
A195: GENERAL SERVICE 50 TO 999 KW
A196: GENERAL SERVICE 50 TO 999 KW
A197: GENERAL SERVICE 50 TO 999 KW
A198: GENERAL SERVICE 50 TO 999 KW
A199: GENERAL SERVICE 50 TO 999 KW
A200: GENERAL SERVICE 50 TO 999 KW
A201: GENERAL SERVICE 50 TO 999 KW | B201: Rate Rider for the Disposition of Deferred PILs Variance account 1562 effective until April 30 2015 applicable in the service area excluding the former service areas of Clinton Power and West Perth Power | H201: $/kW | I201: -1.3376 | K201: 3_C_VC_DEFVAR_kW_2 | L201: 2015-04-30
A202: GENERAL SERVICE 50 TO 999 KW | B202: Rate Rider for Global Adjustment Account (2014) effective until April 30, 2016 Applicable only for Non-RPP Customers | H202: $/kW | I202: 0.5252 | K202: 3_C_VC_GA_Rate_Rider_kW_1 | L202: 2016-04-30
A203: GENERAL SERVICE 50 TO 999 KW | B203: Rate Rider for Deferral/Variance Account Disposition (2014) effective until April 30, 2016 | H203: $/kW | I203: -1.2536 | K203: 3_C_VC_DEFVAR_kW_3 | L203: 2016-04-30
A204: GENERAL SERVICE 50 TO 999 KW
A205: GENERAL SERVICE 50 TO 999 KW | B205: MONTHLY RATES AND CHARGES - Regulatory Component
A206: GENERAL SERVICE 50 TO 999 KW
A207: GENERAL SERVICE 50 TO 999 KW | B207: Wholesale Market Service Rate | H207: =H81 -> $/kWh | I207: 0.0044 | K207: 3_C_WMSR
A208: GENERAL SERVICE 50 TO 999 KW | B208: Rural or Remote Electricity Rate Protection Charge (RRRP) | H208: $/kWh | I208: 0.0013 | K208: 3_C_RRPC
A209: GENERAL SERVICE 50 TO 999 KW | B209: Standard Supply Service - Administrative Charge (if applicable) | H209: $ | I209: 0.25 | K209: 3_C_SSS
A210: GENERAL SERVICE 50 TO 999 KW
A213: GENERAL SERVICE 1,000 TO 4,999 KW | B213: GENERAL SERVICE 1,000 TO 4,999 KW Service Classification
A214: GENERAL SERVICE 1,000 TO 4,999 KW
A215: GENERAL SERVICE 1,000 TO 4,999 KW | B215: This classification refers to the supply of electrical energy to General Service Customers requiring a connection with a connected load or whose average monthly maximum demand used for billng purposes is equal to or greater than 1000 kW but less than 5000 kW. Further servicing details are available in the distributor's Conditions of Service.
... 418 more rows

Sheet 4. Hidden (hidden)
M1: Current Rate Classes | N1: Changed to Rate Classes | O1: Values in A that are NOT in B | P1: Values in B that are Not in A | Q1: Count of A | R1: Count of B
M2: RESIDENTIAL | N2: RESIDENTIAL | Q2: 10 | R2: 10
M3: GENERAL SERVICE LESS THAN 50 KW | N3: GENERAL SERVICE LESS THAN 50 KW
M4: GENERAL SERVICE 50 TO 999 KW | N4: GENERAL SERVICE 50 TO 999 KW
M5: GENERAL SERVICE 1,000 TO 4,999 KW | N5: GENERAL SERVICE 1,000 TO 4,999 KW
M6: LARGE USE | N6: LARGE USE
M7: STREET LIGHTING | N7: STREET LIGHTING
M8: SENTINEL LIGHTING | N8: SENTINEL LIGHTING
M9: UNMETERED SCATTERED LOAD | N9: UNMETERED SCATTERED LOAD
M10: EMBEDDED DISTRIBUTOR | N10: EMBEDDED DISTRIBUTOR
M11: microFIT | N11: microFIT
A24: RESIDENTIAL | B24: RESIDENTIAL Service Classification
A25: RESIDENTIAL
A26: RESIDENTIAL | B26: This classification refers to the supply of electrical energy to customers residing in residential dwelling units. Further servicing details are available in the distributor's Conditions of Service.
A27: RESIDENTIAL
A28: RESIDENTIAL
A29: RESIDENTIAL
A30: RESIDENTIAL
A31: RESIDENTIAL
A32: RESIDENTIAL | B32: APPLICATION
A33: RESIDENTIAL
A34: RESIDENTIAL | B34: The application of these rates and charges shall be in accordance with the Licence of the Distributor and any Code or Order of the Board, and amendments thereto as approved by the Board, which may be applicable to the administration of this schedule.
A35: RESIDENTIAL
A36: RESIDENTIAL
A37: RESIDENTIAL | B37: No rates and charges for the distribution of electricity and charges to meet the costs of any work or service done or furnished for the purpose of the distribution of electricity shall be made except as permitted by this schedule unless required by the Distributors's Licence or a Code or Order of the Board, and amendments thereto as approved by the Board, or as specified herein.
A38: RESIDENTIAL
A39: RESIDENTIAL
A40: RESIDENTIAL
A41: RESIDENTIAL | B41: Unless specifically noted, this schedule does not contain any charges for the electricity commodity, be it under the Regulated Price Plan, a contract with a retailer or the wholesale market price, as applicable. In addition, the charges in the MONTHLY RATES AND CHARGES -- Regulatory Component of this schedule do not apply to a customer that is an embedded wholesale market participant.
A42: RESIDENTIAL
A43: RESIDENTIAL
A44: RESIDENTIAL | B44: It should be noted that this schedule does not list any charges, assessments or credits that are required by law to be invoiced by a distributor and that are not subject to Board approval, such as the Debt Retirement Charge, the Global Adjustment, the Ontario Clean Energy Benefit and the HST.
A45: RESIDENTIAL
A46: RESIDENTIAL
A47: RESIDENTIAL
A48: RESIDENTIAL | B48: MONTHLY RATES AND CHARGES - Delivery Component (If applicable, Effective Date MUST be included in rate description)
A49: RESIDENTIAL | B49: Service Charge (per customer)
A50: RESIDENTIAL | B50: Rate Rider for Disposition of Residual Historical Smart Meter Costs – effective until December 31, 2014
A51: RESIDENTIAL | B51: Rate Rider for Recovery of Stranded Meter Assets – effective until December 31, 2014
A52: RESIDENTIAL | B52: Distribution Volumetric Rate
A53: RESIDENTIAL | B53: Low Voltage Volumetric Rate
A54: RESIDENTIAL | B54: Rate Rider for Recovery of Lost Revenue Adjustment Mechanism (LRAM)/Shared Savings Mechanism (SSM) - effective until December 31, 2014 and applicable in the service area excluding the former service areas of Clinton Power and West Perth Power
A55: RESIDENTIAL | B55: Rate Rider for Recovery of Lost Revenue Adjustment Mechanism (LRAM)/Shared Savings Mechanism (SSM) - effective until December 31, 2014 and applicable only in the former service area of Clinton Power
A56: RESIDENTIAL | B56: Rate Rider for Recovery of Lost Revenue Adjustment Mechanism (LRAM)/Shared Savings Mechanism (SSM) - effective until December 31, 2014 and applicable only in the former service area of West Perth Power
A57: RESIDENTIAL | B57: Rate Rider for Disposition of Global Adjustment Sub-Account (2014) - effective until December 31, 2014. Applicable only for Non-RPP - Class B Customers
A58: RESIDENTIAL | B58: Rate Rider for Disposition of Deferral/Variance Accounts (2012) – effective until December 31, 2016 Applicable only in the former service area of Clinton Power
A59: RESIDENTIAL | B59: Retail Transmission Rate - Network Service Rate
A60: RESIDENTIAL | B60: Retail Transmission Rate - Line and Transformation Connection Service Rate
A61: RESIDENTIAL | B61: Rate Rider for Smart Metering Entity Charge - effective until October 31, 2018
A62: RESIDENTIAL
A63: RESIDENTIAL
A64: RESIDENTIAL
A65: RESIDENTIAL
A66: RESIDENTIAL
A67: RESIDENTIAL
A68: RESIDENTIAL
A69: RESIDENTIAL
A70: RESIDENTIAL
A71: RESIDENTIAL
A72: RESIDENTIAL
A73: RESIDENTIAL | B73: One Time Payment for Deferred PILS Variance Account 1562 Disposition - Effective May 1, 2014 Applicable for each customer or connection in the former service area of Clinton Power
A74: RESIDENTIAL | B74: One Time Payment for Deferred PILS Variance Account 1562 Disposition - Effective May 1, 2014 Applicable for each customer or connection in the former service area of West Perth Power
A75: RESIDENTIAL | B75: Rate Rider for the Disposition of Deferred PILs Variance account 1562 effective until April 30 2015 applicable in the service area excluding the former service areas of Clinton Power and West Perth Power
A76: RESIDENTIAL | B76: Rate Rider for Global Adjustment Sub-Account (2014) effective until April 30 ,2016 Applicable only for Non-RPP Customers
A77: RESIDENTIAL | B77: Rate Rider for Deferral/Variance Account Disposition (2014) effective until April 30, 2016
A78: RESIDENTIAL
A79: RESIDENTIAL | B79: MONTHLY RATES AND CHARGES - Regulatory Component
A80: RESIDENTIAL
A81: RESIDENTIAL | B81: Wholesale Market Service Rate | H81: $/kWh | I81: 0.0044
A82: RESIDENTIAL | B82: Rural or Remote Electricity Rate Protection Charge (RRRP) | H82: $/kWh | I82: 0.0013
A83: RESIDENTIAL | B83: Standard Supply Service - Administrative Charge (if applicable) | H83: $ | I83: 0.25
A84: RESIDENTIAL
A87: STREET LIGHTING | B87: STREET LIGHTING Service Classification
A88: STREET LIGHTING
A89: STREET LIGHTING
A90: STREET LIGHTING
A91: STREET LIGHTING
A92: STREET LIGHTING
A93: STREET LIGHTING
A94: STREET LIGHTING
A95: STREET LIGHTING | B95: APPLICATION
A96: STREET LIGHTING
A97: STREET LIGHTING
A98: STREET LIGHTING
A99: STREET LIGHTING
A100: STREET LIGHTING
A101: STREET LIGHTING
A102: STREET LIGHTING
A103: STREET LIGHTING
A104: STREET LIGHTING
A105: STREET LIGHTING
A106: STREET LIGHTING
A107: STREET LIGHTING
A108: STREET LIGHTING
A109: STREET LIGHTING
A110: STREET LIGHTING
A111: STREET LIGHTING | B111: MONTHLY RATES AND CHARGES - Delivery Component (If applicable, Effective Date MUST be included in rate description)
A112: STREET LIGHTING
A113: STREET LIGHTING
A114: STREET LIGHTING
A115: STREET LIGHTING
A116: STREET LIGHTING
A117: STREET LIGHTING
A118: STREET LIGHTING
A119: STREET LIGHTING
A120: STREET LIGHTING
A121: STREET LIGHTING
A122: STREET LIGHTING
A123: STREET LIGHTING
A124: STREET LIGHTING
A125: STREET LIGHTING
A126: STREET LIGHTING
A127: STREET LIGHTING
A128: STREET LIGHTING
A129: STREET LIGHTING
A130: STREET LIGHTING
A131: STREET LIGHTING
A132: STREET LIGHTING
A133: STREET LIGHTING
A134: STREET LIGHTING
A135: STREET LIGHTING
A136: STREET LIGHTING
A137: STREET LIGHTING
A138: STREET LIGHTING
A139: STREET LIGHTING
A140: STREET LIGHTING
A141: STREET LIGHTING
A142: STREET LIGHTING | B142: MONTHLY RATES AND CHARGES - Regulatory Component
A143: STREET LIGHTING
A144: STREET LIGHTING | B144: Wholesale Market Service Rate | H144: $/kWh | I144: 0.0044
A145: STREET LIGHTING | B145: Rural or Remote Electricity Rate Protection Charge (RRRP) | H145: $/kWh | I145: 0.0013
A146: STREET LIGHTING | B146: Standard Supply Service - Administrative Charge (if applicable) | H146: $ | I146: 0.25
A147: STREET LIGHTING
A150: STANDBY POWER | B150: STANDBY POWER Service Classification
A151: STANDBY POWER
A152: STANDBY POWER
A153: STANDBY POWER
A154: STANDBY POWER
A155: STANDBY POWER
A156: STANDBY POWER
A157: STANDBY POWER
A158: STANDBY POWER | B158: APPLICATION
A159: STANDBY POWER
A160: STANDBY POWER
A161: STANDBY POWER
A162: STANDBY POWER
A163: STANDBY POWER
A164: STANDBY POWER
A165: STANDBY POWER
A166: STANDBY POWER
A167: STANDBY POWER
A168: STANDBY POWER
A169: STANDBY POWER
A170: STANDBY POWER
A171: STANDBY POWER
A172: STANDBY POWER
A173: STANDBY POWER
A174: STANDBY POWER | B174: MONTHLY RATES AND CHARGES - Delivery Component (If applicable, Effective Date MUST be included in rate description)
A175: STANDBY POWER
A176: STANDBY POWER
A177: STANDBY POWER
A178: STANDBY POWER
A179: STANDBY POWER
A180: STANDBY POWER
A181: STANDBY POWER
A182: STANDBY POWER
A183: STANDBY POWER
A184: STANDBY POWER
A185: STANDBY POWER
A186: STANDBY POWER
A187: STANDBY POWER
A188: STANDBY POWER
A189: STANDBY POWER
A190: STANDBY POWER
A191: STANDBY POWER
A192: STANDBY POWER
A193: STANDBY POWER
A194: STANDBY POWER
A195: STANDBY POWER
A196: STANDBY POWER
A197: STANDBY POWER
A198: STANDBY POWER
A199: STANDBY POWER
A200: STANDBY POWER
A201: STANDBY POWER
A202: STANDBY POWER
A203: STANDBY POWER
A204: STANDBY POWER
A205: STANDBY POWER | B205: MONTHLY RATES AND CHARGES - Regulatory Component
A206: STANDBY POWER
A207: STANDBY POWER | B207: Wholesale Market Service Rate | H207: =H81 -> $/kWh | I207: 0.0044
A208: STANDBY POWER | B208: Rural or Remote Electricity Rate Protection Charge (RRRP) | H208: $/kWh | I208: 0.0013
A209: STANDBY POWER | B209: Standard Supply Service - Administrative Charge (if applicable) | H209: $ | I209: 0.25
A210: STANDBY POWER

Sheet 5. 2014 Continuity Schedule
C15: Please complete the following continuity schedule for the following Deferral / Variance Accounts. Enter information into green cells only. If you have received approval to dispose of balances from prior years, the starting point for entries in the 2015 DVA schedule below will be the balance sheet date as per your G/L for which you received approval. For example, if in the 2014 EDR process (CoS or IRM) you received approval for the December 31, 2012 balances, the starting point for your entries below should be the 2011 year. This will allow for the correct starting point for the 2012 opening balance columns for both principal and interest. Please refer to the footnotes for further instructions.
E19: 2010 | O19: 2011 | Y19: 2012 | AL19: 2013 | AY19: 2014 | BC19: Projected Interest on Dec-31-13 Balances | BF19: 2.1.7 RRR
C20: Account Descriptions | D20: Account Number | E20: Opening Principal Amounts as of Jan-1-10 | F20: Transactions Debit / (Credit) during 2010 excluding interest and adjustments 2 | G20: Board-Approved Disposition during 2010 | H20: Adjustments during 2010 - other 1 | I20: Closing Principal Balance as of Dec-31-10 | J20: Opening Interest Amounts as of Jan-1-10 | K20: Interest Jan-1 to Dec-31-10 | L20: Board-Approved Disposition during 2010 | M20: Adjustments during 2010 - other 2 | N20: Closing Interest Amounts as of Dec-31-10 | O20: Opening Principal Amounts as of Jan-1-11 | P20: Transactions Debit / (Credit) during 2011 excluding interest and adjustments 2 | Q20: Board-Approved Disposition during 2011 | R20: Adjustments during 2011 - other 1 | S20: Closing Principal Balance as of Dec-31-11 | T20: Opening Interest Amounts as of Jan-1-11 | U20: Interest Jan-1 to Dec-31-11 | V20: Board-Approved Disposition during 2011 | W20: Adjustments during 2011 - other 2 | X20: Closing Interest Amounts as of Dec-31-11 | Y20: Opening Principal Amounts as of Jan-1-12 | Z20: Transactions Debit / (Credit) during 2012 excluding interest and adjustments 2 | AA20: Board-Approved Disposition during 2012 | AB20: Other 1 Adjustments during Q1 2012 | AC20: Other 1 Adjustments during Q2 2012 | AD20: Other 1 Adjustments during Q3 2012 | AE20: Other 1 Adjustments during Q4 2012 | AF20: Closing Principal Balance as of Dec-31-12 | AG20: Opening Interest Amounts as of Jan-1-12 | AH20: Interest Jan-1 to Dec-31-12 | AI20: Board-Approved Disposition during 2012 | AJ20: Adjustments during 2012 - other 1 | AK20: Closing Interest Amounts as of Dec-31-12 | AL20: Opening Principal Amounts as of Jan-1-13 | AM20: Transactions Debit / (Credit) during 2013 excluding interest and adjustments 2 | AN20: Board-Approved Disposition during 2013 | AO20: Other 1 Adjustments during Q1 2013 | AP20: Other 1 Adjustments during Q2 2013 | AQ20: Other 1 Adjustments during Q3 2013 | AR20: Other 1 Adjustments during Q4 2013 | AS20: Closing Principal Balance as of Dec-31-13 | AT20: Opening Interest Amounts as of Jan-1-13 | AU20: Interest Jan-1 to Dec-31-13 | AV20: Board-Approved Disposition during 2013 | AW20: Adjustments during 2013 - other 1 | AX20: Closing Interest Amounts as of Dec-31-13 | AY20: Principal Disposition during 2014 - instructed by Board | AZ20: Interest Disposition during 2014 - instructed by Board | BA20: Closing Principal Balances as of Dec 31-13 Adjusted for Dispositions during 2014 | BB20: Closing Interest Balances as of Dec 31-13 Adjusted for Dispositions during 2014 | BC20: Projected Interest from Jan 1, 2014 to December 31, 2014 on Dec 31 -13 balance adjusted for disposition during 2014 3 | BD20: Projected Interest from January 1, 2015 to April 30, 2015 on Dec 31 -13 balance adjusted for disposition during 2014 3 | BE20: Total Claim | BF20: As of Dec 31-13 | BG20: Variance RRR vs. 2013 Balance (Principal + Interest)
BE22: Claim before Forecasted Transactions
C23: Group 1 Accounts
A24: 1 | C24: LV Variance Account | D24: 1550 | H24: 240906 | I24: =E24+F24-G24+H24 -> 240906 | M24: 32287 | N24: =J24+K24-L24+M24 -> 32287 | O24: =I24 -> 240906 | P24: 89741 | Q24: 332501 | S24: =O24+P24-Q24+R24 -> -1854 | T24: =N24 -> 32287 | U24: 600 | V24: 20571 | X24: =T24+U24-V24+W24 -> 12316 | Y24: =S24 -> -1854 | Z24: -156062 | AA24: 240906 | AF24: =Y24+Z24-AA24+SUM(AB24:AE24) -> -398822 | AG24: =X24 -> 12316 | AH24: -1185 | AI24: 37399 | AK24: =AG24+AH24-AI24+AJ24 -> -26268 | AL24: =AF24 -> -398822 | AM24: 255352 | AS24: =AL24+AM24-AN24+SUM(AO24:AR24) -> -143470 | AT24: =AK24 -> -26268 | AU24: -3119 | AX24: =AT24+AU24-AV24+AW24 -> -29387 | AY24: -398823 | AZ24: -34085 | BA24: =AS24-AY24 -> 255353 | BB24: =AX24-AZ24 -> 4698 | BC24: 3754 | BD24: 1251 | BE24: =SUM(BA24:BD24) -> 265056 | BF24: -172858 | BG24: =BF24-SUM(AS24,AX24) -> -1
C25: Smart Metering Entity Charge Variance | D25: 1551 | AK25: 0 | AL25: =AK25 -> 0 | AM25: 11484 | AS25: =AL25+AM25-AN25+SUM(AO25:AR25) -> 11484 | AT25: =AK25 -> 0 | AU25: 260 | AX25: 260 | BA25: =AS25-AY25 -> 11484 | BB25: =AX25-AZ25 -> 260 | BE25: =SUM(BA25:BD25) -> 11744 | BF25: 11744 | BG25: =BF25-SUM(AS25,AX25) -> 0
A26: 2 | C26: RSVA - Wholesale Market Service Charge | D26: 1580 | H26: -423595 | I26: =E26+F26-G26+SUM(H26:H26) -> -423595 | M26: -54764 | N26: =J26+K26-L26+M26 -> -54764 | O26: =I26 -> -423595 | P26: -625368 | Q26: -86043 | S26: =O26+P26-Q26+SUM(R26:R26) -> -962920 | T26: -54764 | U26: -4784 | V26: -8178 | X26: =T26+U26-V26+W26 -> -51370 | Y26: =S26 -> -962920 | Z26: -585871 | AA26: -423593 | AF26: -1125198 | AG26: =X26 -> -51370 | AH26: -13206 | AI26: -63067 | AK26: -1509 | AL26: =AF26 -> -1125198 | AM26: -290782 | AS26: -1415980 | AT26: =AK26 -> -1509 | AU26: -16807 | AX26: -18316 | AY26: -1125198 | AZ26: -23563 | BA26: -290782 | BB26: 5247 | BC26: -4274 | BD26: -1425 | BE26: =SUM(BA26:BD26) -> -291234 | BF26: -1434297 | BG26: -1
A27: 3 | C27: RSVA - Retail Transmission Network Charge | D27: 1584 | H27: -74705 | I27: -74705 | M27: -10287 | N27: -10287 | O27: -74705 | P27: -888006 | Q27: -30142 | S27: -932569 | T27: -10287 | U27: 764 | V27: -132 | X27: -9391 | Y27: -932569 | Z27: -1515067 | AA27: -74705 | AF27: -2372931 | AG27: -9391 | AH27: -20043 | AI27: -11752 | AK27: -17682 | AL27: -2372931 | AM27: 210100 | AS27: -2162831 | AT27: -17682 | AU27: -30674 | AX27: -48356 | AY27: -2372931 | AZ27: -64192 | BA27: 210100 | BB27: 15836 | BC27: 3088 | BD27: 1029 | BE27: 230053 | BF27: -2211187 | BG27: 0
A28: 4 | C28: RSVA - Retail Transmission Connection Charge | D28: 1586 | H28: -2168024 | I28: -2168024 | M28: -126072 | N28: -126072 | O28: -2168024 | P28: -213557 | Q28: -422184 | S28: -1959397 | T28: -126072 | U28: -24080 | V28: -52405 | X28: -97747 | Y28: -1959397 | Z28: -320925 | AA28: -2168024 | AF28: -112298 | AG28: -97747 | AH28: -28709 | AI28: -168566 | AK28: 42110 | AL28: -112298 | AM28: 565640 | AS28: 453342 | AT28: 42110 | AU28: 960 | AX28: 43070 | AY28: -112299 | AZ28: 39908 | BA28: 565641 | BB28: 3162 | BC28: 8315 | BD28: 2772 | BE28: 579890 | BF28: 496409 | BG28: -3
A29: 5 | C29: RSVA - Power (excluding Global Adjustment) | D29: 1588 | H29: 2503158 | I29: 2503158 | M29: -89990 | N29: -89990 | O29: 2503158 | P29: -122286 | Q29: 364851 | S29: 2016021 | T29: -89990 | U29: 60411 | V29: 38792 | X29: -68371 | Y29: 2016021 | Z29: 774585 | AA29: 2503159 | AF29: 287447 | AG29: -68371 | AH29: 59342 | AI29: -40928 | AK29: 31899 | AL29: 287447 | AM29: 1262852 | AS29: 1550299 | AT29: 31899 | AU29: 48465 | AX29: 80364 | AY29: 287447 | AZ29: 37534 | BA29: 1262852 | BB29: 42830 | BC29: 18564 | BD29: 6188 | BE29: 1330434 | BF29: 1630664 | BG29: 1
A30: 6 | C30: RSVA - Global Adjustment | D30: 1589 | H30: 216886 | I30: 216886 | M30: 13565 | N30: 13565 | O30: 216886 | P30: 1066488 | Q30: -14033 | S30: 1297407 | T30: 13565 | U30: 22447 | V30: -2589 | X30: 38601 | Y30: 1297407 | Z30: -258909 | AA30: 216886 | AF30: 821612 | AG30: 38601 | AH30: 30309 | AI30: 17816 | AK30: 51094 | AL30: 821612 | AM30: 891734 | AR30: -1623815 | AS30: 89531 | AT30: 51094 | AU30: 33258 | AX30: 84352 | AY30: 821612 | AZ30: 67198 | BA30: -732081 | BB30: 17154 | BC30: -10762 | BD30: -3587 | BE30: -729276 | BF30: 173883 | BG30: 0
A31: 7 | C31: Recovery of Regulatory Asset Balances | D31: 1590 | H31: 431229 | I31: 431229 | M31: -119363 | N31: -119363 | O31: 431229 | P31: -5078 | Q31: 3154 | S31: 422997 | T31: -119363 | U31: 5691 | V31: 45356 | X31: -159028 | Y31: 422997 | Z31: 17 | AA31: 431229 | AF31: -8215 | AG31: -159028 | AH31: 5686 | AI31: -111621 | AK31: -41721 | AL31: -8215 | AS31: -8215 | AT31: -41721 | AU31: 13 | AX31: -41708 | AY31: -8214 | AZ31: -41882 | BA31: -1 | BB31: 174 | BE31: 173 | BF31: -4611 | BG31: 45312
A32: 8 | C32: Disposition and Recovery/Refund of Regulatory Balances (2008)4 | D32: 1595 | I32: 0 | N32: 0 | O32: =I32 -> 0 | S32: 0 | T32: 0 | X32: 0 | Y32: 0 | AF32: 0 | AG32: 0 | AK32: 0 | AL32: 0 | AS32: 0 | AT32: 0 | AX32: 0 | BA32: 0 | BB32: 0 | BE32: 0 | BG32: 0
A33: 9 | C33: Disposition and Recovery/Refund of Regulatory Balances (2009)4 | D33: 1595 | I33: 0 | N33: 0 | O33: =I33 -> 0 | S33: 0 | T33: 0 | X33: 0 | Y33: 0 | AF33: 0 | AG33: 0 | AK33: 0 | AL33: 0 | AS33: 0 | AT33: 0 | AX33: 0 | BA33: 0 | BB33: 0 | BE33: 0 | BG33: 0
A34: 9 | C34: Disposition and Recovery/Refund of Regulatory Balances (2010)4 | D34: 1595 | I34: 0 | N34: 0 | O34: =I34 -> 0 | S34: 0 | T34: 0 | X34: 0 | Y34: 0 | Z34: 400904 | AF34: 400904 | AG34: 0 | AH34: 11423 | AK34: 11423 | AL34: 400904 | AS34: 400904 | AT34: 11423 | AX34: 11423 | AY34: 400904 | AZ34: 19281 | BA34: 0 | BB34: -7858 | BE34: -7858 | BF34: 412328 | BG34: 1
A35: 9 | C35: Disposition and Recovery/Refund of Regulatory Balances (2011)4 | D35: 1595 | I35: 0 | N35: 0 | O35: =I35 -> 0 | S35: 0 | T35: 0 | X35: 0 | Y35: 0 | AF35: 0 | AG35: 0 | AK35: 0 | AL35: 0 | AS35: 0 | AT35: 0 | AX35: 0 | BA35: 0 | BB35: 0 | BE35: =SUM(BA35:BD35) -> 0 | BG35: 0
A36: 9 | C36: Disposition and Recovery/Refund of Regulatory Balances (2012)4 | D36: 1595 | I36: 0 | N36: 0 | O36: =I36 -> 0 | S36: 0 | T36: =N36 -> 0 | X36: 0 | Y36: =S36 -> 0 | AF36: =Y36+Z36-AA36+SUM(AB36:AE36) -> 0 | AG36: =X36 -> 0 | AK36: =AG36+AH36-AI36+AJ36 -> 0 | AL36: =AF36 -> 0 | AS36: =AL36+AM36-AN36+SUM(AO36:AR36) -> 0 | AT36: =AK36 -> 0 | AX36: =AT36+AU36-AV36+AW36 -> 0 | BA36: 0 | BB36: 0 | BE36: =SUM(BA36:BD36) -> 0 | BG36: 0
C38: RSVA - Global Adjustment | D38: 1589 | E38: =E30 -> 0 | F38: =F30 -> 0 | G38: 0 | H38: 216886 | I38: 216886 | J38: 0 | K38: 0 | L38: 0 | M38: 13565 | N38: 13565 | O38: =O30 -> 216886 | P38: =P30 -> 1066488 | Q38: -14033 | R38: 0 | S38: 1297407 | T38: 13565 | U38: 22447 | V38: -2589 | W38: 0 | X38: 38601 | Y38: =Y30 -> 1297407 | Z38: =Z30 -> -258909 | AA38: 216886 | AB38: 0 | AC38: 0 | AD38: 0 | AE38: 0 | AF38: =AF30 -> 821612 | AG38: 38601 | AH38: 30309 | AI38: 17816 | AJ38: =AJ30 -> 0 | AK38: 51094 | AL38: =AL30 -> 821612 | AM38: =AM30 -> 891734 | AN38: 0 | AO38: 0 | AP38: 0 | AQ38: 0 | AR38: -1623815 | AS38: 89531 | AT38: 51094 | AU38: 33258 | AV38: 0 | AW38: 0 | AX38: 84352 | AY38: 821612 | AZ38: =AZ30 -> 67198 | BA38: -732081 | BB38: 17154 | BC38: -10762 | BD38: -3587 | BE38: -729276 | BF38: 173883 | BG38: 0
C39: Total Group 1 Balance excluding Account 1589 - Global Adjustment | E39: =SUM(E24:E29,E31:E36) -> 0 | F39: =SUM(F24:F29,F31:F36) -> 0 | G39: 0 | H39: 508969 | I39: 508969 | J39: 0 | K39: 0 | L39: 0 | M39: -368189 | N39: -368189 | O39: =SUM(O24:O29,O31:O36) -> 508969 | P39: =SUM(P24:P29,P31:P36) -> -1764554 | Q39: 162137 | R39: 0 | S39: -1417722 | T39: -368189 | U39: 38602 | V39: 44004 | W39: 0 | X39: -373591 | Y39: =SUM(Y24:Y29,Y31:Y36) -> -1417722 | Z39: =SUM(Z24:Z29,Z31:Z36) -> -1402419 | AA39: 508972 | AB39: 0 | AC39: 0 | AD39: 0 | AE39: 0 | AF39: =SUM(AF24:AF29,AF31:AF36) -> -3329113 | AG39: -373591 | AH39: 13308 | AI39: -358535 | AJ39: =SUM(AJ24:AJ29,AJ31:AJ36) -> 0 | AK39: -1748 | AL39: =SUM(AL24:AL29,AL31:AL36) -> -3329113 | AM39: =SUM(AM24:AM29,AM31:AM36) -> 2014646 | AN39: 0 | AO39: 0 | AP39: 0 | AQ39: 0 | AR39: 0 | AS39: -1314467 | AT39: -1748 | AU39: -902 | AV39: 0 | AW39: 0 | AX39: -2650 | AY39: -3329114 | AZ39: =SUM(AZ24:AZ29,AZ31:AZ36) -> -66999 | BA39: 2014647 | BB39: 64349 | BC39: 29447 | BD39: 9815 | BE39: 2118258 | BF39: -1271808 | BG39: 45309
C40: Total Group 1 Balance | E40: =SUM(E24:E36) -> 0 | F40: =SUM(F24:F36) -> 0 | G40: 0 | H40: 725855 | I40: 725855 | J40: 0 | K40: 0 | L40: 0 | M40: -354624 | N40: -354624 | O40: =SUM(O24:O36) -> 725855 | P40: =SUM(P24:P36) -> -698066 | Q40: 148104 | R40: 0 | S40: -120315 | T40: -354624 | U40: 61049 | V40: 41415 | W40: 0 | X40: -334990 | Y40: =SUM(Y24:Y36) -> -120315 | Z40: =SUM(Z24:Z36) -> -1661328 | AA40: 725858 | AB40: 0 | AC40: 0 | AD40: 0 | AE40: 0 | AF40: =SUM(AF24:AF36) -> -2507501 | AG40: -334990 | AH40: 43617 | AI40: -340719 | AJ40: =SUM(AJ24:AJ36) -> 0 | AK40: 49346 | AL40: =SUM(AL24:AL36) -> -2507501 | AM40: =SUM(AM24:AM36) -> 2906380 | AN40: 0 | AO40: 0 | AP40: 0 | AQ40: 0 | AR40: -1623815 | AS40: -1224936 | AT40: 49346 | AU40: 32356 | AV40: 0 | AW40: 0 | AX40: 81702 | AY40: -2507502 | AZ40: =SUM(AZ24:AZ36) -> 199 | BA40: 1282566 | BB40: 81503 | BC40: 18685 | BD40: 6228 | BE40: 1388982 | BF40: -1097925 | BG40: 45309
C42: LRAM Variance Account | D42: 1568 | I42: =E42+F42-G42+SUM(H42:H42) -> 0 | N42: =J42+K42-L42+M42 -> 0 | S42: =O42+P42-Q42+SUM(R42:R42) -> 0 | X42: =T42+U42-V42+W42 -> 0 | Y42: =S42 -> 0 | Z42: 365549 | AA42: 365549 | AF42: =Y42+Z42-AA42+SUM(AB42:AE42) -> 0 | AG42: =X42 -> 0 | AK42: =AG42+AH42-AI42+AJ42 -> 0 | AL42: =AF42 -> 0 | AS42: =AL42+AM42-AN42+SUM(AO42:AR42) -> 0 | AT42: =AK42 -> 0 | AX42: =AT42+AU42-AV42+AW42 -> 0 | AY42: 0 | AZ42: 0 | BA42: =AS42-AY42 -> 0 | BB42: =AX42-AZ42 -> 0 | BE42: =SUM(BA42:BD42) -> 0 | BF42: 181432 | BG42: =BF42-SUM(AS42,AX42) -> 181432
C44: Total including Account 1568 | E44: =E42+E40 -> 0 | F44: =F42+F40 -> 0 | G44: 0 | H44: 725855 | I44: 725855 | J44: 0 | K44: 0 | L44: 0 | M44: -354624 | N44: -354624 | O44: 725855 | P44: -698066 | Q44: 148104 | R44: 0 | S44: -120315 | T44: -354624 | U44: 61049 | V44: 41415 | W44: 0 | X44: -334990 | Y44: -120315 | Z44: -1295779 | AA44: 1091407 | AB44: 0 | AC44: 0 | AD44: 0 | AE44: 0 | AF44: -2507501 | AG44: -334990 | AH44: 43617 | AI44: -340719 | AJ44: 0 | AK44: 49346 | AL44: -2507501 | AM44: 2906380 | AN44: 0 | AO44: 0 | AP44: 0 | AQ44: 0 | AR44: -1623815 | AS44: -1224936 | AT44: 49346 | AU44: 32356 | AV44: 0 | AW44: 0 | AX44: 81702 | AY44: -2507502 | AZ44: 199 | BA44: 1282566 | BB44: 81503 | BC44: 18685 | BD44: 6228 | BE44: 1388982 | BF44: -916493 | BG44: 226741
C47: For all Board-Approved dispositions, please ensure that the disposition amount has the same sign (e.g: debit balances are to have a positive figure and credit balance are to have a negative figure) as per the related Board decision.
B50: 1 | C50: Please provide explanations for the nature of the adjustments. If the adjustment relates to previously Board Approved disposed balances, please provide amounts for adjustments and include supporting documentations.
B51: 2 | C51: For RSVA accounts only, report the net variance to the account during the year. For all other accounts, record the transactions during the year.
B52: 3 | C52: If the LDC’s rate year begins on January 1, 2015, the projected interest is recorded from January 1, 2014 to December 31, 2014 on the December 31, 2013 balances adjusted for the disposed balances approved by the Board in the 2014 rate decision. If the LDC’s rate year begins on May 1, 2015, the projected interest is recorded from January 1, 2014 to April 30, 2015 on the December 31, 2013 balances adjusted for the disposed interest balances approved by the Board in the 2014 rate decision.
B53: 4 | C53: Include Account 1595 as part of Group 1 accounts (lines 31, 32, 33 and 34) for review and disposition if the recovery (or refund) period has been completed. If the recovery (or refund) period has not been completed, do not include the respective balance in Account 1595 for disposition at this time.

Sheet 6. Billing Det. for Def-Var
AS1: As per Section 3.2.3 of the 2015 Filing Requirements for Electricity Distribution Rate Applications, an applicant may elect to dispose of the Group 1 account balances below the threshold. If doing so, please select YES from the adjacent drop-down cell and also indicate so in the Manager's Summary. If not, please select NO.
A13: In the green shaded cells, enter the most recent Board Approved volumetric forecast. If there is a material difference between the latest Board-approved volumetric forecast and the most recent 12-month actual volumetric data, use the most recent 12-month actual data. Do not enter data for the MicroFit class.
E15: Billed kWh for Non-RPP Customers | F15: Estimated kW for Non-RPP Customers | H15: 1590 Recovery Share Proportion* | I15: 1595 Recovery Share Proportion (2008) 1 | J15: 1595 Recovery Share Proportion (2009) 1 | K15: 1595 Recovery Share Proportion (2010) 1 | L15: 1595 Recovery Share Proportion (2011) 1 | M15: 1595 Recovery Share Proportion (2012) 1 | N15: 1568 LRAM Variance Account Class Allocation ($ amounts) | O15: Number of Customers for Residential and GS<50 classes3
A16: Rate Class | B16: Unit | C16: Metered kWh | D16: Metered kW
A17: RESIDENTIAL | B17: $/kWh | C17: 147767075 | E17: 23443867.77 | F17: =IF(ISERROR(D17/C17*E17), 0, D17/C17*E17) -> 0 | H17: 0.3193876723 | K17: 0.3193876723 | L17: 0.3194 | O17: 17502
A18: GENERAL SERVICE LESS THAN 50 KW | B18: $/kWh | C18: 50306768 | E18: 10652868.12 | F18: 0 | H18: 0.1087343817 | K18: 0.1087343817 | L18: 0.1087 | O18: 1937
A19: GENERAL SERVICE 50 TO 999 KW | B19: $/kW | C19: 77849022.67 | D19: 227921 | E19: 75178199.79 | F19: 220101.549 | H19: 0.1682649409 | K19: 0.1682649409 | L19: 0.1683
A20: GENERAL SERVICE 1,000 TO 4,999 KW | B20: $/kW | C20: 69200000 | D20: 96900 | E20: 66825905.41 | F20: 93575.58142 | H20: 0.1495707141 | K20: 0.1495707141 | L20: 0.1496
A21: LARGE USE | B21: $/kW | C21: 97146782.94 | D21: 160146 | F21: 0 | H21: 0.2099756314 | K21: 0.2099756314 | L21: 0.21
A22: STREET LIGHTING | B22: $/kW | C22: 2144933.79 | D22: 6753.5 | E22: 1608036.843 | F22: 5063.035917 | H22: 0.004636116743 | K22: 0.004636116743 | L22: 0.0046
A23: SENTINEL LIGHTING | B23: $/kW | C23: 274492 | D23: 772 | E23: 100633.3562 | F23: 283.0281063 | H23: 0.000593294284 | K23: 0.000593294284 | L23: 0.0006
A24: UNMETERED SCATTERED LOAD | B24: $/kWh | C24: 618341 | E24: 65264.69182 | F24: 0 | H24: 0.001336498626 | K24: 0.001336498626 | L24: 0.0013
A25: EMBEDDED DISTRIBUTOR | B25: $/kW | C25: 17350000 | D25: 23768 | E25: 17350000 | F25: 23768 | H25: 0.03750074985 | K25: 0.03750074985 | L25: 0.0375
A26: microFIT
B28: Total | C28: =SUM(C17:C26) -> 462657415.4 | D28: =SUM(D17:D26) -> 516260.5 | E28: 195224776 | F28: 342791.1944 | H28: 1 | I28: 0 | J28: 0 | K28: 1 | L28: 1 | M28: 0 | N28: 0 | O28: 19439
M29: Balance as per Sheet 5 | N29: =ROUND('5. 2014 Continuity Schedule'!BE42, 0) -> 0
M30: Variance | N30: =N28-N29 -> 0
A32: Threshold Test
A33: Total Claim (including Account 1568) | B33: ='5. 2014 Continuity Schedule'!BE44 -> 1388982
A34: Total Claim for Threshold Test (All Group 1 Accounts) | B34: ='5. 2014 Continuity Schedule'!BE40 -> 1388982
A35: Threshold Test (Total claim per kWh) 2 | B35: =IF(ISERROR(B34/C28), 0, B34/C28) -> 0.003002182509 | D35: =IF(AND(B35>-0.001,B35<0.001),"Claim does not meet the threshold test.","") -> 
A37: =IF(AND(B35>-0.001, B35<0.001), AS1, "") -> 
A41: 1 Residual Account balance to be allocated to rate classes in proportion to the recovery share as established when rate riders were implemented.
A42: 2 The Threshold Test does not include the amount in 1568.
A43: 3 The proportion of customers for the Residential and GS<50 Classes will be used to allocate Account 1551.

Sheet 6. hidden (hidden)
E1: Billed kWh for Non-RPP Customers | F1: Estimated kW for Non-RPP Customers | G1: Distribution Revenue 1 | H1: 1590 Recovery Share Proportion* | I1: 1595 Recovery Share Proportion (2008) 2 | J1: 1595 Recovery Share Proportion (2009) 2 | K1: 1595 Recovery Share Proportion (2010) 2 | L1: 1595 Recovery Share Proportion (2011) 2 | M1: 1568 LRAM Variance Account Class Allocation
A2: Rate Class | B2: Unit | C2: Metered kWh | D2: Metered kW
A3: RESIDENTIAL | B3: $/kWh | C3: 147767075 | D3: 0 | E3: 23443867.77 | G3: 0 | H3: 0.3193876723 | I3: 0 | J3: 0 | K3: 0.3193876723 | L3: 0.3194 | M3: 0 | N3: 0 | O3: 17502
A4: GENERAL SERVICE LESS THAN 50 KW | B4: $/kWh | C4: 50306768 | D4: 0 | E4: 10652868.12 | G4: 0 | H4: 0.1087343817 | I4: 0 | J4: 0 | K4: 0.1087343817 | L4: 0.1087 | M4: 0 | O4: 1937
A5: GENERAL SERVICE 50 TO 999 KW | B5: $/kW | C5: 77849022.67 | D5: 227921 | E5: 75178199.79 | G5: 0 | H5: 0.1682649409 | I5: 0 | J5: 0 | K5: 0.1682649409 | L5: 0.1683 | M5: 0 | O5: 0
A6: GENERAL SERVICE 1,000 TO 4,999 KW | B6: $/kW | C6: 69200000 | D6: 96900 | E6: 66825905.41 | G6: 0 | H6: 0.1495707141 | I6: 0 | J6: 0 | K6: 0.1495707141 | L6: 0.1496 | M6: 0 | O6: 0
A7: LARGE USE | B7: $/kW | C7: 97146782.94 | D7: 160146 | E7: 0 | G7: 0 | H7: 0.2099756314 | I7: 0 | J7: 0 | K7: 0.2099756314 | L7: 0.21 | M7: 0 | O7: 0
A8: STREET LIGHTING | B8: $/kW | C8: 2144933.79 | D8: 6753.5 | E8: 1608036.843 | G8: 0 | H8: 0.004636116743 | I8: 0 | J8: 0 | K8: 0.004636116743 | L8: 0.0046 | M8: 0 | O8: 0
A9: SENTINEL LIGHTING | B9: $/kW | C9: 274492 | D9: 772 | E9: 100633.3562 | G9: 0 | H9: 0.000593294284 | I9: 0 | J9: 0 | K9: 0.000593294284 | L9: 0.0006 | M9: 0 | O9: 0
A10: UNMETERED SCATTERED LOAD | B10: $/kWh | C10: 618341 | D10: 0 | E10: 65264.69182 | G10: 0 | H10: 0.001336498626 | I10: 0 | J10: 0 | K10: 0.001336498626 | L10: 0.0013 | M10: 0 | O10: 0
A11: EMBEDDED DISTRIBUTOR | B11: $/kW | C11: 17350000 | D11: 23768 | E11: 17350000 | G11: 0 | H11: 0.03750074985 | I11: 0 | J11: 0 | K11: 0.03750074985 | L11: 0.0375 | M11: 0 | O11: 0
A12: microFIT | B12: 0 | C12: 0 | D12: 0 | E12: 0 | G12: 0 | H12: 0 | I12: 0 | J12: 0 | K12: 0 | L12: 0 | M12: 0 | N12: 0 | O12: 0

Sheet 7. Allocating Def-Var Balances
A13: No input required. This workshseet allocates the deferral/variance account balances (Group 1, 1589, and 1568) to the appropriate classes as per the EDDVAR Report dated July 31, 2009
A15: Allocation of Group 1 Accounts (including Account 1568)
C16: % of Total kWh | D16: % of Total non-RPP kWh | E16: % of Customer Numbers ** | N16: 1595 (2008) | O16: 1595 (2009) | P16: 1595 (2010) | Q16: 1595 (2011) | R16: 1595 (2012) | S16: 1568
A17: Rate Class | F17: 1550 | G17: 1551 | H17: 1580 | I17: 1584 | J17: 1586 | K17: 1588 | L17: 1589 | M17: 1590
A19: RESIDENTIAL | C19: =VLOOKUP(A19, '6. Billing Det. for Def-Var'!A17:D26, 3,0)/'6. Billing Det. for Def-Var'!C28 -> 0.3193876723 | D19: =VLOOKUP(A19, '6. Billing Det. for Def-Var'!A17:E26, 5,0)/'6. Billing Det. for Def-Var'!E28 -> 0.1200865395 | E19: =VLOOKUP(A19, '6. Billing Det. for Def-Var'!A17:O26, 15,0)/'6. Billing Det. for Def-Var'!O28 -> 0.9003549565 | F19: =C19* '5. 2014 Continuity Schedule'!BE24 -> 84655.61888 | G19: =E19* '5. 2014 Continuity Schedule'!BE25 -> 10573.76861 | H19: =C19* '5. 2014 Continuity Schedule'!BE26 -> -93016.54937 | I19: =C19* '5. 2014 Continuity Schedule'!BE27 -> 73476.09219 | J19: =C19* '5. 2014 Continuity Schedule'!BE28 -> 185209.7173 | K19: =C19* '5. 2014 Continuity Schedule'!BE29 -> 424924.2185 | L19: =D19* '5. 2014 Continuity Schedule'!BE30 -> -87576.23116 | M19: ='6. Billing Det. for Def-Var'!H17* '5. 2014 Continuity Schedule'!BE31 -> 55.25406732 | N19: ='6. Billing Det. for Def-Var'!I17* '5. 2014 Continuity Schedule'!BE32 -> 0 | O19: ='6. Billing Det. for Def-Var'!J17* '5. 2014 Continuity Schedule'!BE33 -> 0 | P19: ='6. Billing Det. for Def-Var'!K17* '5. 2014 Continuity Schedule'!BE34 -> -2509.748329 | Q19: ='6. Billing Det. for Def-Var'!L17* '5. 2014 Continuity Schedule'!BE35 -> 0 | R19: ='6. Billing Det. for Def-Var'!M17* '5. 2014 Continuity Schedule'!BE36 -> 0 | S19: ='6. Billing Det. for Def-Var'!N17 -> 0
A20: GENERAL SERVICE LESS THAN 50 KW | C20: =VLOOKUP(A20, '6. Billing Det. for Def-Var'!A17:D26, 3,0)/'6. Billing Det. for Def-Var'!C28 -> 0.1087343817 | D20: =VLOOKUP(A20, '6. Billing Det. for Def-Var'!A17:E26, 5,0)/'6. Billing Det. for Def-Var'!E28 -> 0.05456719347 | E20: =VLOOKUP(A20, '6. Billing Det. for Def-Var'!A17:O26, 15,0)/'6. Billing Det. for Def-Var'!O28 -> 0.09964504347 | F20: =C20* '5. 2014 Continuity Schedule'!BE24 -> 28820.70027 | G20: =E20* '5. 2014 Continuity Schedule'!BE25 -> 1170.231391 | H20: =C20* '5. 2014 Continuity Schedule'!BE26 -> -31667.14892 | I20: =C20* '5. 2014 Continuity Schedule'!BE27 -> 25014.67071 | J20: =C20* '5. 2014 Continuity Schedule'!BE28 -> 63053.9806 | K20: =C20* '5. 2014 Continuity Schedule'!BE29 -> 144663.9184 | L20: =D20* '5. 2014 Continuity Schedule'!BE30 -> -39794.54458 | M20: ='6. Billing Det. for Def-Var'!H18* '5. 2014 Continuity Schedule'!BE31 -> 18.81104803 | N20: ='6. Billing Det. for Def-Var'!I18* '5. 2014 Continuity Schedule'!BE32 -> 0 | O20: ='6. Billing Det. for Def-Var'!J18* '5. 2014 Continuity Schedule'!BE33 -> 0 | P20: ='6. Billing Det. for Def-Var'!K18* '5. 2014 Continuity Schedule'!BE34 -> -854.4347713 | Q20: ='6. Billing Det. for Def-Var'!L18* '5. 2014 Continuity Schedule'!BE35 -> 0 | R20: ='6. Billing Det. for Def-Var'!M18* '5. 2014 Continuity Schedule'!BE36 -> 0 | S20: ='6. Billing Det. for Def-Var'!N18 -> 
A21: GENERAL SERVICE 50 TO 999 KW | C21: =VLOOKUP(A21, '6. Billing Det. for Def-Var'!A17:D26, 3,0)/'6. Billing Det. for Def-Var'!C28 -> 0.1682649409 | D21: =VLOOKUP(A21, '6. Billing Det. for Def-Var'!A17:E26, 5,0)/'6. Billing Det. for Def-Var'!E28 -> 0.3850853429 | F21: =C21* '5. 2014 Continuity Schedule'!BE24 -> 44599.63218 | G21: =E21* '5. 2014 Continuity Schedule'!BE25 -> 0 | H21: =C21* '5. 2014 Continuity Schedule'!BE26 -> -49004.47181 | I21: =C21* '5. 2014 Continuity Schedule'!BE27 -> 38709.85446 | J21: =C21* '5. 2014 Continuity Schedule'!BE28 -> 97575.1566 | K21: =C21* '5. 2014 Continuity Schedule'!BE29 -> 223865.3984 | L21: =D21* '5. 2014 Continuity Schedule'!BE30 -> -280833.4985 | M21: ='6. Billing Det. for Def-Var'!H19* '5. 2014 Continuity Schedule'!BE31 -> 29.10983478 | N21: ='6. Billing Det. for Def-Var'!I19* '5. 2014 Continuity Schedule'!BE32 -> 0 | O21: ='6. Billing Det. for Def-Var'!J19* '5. 2014 Continuity Schedule'!BE33 -> 0 | P21: ='6. Billing Det. for Def-Var'!K19* '5. 2014 Continuity Schedule'!BE34 -> -1322.225906 | Q21: ='6. Billing Det. for Def-Var'!L19* '5. 2014 Continuity Schedule'!BE35 -> 0 | R21: ='6. Billing Det. for Def-Var'!M19* '5. 2014 Continuity Schedule'!BE36 -> 0 | S21: ='6. Billing Det. for Def-Var'!N19 -> 
A22: GENERAL SERVICE 1,000 TO 4,999 KW | C22: =VLOOKUP(A22, '6. Billing Det. for Def-Var'!A17:D26, 3,0)/'6. Billing Det. for Def-Var'!C28 -> 0.1495707141 | D22: =VLOOKUP(A22, '6. Billing Det. for Def-Var'!A17:E26, 5,0)/'6. Billing Det. for Def-Var'!E28 -> 0.3423023798 | F22: =C22* '5. 2014 Continuity Schedule'!BE24 -> 39644.61519 | G22: =E22* '5. 2014 Continuity Schedule'!BE25 -> 0 | H22: =C22* '5. 2014 Continuity Schedule'!BE26 -> -43560.07735 | I22: =C22* '5. 2014 Continuity Schedule'!BE27 -> 34409.19149 | J22: =C22* '5. 2014 Continuity Schedule'!BE28 -> 86734.56139 | K22: =C22* '5. 2014 Continuity Schedule'!BE29 -> 198993.9634 | L22: =D22* '5. 2014 Continuity Schedule'!BE30 -> -249632.9103 | M22: ='6. Billing Det. for Def-Var'!H20* '5. 2014 Continuity Schedule'!BE31 -> 25.87573354 | N22: ='6. Billing Det. for Def-Var'!I20* '5. 2014 Continuity Schedule'!BE32 -> 0 | O22: ='6. Billing Det. for Def-Var'!J20* '5. 2014 Continuity Schedule'!BE33 -> 0 | P22: ='6. Billing Det. for Def-Var'!K20* '5. 2014 Continuity Schedule'!BE34 -> -1175.326671 | Q22: ='6. Billing Det. for Def-Var'!L20* '5. 2014 Continuity Schedule'!BE35 -> 0 | R22: ='6. Billing Det. for Def-Var'!M20* '5. 2014 Continuity Schedule'!BE36 -> 0 | S22: ='6. Billing Det. for Def-Var'!N20 -> 
A23: LARGE USE | C23: =VLOOKUP(A23, '6. Billing Det. for Def-Var'!A17:D26, 3,0)/'6. Billing Det. for Def-Var'!C28 -> 0.2099756314 | D23: =VLOOKUP(A23, '6. Billing Det. for Def-Var'!A17:E26, 5,0)/'6. Billing Det. for Def-Var'!E28 -> 0 | F23: =C23* '5. 2014 Continuity Schedule'!BE24 -> 55655.30097 | G23: =E23* '5. 2014 Continuity Schedule'!BE25 -> 0 | H23: =C23* '5. 2014 Continuity Schedule'!BE26 -> -61152.04305 | I23: =C23* '5. 2014 Continuity Schedule'!BE27 -> 48305.52394 | J23: =C23* '5. 2014 Continuity Schedule'!BE28 -> 121762.7689 | K23: =C23* '5. 2014 Continuity Schedule'!BE29 -> 279358.7192 | L23: =D23* '5. 2014 Continuity Schedule'!BE30 -> 0 | M23: ='6. Billing Det. for Def-Var'!H21* '5. 2014 Continuity Schedule'!BE31 -> 36.32578424 | N23: ='6. Billing Det. for Def-Var'!I21* '5. 2014 Continuity Schedule'!BE32 -> 0 | O23: ='6. Billing Det. for Def-Var'!J21* '5. 2014 Continuity Schedule'!BE33 -> 0 | P23: ='6. Billing Det. for Def-Var'!K21* '5. 2014 Continuity Schedule'!BE34 -> -1649.988512 | Q23: ='6. Billing Det. for Def-Var'!L21* '5. 2014 Continuity Schedule'!BE35 -> 0 | R23: ='6. Billing Det. for Def-Var'!M21* '5. 2014 Continuity Schedule'!BE36 -> 0 | S23: ='6. Billing Det. for Def-Var'!N21 -> 
A24: STREET LIGHTING | C24: =VLOOKUP(A24, '6. Billing Det. for Def-Var'!A17:D26, 3,0)/'6. Billing Det. for Def-Var'!C28 -> 0.004636116743 | D24: =VLOOKUP(A24, '6. Billing Det. for Def-Var'!A17:E26, 5,0)/'6. Billing Det. for Def-Var'!E28 -> 0.008236848191 | F24: =C24* '5. 2014 Continuity Schedule'!BE24 -> 1228.83056 | G24: =E24* '5. 2014 Continuity Schedule'!BE25 -> 0 | H24: =C24* '5. 2014 Continuity Schedule'!BE26 -> -1350.194824 | I24: =C24* '5. 2014 Continuity Schedule'!BE27 -> 1066.552565 | J24: =C24* '5. 2014 Continuity Schedule'!BE28 -> 2688.437738 | K24: =C24* '5. 2014 Continuity Schedule'!BE29 -> 6168.047343 | L24: =D24* '5. 2014 Continuity Schedule'!BE30 -> -6006.935701 | M24: ='6. Billing Det. for Def-Var'!H22* '5. 2014 Continuity Schedule'!BE31 -> 0.8020481966 | N24: ='6. Billing Det. for Def-Var'!I22* '5. 2014 Continuity Schedule'!BE32 -> 0 | O24: ='6. Billing Det. for Def-Var'!J22* '5. 2014 Continuity Schedule'!BE33 -> 0 | P24: ='6. Billing Det. for Def-Var'!K22* '5. 2014 Continuity Schedule'!BE34 -> -36.43060537 | Q24: ='6. Billing Det. for Def-Var'!L22* '5. 2014 Continuity Schedule'!BE35 -> 0 | R24: ='6. Billing Det. for Def-Var'!M22* '5. 2014 Continuity Schedule'!BE36 -> 0 | S24: ='6. Billing Det. for Def-Var'!N22 -> 
A25: SENTINEL LIGHTING | C25: =VLOOKUP(A25, '6. Billing Det. for Def-Var'!A17:D26, 3,0)/'6. Billing Det. for Def-Var'!C28 -> 0.000593294284 | D25: =VLOOKUP(A25, '6. Billing Det. for Def-Var'!A17:E26, 5,0)/'6. Billing Det. for Def-Var'!E28 -> 0.0005154743072 | F25: =C25* '5. 2014 Continuity Schedule'!BE24 -> 157.2562097 | G25: =E25* '5. 2014 Continuity Schedule'!BE25 -> 0 | H25: =C25* '5. 2014 Continuity Schedule'!BE26 -> -172.7874675 | I25: =C25* '5. 2014 Continuity Schedule'!BE27 -> 136.4891299 | J25: =C25* '5. 2014 Continuity Schedule'!BE28 -> 344.0454223 | K25: =C25* '5. 2014 Continuity Schedule'!BE29 -> 789.3388874 | L25: =D25* '5. 2014 Continuity Schedule'!BE30 -> -375.9230409 | M25: ='6. Billing Det. for Def-Var'!H23* '5. 2014 Continuity Schedule'!BE31 -> 0.1026399111 | N25: ='6. Billing Det. for Def-Var'!I23* '5. 2014 Continuity Schedule'!BE32 -> 0 | O25: ='6. Billing Det. for Def-Var'!J23* '5. 2014 Continuity Schedule'!BE33 -> 0 | P25: ='6. Billing Det. for Def-Var'!K23* '5. 2014 Continuity Schedule'!BE34 -> -4.662106483 | Q25: ='6. Billing Det. for Def-Var'!L23* '5. 2014 Continuity Schedule'!BE35 -> 0 | R25: ='6. Billing Det. for Def-Var'!M23* '5. 2014 Continuity Schedule'!BE36 -> 0 | S25: ='6. Billing Det. for Def-Var'!N23 -> 
A26: UNMETERED SCATTERED LOAD | C26: =VLOOKUP(A26, '6. Billing Det. for Def-Var'!A17:D26, 3,0)/'6. Billing Det. for Def-Var'!C28 -> 0.001336498626 | D26: =VLOOKUP(A26, '6. Billing Det. for Def-Var'!A17:E26, 5,0)/'6. Billing Det. for Def-Var'!E28 -> 0.0003343053743 | F26: =C26* '5. 2014 Continuity Schedule'!BE24 -> 354.2469798 | G26: =E26* '5. 2014 Continuity Schedule'!BE25 -> 0 | H26: =C26* '5. 2014 Continuity Schedule'!BE26 -> -389.2338408 | I26: =C26* '5. 2014 Continuity Schedule'!BE27 -> 307.4655184 | J26: =C26* '5. 2014 Continuity Schedule'!BE28 -> 775.0221882 | K26: =C26* '5. 2014 Continuity Schedule'!BE29 -> 1778.123213 | L26: =D26* '5. 2014 Continuity Schedule'!BE30 -> -243.8008862 | M26: ='6. Billing Det. for Def-Var'!H24* '5. 2014 Continuity Schedule'!BE31 -> 0.2312142623 | N26: ='6. Billing Det. for Def-Var'!I24* '5. 2014 Continuity Schedule'!BE32 -> 0 | O26: ='6. Billing Det. for Def-Var'!J24* '5. 2014 Continuity Schedule'!BE33 -> 0 | P26: ='6. Billing Det. for Def-Var'!K24* '5. 2014 Continuity Schedule'!BE34 -> -10.5022062 | Q26: ='6. Billing Det. for Def-Var'!L24* '5. 2014 Continuity Schedule'!BE35 -> 0 | R26: ='6. Billing Det. for Def-Var'!M24* '5. 2014 Continuity Schedule'!BE36 -> 0 | S26: ='6. Billing Det. for Def-Var'!N24 -> 
A27: EMBEDDED DISTRIBUTOR | C27: =VLOOKUP(A27, '6. Billing Det. for Def-Var'!A17:D26, 3,0)/'6. Billing Det. for Def-Var'!C28 -> 0.03750074985 | D27: =VLOOKUP(A27, '6. Billing Det. for Def-Var'!A17:E26, 5,0)/'6. Billing Det. for Def-Var'!E28 -> 0.08887191655 | F27: =C27* '5. 2014 Continuity Schedule'!BE24 -> 9939.798751 | G27: =E27* '5. 2014 Continuity Schedule'!BE25 -> 0 | H27: =C27* '5. 2014 Continuity Schedule'!BE26 -> -10921.49338 | I27: =C27* '5. 2014 Continuity Schedule'!BE27 -> 8627.160005 | J27: =C27* '5. 2014 Continuity Schedule'!BE28 -> 21746.30983 | K27: =C27* '5. 2014 Continuity Schedule'!BE29 -> 49892.27262 | L27: =D27* '5. 2014 Continuity Schedule'!BE30 -> -64812.15581 | M27: ='6. Billing Det. for Def-Var'!H25* '5. 2014 Continuity Schedule'!BE31 -> 6.487629723 | N27: ='6. Billing Det. for Def-Var'!I25* '5. 2014 Continuity Schedule'!BE32 -> 0 | O27: ='6. Billing Det. for Def-Var'!J25* '5. 2014 Continuity Schedule'!BE33 -> 0 | P27: ='6. Billing Det. for Def-Var'!K25* '5. 2014 Continuity Schedule'!BE34 -> -294.6808923 | Q27: ='6. Billing Det. for Def-Var'!L25* '5. 2014 Continuity Schedule'!BE35 -> 0 | R27: ='6. Billing Det. for Def-Var'!M25* '5. 2014 Continuity Schedule'!BE36 -> 0 | S27: ='6. Billing Det. for Def-Var'!N25 -> 
A28: microFIT | C28: 0 | D28: 0 | E28: 0 | F28: =C28* '5. 2014 Continuity Schedule'!BE24 -> 0 | G28: =E28* '5. 2014 Continuity Schedule'!BE25 -> 0 | H28: =C28* '5. 2014 Continuity Schedule'!BE26 -> 0 | I28: =C28* '5. 2014 Continuity Schedule'!BE27 -> 0 | J28: =C28* '5. 2014 Continuity Schedule'!BE28 -> 0 | K28: =C28* '5. 2014 Continuity Schedule'!BE29 -> 0 | L28: =D28* '5. 2014 Continuity Schedule'!BE30 -> 0 | M28: ='6. Billing Det. for Def-Var'!H26* '5. 2014 Continuity Schedule'!BE31 -> 0 | N28: ='6. Billing Det. for Def-Var'!I26* '5. 2014 Continuity Schedule'!BE32 -> 0 | O28: ='6. Billing Det. for Def-Var'!J26* '5. 2014 Continuity Schedule'!BE33 -> 0 | P28: ='6. Billing Det. for Def-Var'!K26* '5. 2014 Continuity Schedule'!BE34 -> 0 | Q28: ='6. Billing Det. for Def-Var'!L26* '5. 2014 Continuity Schedule'!BE35 -> 0 | R28: ='6. Billing Det. for Def-Var'!M26* '5. 2014 Continuity Schedule'!BE36 -> 0 | S28: ='6. Billing Det. for Def-Var'!N26 -> 0
A30: Total | C30: =SUM(C19:C28) -> 1 | D30: 1 | E30: 1 | F30: 265056 | G30: 11744 | H30: -291234 | I30: 230053 | J30: 579890 | K30: 1330434 | L30: -729276 | M30: 173 | N30: 0 | O30: 0 | P30: -7858 | Q30: 0 | R30: 0 | S30: 0
A33: * RSVA - Power (Excluding Global Adjustment)
A34: ** Used to allocate Account 1551 as this account records the variances arising from the Smart Metering Entity Charges to Residential and GS<50 customers.

Sheet 8. Calculation of Def-Var RR
A12: Input required at cell C15 only. This workshseet calculates rate riders related to the Deferral/Variance Account Disposition (if applicable), associated rate riders for the global adjustment account (1589) and Account 1568. Rate Riders will not be generated for the microFIT class.
A15: Please indicate the Rate Rider Recovery Period (in years) | C15: 1
E17: Balance of Accounts Allocated by kWh/kW (RPP) or Distribution Revenue | F17: Deferral/Variance Account Rate Rider | G17: Allocation of Balance in Account 1589 | H17: Billed kWh or Estimated kW for Non-RPP Customers | I17: Global Adjustment Rate Rider | J17: Allocation of Account 1568 | K17: Account 1568 Rate Rider
A18: Rate Class | B18: Unit | C18: Billed kWh | D18: Billed kW or kVA
A20: RESIDENTIAL | B20: $/kWh | C20: 147767075 | E20: =SUM('7. Allocating Def-Var Balances'!F19:K19)+SUM('7. Allocating Def-Var Balances'!M19:R19) -> 683368.3718 | F20: 0.0046 | G20: -87576.23116 | H20: 23443867.77 | I20: -0.0037
A21: GENERAL SERVICE LESS THAN 50 KW | B21: $/kWh | C21: 50306768 | E21: =SUM('7. Allocating Def-Var Balances'!F20:K20)+SUM('7. Allocating Def-Var Balances'!M20:R20) -> 230220.7287 | F21: 0.0046 | G21: -39794.54458 | H21: 10652868.12 | I21: -0.0037
A22: GENERAL SERVICE 50 TO 999 KW | B22: $/kW | C22: 77849022.67 | D22: 227921 | E22: =SUM('7. Allocating Def-Var Balances'!F21:K21)+SUM('7. Allocating Def-Var Balances'!M21:R21) -> 354452.4538 | F22: 1.5552 | G22: -280833.4985 | H22: 220101.549 | I22: -1.2759
A23: GENERAL SERVICE 1,000 TO 4,999 KW | B23: $/kW | C23: 69200000 | D23: 96900 | E23: =SUM('7. Allocating Def-Var Balances'!F22:K22)+SUM('7. Allocating Def-Var Balances'!M22:R22) -> 315072.8032 | F23: 3.2515 | G23: -249632.9103 | H23: 93575.58142 | I23: -2.6677
A24: LARGE USE | B24: $/kW | C24: 97146782.94 | D24: 160146 | E24: =SUM('7. Allocating Def-Var Balances'!F23:K23)+SUM('7. Allocating Def-Var Balances'!M23:R23) -> 442316.6073 | F24: 2.762 | G24: 0 | H24: 0 | I24: 0
A25: STREET LIGHTING | B25: $/kW | C25: 2144933.79 | D25: 6753.5 | E25: =SUM('7. Allocating Def-Var Balances'!F24:K24)+SUM('7. Allocating Def-Var Balances'!M24:R24) -> 9766.044825 | F25: 1.4461 | G25: -6006.935701 | H25: 5063.035917 | I25: -1.1864
A26: SENTINEL LIGHTING | B26: $/kW | C26: 274492 | D26: 772 | E26: =SUM('7. Allocating Def-Var Balances'!F25:K25)+SUM('7. Allocating Def-Var Balances'!M25:R25) -> 1249.782715 | F26: 1.6189 | G26: -375.9230409 | H26: 283.0281063 | I26: -1.3282
A27: UNMETERED SCATTERED LOAD | B27: $/kWh | C27: 618341 | E27: =SUM('7. Allocating Def-Var Balances'!F26:K26)+SUM('7. Allocating Def-Var Balances'!M26:R26) -> 2815.353067 | F27: 0.0046 | G27: -243.8008862 | H27: 65264.69182 | I27: -0.0037
A28: EMBEDDED DISTRIBUTOR | B28: $/kW | C28: 17350000 | D28: 23768 | E28: =SUM('7. Allocating Def-Var Balances'!F27:K27)+SUM('7. Allocating Def-Var Balances'!M27:R27) -> 78995.85456 | F28: 3.3236 | G28: -64812.15581 | H28: 23768 | I28: -2.7269
A29: microFIT
A30: Total | C30: =SUM(C20:C29) -> 462657415.4 | D30: =SUM(D20:D29) -> 516260.5 | E30: =SUM(E20:E29) -> 2118258 | G30: =SUM(G20:G29) -> -729276 | H30: =SUM(H20:H29) -> 34504791.77 | J30: =SUM(J20:J29) -> 0
A34: One or more rate classes appear to have negligible rate riders in columns F and/or I. As per Appendix B of the Filing Requirements, please provide details of the Applicant's proposal in the Manager's Summary.

Sheet 9. STS - Billing Det & Rates
A11: Shared Tax Savings
A13: ="Enter your " & '1. Information Sheet'!F32 & " Board-Approved Billing Determinents into columns B, C and D." -> Enter your 2012 Board-Approved Billing Determinents into columns B, C and D.
A14: ="Enter your " & '1. Information Sheet'!F32 & " Board-Approved Base monthly service and volumetric charges into columns G, H and I." -> Enter your 2012 Board-Approved Base monthly service and volumetric charges into columns G, H and I.
A16: Rate Class | B16: Units | C16: Re-based Billed Customers or Connections | D16: Re-based Billed kWh | E16: Re-based Billed kW (if applicable) | G16: ='1. Information Sheet'!F32 &" Base Monthly Service Charge" -> 2012 Base Monthly Service Charge | H16: ='1. Information Sheet'!F32 &" Base Distribution Volumetric Rate kWh" -> 2012 Base Distribution Volumetric Rate kWh | I16: ='1. Information Sheet'!F32 &" Base Distribution Volumetric Rate kW" -> 2012 Base Distribution Volumetric Rate kW
A17: RESIDENTIAL | B17: $/kWh | C17: 16461 | D17: 147767075 | E17: 0 | G17: 15.25 | H17: 0.0178 | I17: 0
A18: GENERAL SERVICE LESS THAN 50 KW | B18: $/kWh | C18: 1857 | D18: 50306768 | E18: 0 | G18: 21.01 | H18: 0.0136 | I18: 0
A19: GENERAL SERVICE 50 TO 999 KW | B19: $/kW | C19: 175 | D19: 0 | E19: 227921 | G19: 120.57 | H19: 0 | I19: 2.925
A20: GENERAL SERVICE 1,000 TO 4,999 KW | B20: $/kW | C20: 7 | D20: 0 | E20: 96900 | G20: 2391.73 | H20: 0 | I20: 3.9743
A21: LARGE USE | B21: $/kW | C21: 1 | D21: 0 | E21: 160146 | G21: 9768.44 | H21: 0 | I21: 1.7955
A22: STREET LIGHTING | B22: $/kW | C22: 4283 | D22: 0 | E22: 6754 | G22: 3.81 | H22: 0 | I22: 22.1569
A23: SENTINEL LIGHTING | B23: $/kW | C23: 301 | D23: 0 | E23: 772 | G23: 5.26 | H23: 0 | I23: 14.7739
A24: UNMETERED SCATTERED LOAD | B24: $/kWh | C24: 121 | D24: 618341 | E24: 0 | G24: 3.01 | H24: 0.1077 | I24: 0
A25: EMBEDDED DISTRIBUTOR | B25: $/kW | C25: 3 | D25: 0 | E25: 23768 | G25: 2226.08 | H25: 0 | I25: 3.8293
A26: microFIT

Sheet 10. STS - Rebased Rev
A12: Calculation of Rebased Revenue Requirement. No input required.
A15: Rate Class | C15: Re-based Billed Customers or Connections | D15: Re-based Billed kWh | E15: Re-based Billed kW | G15: Rate ReBal Base Service Charge | H15: Rate ReBal Base Distribution Volumetric Rate kWh | I15: Rate ReBal Base Distribution Volumetric Rate kW | K15: Service Charge Revenue | L15: Distribution Volumetric Rate Revenue kWh | M15: Distribution Volumetric Rate Revenue kW | N15: Revenue Requirement from Rates | P15: Service Charge % Revenue | Q15: Distribution Volumetric Rate % Revenue kWh | R15: Distribution Volumetric Rate % Revenue kW | S15: Total % Revenue
C16: A | D16: B | E16: C | G16: D | H16: E | I16: F | K16: G = A * D *12 | L16: H = B * E | M16: I = C * F | N16: J = G + H + I | P16: K = G / J | Q16: L = H / J | R16: M = I / J | S16: N = J / R
A17: RESIDENTIAL | C17: 16461 | D17: 147767075 | E17: 0 | G17: 15.25 | H17: 0.0178 | I17: 0 | K17: =G17*C17*12 -> 3012363 | L17: =H17*D17 -> 2630253.935 | M17: 0 | N17: =SUM(K17,L17,M17) -> 5642616.935 | P17: =IF(ISERROR(K17/N17),0,K17/N17) -> 0.5338592066 | Q17: =IF(ISERROR(L17/N17),0,L17/N17) -> 0.4661407934 | R17: =IF(ISERROR(M17/N17),0,M17/N17) -> 0 | S17: =N17/N27 -> 0.6051965386
A18: GENERAL SERVICE LESS THAN 50 KW | C18: 1857 | D18: 50306768 | E18: 0 | G18: 21.01 | H18: 0.0136 | I18: 0 | K18: 468186.84 | L18: =H18*D18 -> 684172.0448 | M18: 0 | N18: 1152358.885 | P18: 0.4062856166 | Q18: 0.5937143834 | R18: 0 | S18: =N18/N27 -> 0.1235957742
A19: GENERAL SERVICE 50 TO 999 KW | C19: 175 | D19: 0 | E19: 227921 | G19: 120.57 | H19: 0 | I19: 2.925 | K19: 253197 | L19: 0 | M19: =I19*E19 -> 666668.925 | N19: 919865.925 | P19: 0.2752542443 | Q19: 0 | R19: 0.7247457557 | S19: =N19/N27 -> 0.0986598382
A20: GENERAL SERVICE 1,000 TO 4,999 KW | C20: 7 | D20: 0 | E20: 96900 | G20: 2391.73 | H20: 0 | I20: 3.9743 | K20: 200905.32 | L20: 0 | M20: =I20*E20 -> 385109.67 | N20: 586014.99 | P20: 0.3428330733 | Q20: 0 | R20: 0.6571669267 | S20: =N20/N27 -> 0.06285279466
A21: LARGE USE | C21: 1 | D21: 0 | E21: 160146 | G21: 9768.44 | H21: 0 | I21: 1.7955 | K21: 117221.28 | L21: 0 | M21: =I21*E21 -> 287542.143 | N21: 404763.423 | P21: 0.289604429 | Q21: 0 | R21: 0.710395571 | S21: =N21/N27 -> 0.04341273303
A22: STREET LIGHTING | C22: 4283 | D22: 0 | E22: 6754 | G22: 3.81 | H22: 0 | I22: 22.1569 | K22: 195818.76 | L22: 0 | M22: =I22*E22 -> 149647.7026 | N22: 345466.4626 | P22: 0.5668242252 | Q22: 0 | R22: 0.4331757748 | S22: =N22/N27 -> 0.03705286214
A23: SENTINEL LIGHTING | C23: 301 | D23: 0 | E23: 772 | G23: 5.26 | H23: 0 | I23: 14.7739 | K23: 18999.12 | L23: 0 | M23: =I23*E23 -> 11405.4508 | N23: 30404.5708 | P23: 0.6248770991 | Q23: 0 | R23: 0.3751229009 | S23: =N23/N27 -> 0.003261029628
A24: UNMETERED SCATTERED LOAD | C24: 121 | D24: 618341 | E24: 0 | G24: 3.01 | H24: 0.1077 | I24: 0 | K24: 4370.52 | L24: =H24*D24 -> 66595.3257 | M24: 0 | N24: 70965.8457 | P24: 0.06158624556 | Q24: 0.9384137544 | R24: 0 | S24: =N24/N27 -> 0.007611412342
A25: EMBEDDED DISTRIBUTOR | C25: 3 | D25: 0 | E25: 23768 | G25: 2226.08 | H25: 0 | I25: 3.8293 | K25: 80138.88 | L25: 0 | M25: =I25*E25 -> 91014.8024 | N25: 171153.6824 | P25: 0.468227612 | Q25: 0 | R25: 0.531772388 | S25: =N25/N27 -> 0.01835701721
A26: microFIT | K26: 0 | L26: 0 | M26: 0 | N26: 0 | P26: 0 | Q26: 0 | R26: 0 | S26: =N26/N27 -> 0
A27: Total | C27: =SUM(C17:C26) -> 23209 | D27: =SUM(D17:D26) -> 198692184 | E27: =SUM(E17:E26) -> 516261 | K27: =SUM(K17:K26) -> 4351200.72 | L27: =SUM(L17:L26) -> 3381021.305 | M27: =SUM(M17:M26) -> 1591388.694 | N27: =SUM(N17:N26) -> 9323610.719 | S27: =SUM(S17:S26) -> 1

Sheet 9. STS - Billing Det & Rate HID (hidden)
A11: Shared Tax Savings
A12: ="Enter your " & '1. Information Sheet'!F32 & " Board-Approved Billing Determinents into columns B, C and D." -> Enter your 2012 Board-Approved Billing Determinents into columns B, C and D.
A16: Rate Class | B16: Units | C16: Re-based Billed Customers or Connections | D16: Re-based Billed kWh | E16: Re-based Billed kW (if applicable) | G16: ='1. Information Sheet'!F32 &" Base Monthly Service Charge" -> 2012 Base Monthly Service Charge | H16: ='1. Information Sheet'!F32 &" Base Distribution Volumetric Rate kWh" -> 2012 Base Distribution Volumetric Rate kWh | I16: ='1. Information Sheet'!F32 &" Base Distribution Volumetric Rate kW" -> 2012 Base Distribution Volumetric Rate kW
A17: RESIDENTIAL | B17: $/kWh | C17: 16461 | D17: 147767075 | E17: 0 | G17: 15.25 | H17: 0.0178 | I17: 0
A18: GENERAL SERVICE LESS THAN 50 KW | B18: $/kWh | C18: 1857 | D18: 50306768 | E18: 0 | G18: 21.01 | H18: 0.0136 | I18: 0
A19: GENERAL SERVICE 50 TO 999 KW | B19: $/kW | C19: 175 | D19: 0 | E19: 227921 | G19: 120.57 | H19: 0 | I19: 2.925
A20: GENERAL SERVICE 1,000 TO 4,999 KW | B20: $/kW | C20: 7 | D20: 0 | E20: 96900 | G20: 2391.73 | H20: 0 | I20: 3.9743
A21: LARGE USE | B21: $/kW | C21: 1 | D21: 0 | E21: 160146 | G21: 9768.44 | H21: 0 | I21: 1.7955
A22: STREET LIGHTING | B22: $/kW | C22: 4283 | D22: 0 | E22: 6754 | G22: 3.81 | H22: 0 | I22: 22.1569
A23: SENTINEL LIGHTING | B23: $/kW | C23: 301 | D23: 0 | E23: 772 | G23: 5.26 | H23: 0 | I23: 14.7739
A24: UNMETERED SCATTERED LOAD | B24: $/kWh | C24: 121 | D24: 618341 | E24: 0 | G24: 3.01 | H24: 0.1077 | I24: 0
A25: EMBEDDED DISTRIBUTOR | B25: $/kW | C25: 3 | D25: 0 | E25: 23768 | G25: 2226.08 | H25: 0 | I25: 3.8293
A26: microFIT | B26: 0 | C26: 0 | D26: 0 | E26: 0 | G26: 0 | H26: 0 | I26: 0

Sheet 11. STS - Tax Change
T1: Rate Base | U1: Federal Tax Rate
T2: 500000 | U2: 0.11
T3: 10000000 | U3: 0.11
T4: =T3+100000 -> 10100000 | U4: 0.11
T5: =T4+100000 -> 10200000 | U5: 0.11
T6: 10300000 | U6: 0.11
T7: 10400000 | U7: 0.11
T8: 10500000 | U8: 0.11
T9: 10600000 | U9: 0.11
T10: 10700000 | U10: 0.11
T11: 10800000 | U11: 0.11
T12: 10900000 | U12: 0.11
A13: Summary - Sharing of Tax Change Forecast Amounts | T13: 11000000 | U13: 0.11
T14: 11100000 | U14: 0.111
A15: ="For the " & '1. Information Sheet'!F32 & " year, enter any Tax Credits from the Cost of Service Tax Calculation (Positive #)" -> For the 2012 year, enter any Tax Credits from the Cost of Service Tax Calculation (Positive #) | L15: 20000 | T15: 11200000 | U15: =U14+0.13% -> 0.1123 | V15: =U15-U14 -> 0.0013
T16: 11300000 | U16: =U15+0.13% -> 0.1136 | V16: =U16-U15 -> 0.0013
T17: 11400000 | U17: 0.1149 | V17: 0.0013
A18: 1. Tax Related Amounts Forecast from Capital Tax Rate Changes | L18: ='1. Information Sheet'!F32 -> 2012 | N18: 2015 | T18: 11500000 | U18: 0.1162 | V18: 0.0013
A19: Taxable Capital (if you are not claiming capital tax, please enter your Board-Approved Rate Base) | L19: 31467480 | N19: =L19 -> 31467480 | T19: 11600000 | U19: =U18+0.12% -> 0.1174 | V19: 0.0012
T20: 11700000 | U20: =U19+0.12% -> 0.1186 | V20: 0.0012
A21: Deduction from taxable capital up to $15,000,000 | N21: =L21 -> 0 | T21: 11800000 | U21: 0.1198 | V21: 0.0012
T22: 11900000 | U22: 0.121 | V22: 0.0012
A23: Net Taxable Capital | L23: =L19-L21 -> 31467480 | N23: =N19-N21 -> 31467480 | T23: 12000000 | U23: =U22+0.112% -> 0.12212 | V23: 0.00112
T24: 12100000 | U24: =U23+0.112% -> 0.12324 | V24: 0.00112
A25: Rate | N25: 0 | T25: 12200000 | U25: 0.12436 | V25: 0.00112
T26: 12300000 | U26: 0.12548 | V26: 0.00112
A27: Ontario Capital Tax (Deductible, not grossed-up) | L27: =IF(L23>0, L23*L25, 0)*181/365 -> 0 | N27: 0 | T27: 12400000 | U27: 0.1266 | V27: 0.00112
T28: 12500000 | U28: 0.12772 | V28: 0.00112
A29: 2. Tax Related Amounts Forecast from lncome Tax Rate Changes | T29: 12600000 | U29: =U28+0.102% -> 0.12874 | V29: 0.00102
A30: Regulatory Taxable Income | L30: 1147934 | N30: =L30 -> 1147934 | T30: 12700000 | U30: =U29+0.102% -> 0.12976 | V30: 0.00102
T31: 12800000 | U31: 0.13078 | V31: 0.00102
A32: Corporate Tax Rate | L32: 0.2341 | N32: =IF(N30=0,0,IF(N30<=500000,4.5%+11%,IF(N30>500000,(11.5%*N30-35000)/N30+VLOOKUP(N19,T:U,2,TRUE),""))) -> 0.2345104422 | T32: 12900000 | U32: 0.1318 | V32: 0.00102
T33: 13000000 | U33: 0.13282 | V33: 0.00102
A34: Tax Impact | L34: 253612 | N34: =N30*N32-L15 -> 249202.51 | T34: 13100000 | U34: =U33+0.096% -> 0.13378 | V34: 0.00096
T35: 13200000 | U35: =U34+0.096% -> 0.13474 | V35: 0.00096
A36: Grossed-up Tax Amount | L36: 331121 | N36: =N34/(1-N32) -> 325546.5832 | T36: 13300000 | U36: 0.1357 | V36: 0.00096
T37: 13400000 | U37: 0.13666 | V37: 0.00096
A38: Tax Related Amounts Forecast from Capital Tax Rate Changes | L38: =L27 -> 0 | N38: =N27 -> 0 | T38: 13500000 | U38: 0.13762 | V38: 0.00096
T39: 13600000 | U39: =U38+0.088% -> 0.1385 | V39: 0.00088
A40: Tax Related Amounts Forecast from lncome Tax Rate Changes | L40: =L36 -> 331121 | N40: =N36 -> 325546.5832 | T40: 13700000 | U40: =U39+0.088% -> 0.13938 | V40: 0.00088
T41: 13800000 | U41: 0.14026 | V41: 0.00088
A42: Total Tax Related Amounts | L42: =SUM(L40,L38) -> 331121 | N42: =SUM(N40,N38) -> 325546.5832 | T42: 13900000 | U42: 0.14114 | V42: 0.00088
T43: 14000000 | U43: 0.14202 | V43: 0.00088
A44: Incremental Tax Savings | N44: =N42-L42 -> -5574.416806 | T44: 14100000 | U44: =U43+0.082% -> 0.14284 | V44: 0.00082
T45: 14200000 | U45: =U44+0.082% -> 0.14366 | V45: 0.00082
A46: Sharing of Tax Savings (50%) | N46: =0.5*N44 -> -2787.208403 | T46: 14300000 | U46: 0.14448 | V46: 0.00082
T47: 14400000 | U47: 0.1453 | V47: 0.00082
T48: 14500000 | U48: 0.14612 | V48: 0.00082
T49: 14600000 | U49: =U48+0.076% -> 0.14688 | V49: 0.00076
T50: 14700000 | U50: =U49+0.076% -> 0.14764 | V50: 0.00076
T51: 14800000 | U51: 0.1484 | V51: 0.00076
T52: 14900000 | U52: 0.14916 | V52: 0.00076
T53: 15000000 | U53: 0.15 | V53: 0.00084

Sheet 12. STS - Tax Change Rate Rider
A11: This worksheet calculates a tax change volumetric rate rider. If the rate riders are material (round to 4 decimal places), then the outputs in columns M and O will appear on Sheet 27 - Final Tariff Schedule.
A15: Rate Class | C15: Total Revenue $ by Rate Class | E15: Total Revenue % by Rate Class | G15: Allocation of Tax Savings by Rate Class | I15: Billed kWh | K15: Billed kW | M15: Distribution Volumetric Rate kWh Rate Rider | O15: Distribution Volumetric Rate kW Rate Rider
A17: RESIDENTIAL | C17: 5642616.935 | E17: =C17/C27 -> 0.6051965386 | G17: =E17*G27 -> -1686.809844 | I17: 147767075 | K17: 0 | M17: =ROUND(G17/I17,4) -> 0
A18: GENERAL SERVICE LESS THAN 50 KW | C18: 1152358.885 | E18: =C18/C27 -> 0.1235957742 | G18: =E18*G27 -> -344.4873777 | I18: 50306768 | K18: 0 | M18: =ROUND(G18/I18,4) -> 0
A19: GENERAL SERVICE 50 TO 999 KW | C19: 919865.925 | E19: =C19/C27 -> 0.0986598382 | G19: =E19*G27 -> -274.9856876 | I19: 0 | K19: 227921
A20: GENERAL SERVICE 1,000 TO 4,999 KW | C20: 586014.99 | E20: =C20/C27 -> 0.06285279466 | G20: =E20*G27 -> -175.1839378 | I20: 0 | K20: 96900
A21: LARGE USE | C21: 404763.423 | E21: =C21/C27 -> 0.04341273303 | G21: =E21*G27 -> -121.0004036 | I21: 0 | K21: 160146
A22: STREET LIGHTING | C22: 345466.4626 | E22: =C22/C27 -> 0.03705286214 | G22: =E22*G27 -> -103.2741079 | I22: 0 | K22: 6754
A23: SENTINEL LIGHTING | C23: 30404.5708 | E23: =C23/C27 -> 0.003261029628 | G23: =E23*G27 -> -9.089174391 | I23: 0 | K23: 772
A24: UNMETERED SCATTERED LOAD | C24: 70965.8457 | E24: =C24/C27 -> 0.007611412342 | G24: =E24*G27 -> -21.21460459 | I24: 618341 | K24: 0 | M24: =ROUND(G24/I24,4) -> 0
A25: EMBEDDED DISTRIBUTOR | C25: 171153.6824 | E25: =C25/C27 -> 0.01835701721 | G25: =E25*G27 -> -51.16486193 | I25: 0 | K25: 23768
A26: microFIT | C26: 0 | E26: =C26/C27 -> 0 | G26: =E26*G27 -> 0
A27: Total | C27: =SUM(C17:C26) -> 9323610.719 | E27: =SUM(E17:E26) -> 1 | G27: -2787.21 | I27: =SUM(I17:I26) -> 198692184 | K27: =SUM(K17:K26) -> 516261
A29: One or more rate classes appear to have negligible rate riders in columns M and/or O. As per Appendix B of the Filing Requirements, please provide details of the Applicant's proposal in the Manager's Summary.

Sheet 13. RTSR Rate Sheet
A13: No input required. This sheet consolidates all Current Retail Transmission Rates entered on Sheet 4.
A15: Rate Class | B15: Rate Description | C15: Unit | D15: RTSR-Network | E15: RTSR-Connection
A17: RESIDENTIAL | B17: Retail Transmission Rate - Network Service Rate | C17: $/kWh | D17: 0.0064
A18: RESIDENTIAL | B18: Retail Transmission Rate - Line and Transformation Connection Service Rate | C18: $/kWh | E18: 0.0049
A19: GENERAL SERVICE LESS THAN 50 KW | B19: Retail Transmission Rate - Network Service Rate | C19: $/kWh | D19: 0.0059
A20: GENERAL SERVICE LESS THAN 50 KW | B20: Retail Transmission Rate - Line and Transformation Connection Service Rate | C20: $/kWh | E20: 0.0045
A21: GENERAL SERVICE 50 TO 999 KW | B21: Retail Transmission Rate - Network Service Rate | C21: $/kW | D21: 2.666
A22: GENERAL SERVICE 50 TO 999 KW | B22: Retail Transmission Rate - Line and Transformation Connection Service Rate | C22: $/kW | E22: 1.627
A23: GENERAL SERVICE 1,000 TO 4,999 KW | B23: Retail Transmission Rate - Network Service Rate | C23: $/kW | D23: 2.8956
A24: GENERAL SERVICE 1,000 TO 4,999 KW | B24: Retail Transmission Rate - Line and Transformation Connection Service Rate | C24: $/kW | E24: 1.7429
A25: LARGE USE | B25: Retail Transmission Rate - Network Service Rate | C25: $/kW | D25: 3.2101
A26: LARGE USE | B26: Retail Transmission Rate - Line and Transformation Connection Service Rate | C26: $/kW | E26: 1.977
A27: STREET LIGHTING | B27: Retail Transmission Rate - Network Service Rate | C27: $/kW | D27: 2.059
A28: STREET LIGHTING | B28: Retail Transmission Rate - Line and Transformation Connection Service Rate | C28: $/kW | E28: 2.0686
A29: SENTINEL LIGHTING | B29: Retail Transmission Rate - Network Service Rate | C29: $/kW | D29: 2.059
A30: SENTINEL LIGHTING | B30: Retail Transmission Rate - Line and Transformation Connection Service Rate | C30: $/kW | E30: 1.2516
A31: UNMETERED SCATTERED LOAD | B31: Retail Transmission Rate - Network Service Rate | C31: $/kWh | D31: 0.0059
A32: UNMETERED SCATTERED LOAD | B32: Retail Transmission Rate - Line and Transformation Connection Service Rate | C32: $/kWh | E32: 0.0045
A33: EMBEDDED DISTRIBUTOR | B33: Retail Transmission Rate - Network Service Rate | C33: $/kW | D33: 3.8739
A34: EMBEDDED DISTRIBUTOR | B34: Retail Transmission Rate - Line and Transformation Connection Service Rate | C34: $/kW | E34: 2.2984

Sheet 14. RTSR RRR Data
A12: In the green shaded cells, enter the most recent reported RRR billing determinants. Please ensure that billing determinants are non-loss adjusted.
A14: Rate Class | B14: Rate Description | C14: Unit | D14: Non-Loss Adjusted Metered kWh | E14: Non-Loss Adjusted Metered kW | F14: Applicable Loss Factor | H14: Load Factor | I14: Loss Adjusted Billed kWh | J14: Billed kW
A15: RESIDENTIAL | B15: Retail Transmission Rate - Network Service Rate | C15: $/kWh | D15: 138975942 | E15: 0 | F15: 1.0451 | H15: =IF(C15="$/kW", D15/(E15* 30.4 * 24), "" ) ->  | I15: =IF(OR(F15=0, OR(ISBLANK(F15), TRIM(F15)="")), F15, F15 * D15) -> 145243757 | J15: =IF(OR(F15=0, OR(ISBLANK(F15), TRIM(F15)="")), E15, E15) -> 0
A16: RESIDENTIAL | B16: Retail Transmission Rate - Line and Transformation Connection Service Rate | C16: $/kWh | D16: 138975942 | E16: 0 | F16: 1.0451 | H16: =IF(C16="$/kW", D16/(E16* 30.4 * 24), "" ) ->  | I16: 145243757 | J16: 0
A17: GENERAL SERVICE LESS THAN 50 KW | B17: Retail Transmission Rate - Network Service Rate | C17: $/kWh | D17: 47769542.4 | E17: 0 | F17: 1.0451 | H17: =IF(C17="$/kW", D17/(E17* 30.4 * 24), "" ) ->  | I17: 49923948.76 | J17: 0
A18: GENERAL SERVICE LESS THAN 50 KW | B18: Retail Transmission Rate - Line and Transformation Connection Service Rate | C18: $/kWh | D18: 47769542.4 | E18: 0 | F18: 1.0451 | H18: =IF(C18="$/kW", D18/(E18* 30.4 * 24), "" ) ->  | I18: 49923948.76 | J18: 0
A19: GENERAL SERVICE 50 TO 999 KW | B19: Retail Transmission Rate - Network Service Rate | C19: $/kW | D19: 120479421 | E19: 356032.75 | F19: 0 | H19: 0 | I19: 0 | J19: 356032.75
A20: GENERAL SERVICE 50 TO 999 KW | B20: Retail Transmission Rate - Line and Transformation Connection Service Rate | C20: $/kW | D20: 120479421 | E20: 356032.75 | F20: 0 | H20: 0 | I20: 0 | J20: 356032.75
A21: GENERAL SERVICE 1,000 TO 4,999 KW | B21: Retail Transmission Rate - Network Service Rate | C21: $/kW | D21: 67360312 | E21: 137877.28 | F21: 0 | H21: 0 | I21: 0 | J21: 137877.28
A22: GENERAL SERVICE 1,000 TO 4,999 KW | B22: Retail Transmission Rate - Line and Transformation Connection Service Rate | C22: $/kW | D22: 67360312 | E22: 137877 | F22: 0 | H22: 0 | I22: 0 | J22: 137877
A23: LARGE USE | B23: Retail Transmission Rate - Network Service Rate | C23: $/kW | D23: 95010953 | E23: 164251 | F23: 0 | H23: 0 | I23: 0 | J23: 164251
A24: LARGE USE | B24: Retail Transmission Rate - Line and Transformation Connection Service Rate | C24: $/kW | D24: 95010953 | E24: 164251 | F24: 0 | H24: 0 | I24: 0 | J24: 164251
A25: STREET LIGHTING | B25: Retail Transmission Rate - Network Service Rate | C25: $/kW | D25: 2535728 | E25: 6999 | F25: 0 | H25: 0 | I25: 0 | J25: 6999
A26: STREET LIGHTING | B26: Retail Transmission Rate - Line and Transformation Connection Service Rate | C26: $/kW | D26: 2535728 | E26: 6999 | F26: 0 | H26: 0 | I26: 0 | J26: 6999
A27: SENTINEL LIGHTING | B27: Retail Transmission Rate - Network Service Rate | C27: $/kW | D27: 260975 | E27: 261 | F27: 0 | H27: 0 | I27: 0 | J27: 261
A28: SENTINEL LIGHTING | B28: Retail Transmission Rate - Line and Transformation Connection Service Rate | C28: $/kW | D28: 260975 | E28: 261 | F28: 0 | H28: 0 | I28: 0 | J28: 261
A29: UNMETERED SCATTERED LOAD | B29: Retail Transmission Rate - Network Service Rate | C29: $/kWh | D29: 538153 | E29: 0 | F29: 1.0451 | H29: =IF(C29="$/kW", D29/(E29* 30.4 * 24), "" ) ->  | I29: 562423.7003 | J29: 0
A30: UNMETERED SCATTERED LOAD | B30: Retail Transmission Rate - Line and Transformation Connection Service Rate | C30: $/kWh | D30: 538153 | E30: 0 | F30: 1.0451 | H30: =IF(C30="$/kW", D30/(E30* 30.4 * 24), "" ) ->  | I30: 562423.7003 | J30: 0
A31: EMBEDDED DISTRIBUTOR | B31: Retail Transmission Rate - Network Service Rate | C31: $/kW | D31: 16582303 | E31: 36588.4 | F31: 0 | H31: 0 | I31: 0 | J31: 36588.4
A32: EMBEDDED DISTRIBUTOR | B32: Retail Transmission Rate - Line and Transformation Connection Service Rate | C32: $/kW | D32: 16582303 | E32: 36588.4 | F32: 0 | H32: 0 | I32: 0 | J32: 36588.4

Sheet 14. RTSR RRR Data Copy (hidden)
A12: In the green shaded cells, enter the most recent reported RRR billing determinants. Please ensure that billing determinants are non-loss adjusted.
A14: Rate Class | B14: Rate Description | C14: Unit | D14: Non-Loss Adjusted Metered kWh | E14: Non-Loss Adjusted Metered kW | F14: Applicable Loss Factor | H14: Load Factor | I14: Loss Adjusted Billed kWh | J14: Billed kW
A15: RESIDENTIAL | B15: Retail Transmission Rate - Network Service Rate | C15: $/kWh | D15: 138975942 | E15: 0 | F15: 1.0451
A16: RESIDENTIAL | B16: Retail Transmission Rate - Line and Transformation Connection Service Rate | C16: $/kWh | D16: 138975942 | E16: 0 | F16: 1.0451
A17: GENERAL SERVICE LESS THAN 50 KW | B17: Retail Transmission Rate - Network Service Rate | C17: $/kWh | D17: 47769542.4 | E17: 0 | F17: 1.0451
A18: GENERAL SERVICE LESS THAN 50 KW | B18: Retail Transmission Rate - Line and Transformation Connection Service Rate | C18: $/kWh | D18: 47769542.4 | E18: 0 | F18: 1.0451
A19: GENERAL SERVICE 50 TO 999 KW | B19: Retail Transmission Rate - Network Service Rate | C19: $/kW | D19: 120479421 | E19: 356032.75 | F19: 0
A20: GENERAL SERVICE 50 TO 999 KW | B20: Retail Transmission Rate - Line and Transformation Connection Service Rate | C20: $/kW | D20: 120479421 | E20: 356032.75 | F20: 0
A21: GENERAL SERVICE 1,000 TO 4,999 KW | B21: Retail Transmission Rate - Network Service Rate | C21: $/kW | D21: 67360312 | E21: 137877.28 | F21: 0
A22: GENERAL SERVICE 1,000 TO 4,999 KW | B22: Retail Transmission Rate - Line and Transformation Connection Service Rate | C22: $/kW | D22: 67360312 | E22: 137877 | F22: 0
A23: LARGE USE | B23: Retail Transmission Rate - Network Service Rate | C23: $/kW | D23: 95010953 | E23: 164251 | F23: 0
A24: LARGE USE | B24: Retail Transmission Rate - Line and Transformation Connection Service Rate | C24: $/kW | D24: 95010953 | E24: 164251 | F24: 0
A25: STREET LIGHTING | B25: Retail Transmission Rate - Network Service Rate | C25: $/kW | D25: 2535728 | E25: 6999 | F25: 0
A26: STREET LIGHTING | B26: Retail Transmission Rate - Line and Transformation Connection Service Rate | C26: $/kW | D26: 2535728 | E26: 6999 | F26: 0
A27: SENTINEL LIGHTING | B27: Retail Transmission Rate - Network Service Rate | C27: $/kW | D27: 260975 | E27: 261 | F27: 0
A28: SENTINEL LIGHTING | B28: Retail Transmission Rate - Line and Transformation Connection Service Rate | C28: $/kW | D28: 260975 | E28: 261 | F28: 0
A29: UNMETERED SCATTERED LOAD | B29: Retail Transmission Rate - Network Service Rate | C29: $/kWh | D29: 538153 | E29: 0 | F29: 1.0451
A30: UNMETERED SCATTERED LOAD | B30: Retail Transmission Rate - Line and Transformation Connection Service Rate | C30: $/kWh | D30: 538153 | E30: 0 | F30: 1.0451
A31: EMBEDDED DISTRIBUTOR | B31: Retail Transmission Rate - Network Service Rate | C31: $/kW | D31: 16582303 | E31: 36588.4 | F31: 0
A32: EMBEDDED DISTRIBUTOR | B32: Retail Transmission Rate - Line and Transformation Connection Service Rate | C32: $/kW | D32: 16582303 | E32: 36588.4 | F32: 0

Sheet 15. RTSR - UTRs & Sub-Tx
B18: Uniform Transmission Rates | C18: Unit | E18: Effective January 1, 2013 | G18: Effective January 1, 2014 | I18: Effective January 1, 2015
B20: Rate Description | E20: Rate | G20: Rate | I20: Rate
B22: Network Service Rate | C22: kW | E22: 3.63 | G22: 3.82 | I22: 3.78
B24: Line Connection Service Rate | C24: kW | E24: 0.75 | G24: 0.82 | I24: 0.86
B26: Transformation Connection Service Rate | C26: kW | E26: 1.85 | G26: 1.98 | I26: 2
B29: Hydro One Sub-Transmission Rates | C29: Unit | E29: Effective January 1, 2013 | G29: Effective January 1, 2014 | I29: Effective January 1, 2015
B33: Rate Description | E33: Rate | G33: Rate | I33: Rate
B35: Network Service Rate | C35: kW | E35: 3.18 | G35: 3.23 | I35: =+G35 -> 3.23
B37: Line Connection Service Rate | C37: kW | E37: 0.7 | G37: 0.65 | I37: =+G37 -> 0.65
B39: Transformation Connection Service Rate | C39: kW | E39: 1.63 | G39: 1.62 | I39: =+G39 -> 1.62
B41: Both Line and Transformation Connection Service Rate | C41: kW | E41: =E39+E37 -> 2.33 | G41: =G39+G37 -> 2.27 | I41: =I39+I37 -> 2.27
B44: If needed , add extra host here (I) | C44: Unit | E44: Effective January 1, 2013 | G44: Effective January 1, 2014 | I44: Effective January 1, 2015
B48: Rate Description | E48: Rate | G48: Rate | I48: Rate
B50: Network Service Rate | C50: kW
B52: Line Connection Service Rate | C52: kW
B54: Transformation Connection Service Rate | C54: kW
B56: Both Line and Transformation Connection Service Rate | C56: kW | E56: =E54+E52 -> 0 | G56: =G54+G52 -> 0 | I56: =I54+I52 -> 0
B59: If needed , add extra host here (II) | C59: Unit | E59: Effective January 1, 2013 | G59: Effective January 1, 2014 | I59: Effective January 1, 2015
B63: Rate Description | E63: Rate | G63: Rate | I63: Rate
B65: Network Service Rate | C65: kW
B67: Line Connection Service Rate | C67: kW
B69: Transformation Connection Service Rate | C69: kW
B71: Both Line and Transformation Connection Service Rate | C71: kW | E71: =E69+E67 -> 0 | G71: =G69+G67 -> 0 | I71: =I69+I67 -> 0
B75: Hydro One Sub-Transmission Rate Rider 9A | C75: Unit | E75: Effective January 1, 2013 | G75: Effective January 1, 2014 | I75: Effective January 1, 2015
B77: Rate Description | E77: Rate | G77: Rate | I77: Rate
B79: RSVA Transmission network – 4714 – which affects 1584 | C79: kW | E79: 0 | G79: 0.1465
B81: RSVA Transmission connection – 4716 – which affects 1586 | C81: kW | E81: 0 | G81: 0.0667
B83: RSVA LV – 4750 – which affects 1550 | C83: kW | E83: 0 | G83: 0.0475
B85: RARA 1 – 2252 – which affects 1590 | C85: kW | E85: 0 | G85: 0.0419
B87: RARA 1 – 2252 – which affects 1590 (2008) | C87: kW | E87: 0 | G87: -0.027
B89: RARA 1 – 2252 – which affects 1590 (2009) | C89: kW | E89: 0 | G89: -0.0006
B91: Hydro One Sub-Transmission Rate Rider 9A | C91: kW | E91: =SUM(E79:E89) -> 0 | G91: =SUM(G79:G89) -> 0.275 | I91: =SUM(I79:I89) -> 0
E94: Historical 2013 | G94: Current 2014 | I94: Forecast 2015
B95: Low Voltage Switchgear Credit (if applicable, enter as a negative value) | C95: $

Sheet 16. RTSR - Historical Wholesale
B13: In the green shaded cells, enter billing detail for wholesale transmission for the same reporting period as the billing determinants on Sheet "14. RTSR RRR Data". For Hydro One Sub-transmission Rates, if you are charged a combined Line and Transformer connection rate, please ensure that both the line connection and transformer connection columns are completed.
B16: IESO | D16: Network | H16: Line Connection | L16: Transformation Connection | P16: Total Line
B17: Month | D17: Units Billed | E17: Rate | F17: Amount | H17: Units Billed | I17: Rate | J17: Amount | L17: Units Billed | M17: Rate | N17: Amount | P17: Amount
B19: January | D19: =F19/E19 -> 8951 | E19: 3.63 | F19: 32492.13 | H19: =J19/I19 -> 9591 | I19: 0.75 | J19: 7193.25 | L19: =N19/M19 -> 9591 | M19: 1.85 | N19: 17743.35 | P19: =J19+N19 -> 24936.6
B20: February | D20: =F20/E20 -> 8712 | E20: 3.63 | F20: 31624.56 | H20: =J20/I20 -> 9052 | I20: 0.75 | J20: 6789 | L20: =N20/M20 -> 9052 | M20: 1.85 | N20: 16746.2 | P20: 23535.2
B21: March | D21: 8227 | E21: 3.63 | F21: 29864.01 | H21: 8662 | I21: 0.75 | J21: 6496.5 | L21: 8662 | M21: 1.85 | N21: 16024.7 | P21: 22521.2
B22: April | D22: 7498 | E22: 3.63 | F22: 27217.74 | H22: 8326 | I22: 0.75 | J22: 6244.5 | L22: 8326 | M22: 1.85 | N22: 15403.1 | P22: 21647.6
B23: May | D23: 8294 | E23: 3.63 | F23: 30107.22 | H23: 9048 | I23: 0.75 | J23: 6786 | L23: 9048 | M23: 1.85 | N23: 16738.8 | P23: 23524.8
B24: June | D24: 9724 | E24: 3.63 | F24: 35298.12 | H24: 10051 | I24: 0.75 | J24: 7538.25 | L24: 10051 | M24: 1.85 | N24: 18594.35 | P24: 26132.6
B25: July | D25: 12343 | E25: 3.63 | F25: 44805.09 | H25: 14521 | I25: 0.75 | J25: 10890.75 | L25: 14521 | M25: 1.85 | N25: 26863.85 | P25: 37754.6
B26: August | D26: 9834 | E26: 3.63 | F26: 35697.42 | H26: 10345 | I26: 0.75 | J26: 7758.75 | L26: 10345 | M26: 1.85 | N26: 19138.25 | P26: 26897
B27: September | D27: 9729 | E27: 3.63 | F27: 35316.27 | H27: 10532 | I27: 0.75 | J27: 7899 | L27: 10532 | M27: 1.85 | N27: 19484.2 | P27: 27383.2
B28: October | D28: 7848 | E28: 3.63 | F28: 28488.24 | H28: 8519 | I28: 0.75 | J28: 6389.25 | L28: 8519 | M28: 1.85 | N28: 15760.15 | P28: 22149.4
B29: November | D29: 8845 | E29: 3.63 | F29: 32107.35 | H29: 8845 | I29: 0.75 | J29: 6633.75 | L29: 8845 | M29: 1.85 | N29: 16363.25 | P29: 22997
B30: December | D30: 9445 | E30: 3.63 | F30: 34285.35 | H30: 9886 | I30: 0.75 | J30: 7414.5 | L30: 9886 | M30: 1.85 | N30: 18289.1 | P30: 25703.6
B32: Total | D32: =SUM(D19:D30) -> 109450 | E32: =IF(D32<>0,F32/D32,0) -> 3.63 | F32: =SUM(F19:F30) -> 397303.5 | H32: =SUM(H19:H30) -> 117378 | I32: =IF(H32<>0,J32/H32,0) -> 0.75 | J32: =SUM(J19:J30) -> 88033.5 | L32: =SUM(L19:L30) -> 117378 | M32: =IF(L32<>0,N32/L32,0) -> 1.85 | N32: =SUM(N19:N30) -> 217149.3 | P32: =SUM(P19:P30) -> 305182.8
B34: Hydro One | D34: Network | H34: Line Connection | L34: Transformation Connection | P34: Total Line
B36: Month | D36: Units Billed | E36: Rate | F36: Amount | H36: Units Billed | I36: Rate | J36: Amount | L36: Units Billed | M36: Rate | N36: Amount | P36: Amount
B38: January | D38: =F38/E38 -> 72735 | E38: 3.18 | F38: 231297.3 | H38: =J38/I38 -> 72969.27143 | I38: 0.7 | J38: 51078.49 | L38: =N38/M38 -> 67364.30675 | M38: 1.63 | N38: 109803.82 | P38: =J38+N38 -> 160882.31
B39: February | D39: =F39/E39 -> 68853 | E39: 3.18 | F39: 218952.54 | H39: =J39/I39 -> 69180 | I39: 0.7 | J39: 48426 | L39: =N39/M39 -> 64107 | M39: 1.63 | N39: 104494.41 | P39: 152920.41
B40: March | D40: 64922 | E40: 3.18 | F40: 206451.96 | H40: 65508 | I40: 0.7 | J40: 45855.6 | L40: 60793 | M40: 1.63 | N40: 99092.59 | P40: 144948.19
B41: April | D41: 62237.44969 | E41: 3.18 | F41: 197915.09 | H41: 63002.22857 | I41: 0.7 | J41: 44101.56 | L41: 58648.57055 | M41: 1.63 | N41: 95597.17 | P41: 139698.73
B42: May | D42: 67713.69811 | E42: 3.18 | F42: 215329.56 | H42: 68269.5 | I42: 0.7 | J42: 47788.65 | L42: 63532.22086 | M42: 1.63 | N42: 103557.52 | P42: 151346.17
B43: June | D43: 75833.44969 | E43: 3.18 | F43: 241150.37 | H43: 76784.48571 | I43: 0.7 | J43: 53749.14 | L43: 71504.00613 | M43: 1.63 | N43: 116551.53 | P43: 170300.67
B44: July | D44: 83468.46855 | E44: 3.18 | F44: 265429.73 | H44: 85008.58571 | I44: 0.7 | J44: 59506.01 | L44: 78890.65644 | M44: 1.63 | N44: 128591.77 | P44: 188097.78
B45: August | D45: 77146.83648 | E45: 3.18 | F45: 245326.94 | H45: 78235.54286 | I45: 0.7 | J45: 54764.88 | L45: 72676.79141 | M45: 1.63 | N45: 118463.17 | P45: 173228.05
B46: September | D46: 79964.93711 | E46: 3.18 | F46: 254288.5 | H46: 80393 | I46: 0.7 | J46: 56275.1 | L46: 74651.2638 | M46: 1.63 | N46: 121681.56 | P46: 177956.66
B47: October | D47: 62986.27044 | E47: 3.18 | F47: 200296.34 | H47: 63668.71429 | I47: 0.7 | J47: 44568.1 | L47: 58904.42945 | M47: 1.63 | N47: 96014.22 | P47: 140582.32
B48: November | D48: 69278.60063 | E48: 3.18 | F48: 220305.95 | H48: 69423.45714 | I48: 0.7 | J48: 48596.42 | L48: 63613.11043 | M48: 1.63 | N48: 103689.37 | P48: 152285.79
B49: December | D49: 73277.72013 | E49: 3.18 | F49: 233023.15 | H49: 72818.67143 | I49: 0.7 | J49: 50973.07 | L49: 67582.9816 | M49: 1.63 | N49: 110160.26 | P49: 161133.33
B51: Total | D51: =SUM(D38:D49) -> 858417.4308 | E51: =IF(D51<>0,F51/D51,0) -> 3.18 | F51: =SUM(F38:F49) -> 2729767.43 | H51: =SUM(H38:H49) -> 865261.4571 | I51: =IF(H51<>0,J51/H51,0) -> 0.7 | J51: =SUM(J38:J49) -> 605683.02 | L51: =SUM(L38:L49) -> 802268.3374 | M51: =IF(L51<>0,N51/L51,0) -> 1.63 | N51: =SUM(N38:N49) -> 1307697.39 | P51: =SUM(P38:P49) -> 1913380.41
B53: Add Extra Host Here (I) | D53: Network | H53: Line Connection | L53: Transformation Connection | P53: Total Line
B54: (if needed)
B55: Month | D55: Units Billed | E55: Rate | F55: Amount | H55: Units Billed | I55: Rate | J55: Amount | L55: Units Billed | M55: Rate | N55: Amount | P55: Amount
B57: January | E57: =IF(D57<>0,F57/D57,0) -> 0 | I57: =IF(H57<>0,J57/H57,0) -> 0 | M57: =IF(L57<>0,N57/L57,0) -> 0 | P57: =J57+N57 -> 0
B58: February | E58: 0 | I58: 0 | M58: 0 | P58: 0
B59: March | E59: 0 | I59: 0 | M59: 0 | P59: 0
B60: April | E60: 0 | I60: 0 | M60: 0 | P60: 0
B61: May | E61: 0 | I61: 0 | M61: 0 | P61: 0
B62: June | E62: 0 | I62: 0 | M62: 0 | P62: 0
B63: July | E63: 0 | I63: 0 | M63: 0 | P63: 0
B64: August | E64: 0 | I64: 0 | M64: 0 | P64: 0
B65: September | E65: 0 | I65: 0 | M65: 0 | P65: 0
B66: October | E66: 0 | I66: 0 | M66: 0 | P66: 0
B67: November | E67: 0 | I67: 0 | M67: 0 | P67: 0
B68: December | E68: 0 | I68: 0 | M68: 0 | P68: 0
B70: Total | D70: =SUM(D57:D68) -> 0 | E70: =IF(D70<>0,F70/D70,0) -> 0 | F70: =SUM(F57:F68) -> 0 | H70: =SUM(H57:H68) -> 0 | I70: =IF(H70<>0,J70/H70,0) -> 0 | J70: =SUM(J57:J68) -> 0 | L70: =SUM(L57:L68) -> 0 | M70: =IF(L70<>0,N70/L70,0) -> 0 | N70: =SUM(N57:N68) -> 0 | P70: =SUM(P57:P68) -> 0
B72: Add Extra Host Here (II) | D72: Network | H72: Line Connection | L72: Transformation Connection | P72: Total Line
B73: (if needed)
B74: Month | D74: Units Billed | E74: Rate | F74: Amount | H74: Units Billed | I74: Rate | J74: Amount | L74: Units Billed | M74: Rate | N74: Amount | P74: Amount
B76: January | E76: =IF(D76<>0,F76/D76,0) -> 0 | I76: =IF(H76<>0,J76/H76,0) -> 0 | M76: =IF(L76<>0,N76/L76,0) -> 0 | P76: =J76+N76 -> 0
B77: February | E77: 0 | I77: 0 | M77: 0 | P77: 0
B78: March | E78: 0 | I78: 0 | M78: 0 | P78: 0
B79: April | E79: 0 | I79: 0 | M79: 0 | P79: 0
B80: May | E80: 0 | I80: 0 | M80: 0 | P80: 0
B81: June | E81: 0 | I81: 0 | M81: 0 | P81: 0
B82: July | E82: 0 | I82: 0 | M82: 0 | P82: 0
B83: August | E83: 0 | I83: 0 | M83: 0 | P83: 0
B84: September | E84: 0 | I84: 0 | M84: 0 | P84: 0
B85: October | E85: 0 | I85: 0 | M85: 0 | P85: 0
B86: November | E86: 0 | I86: 0 | M86: 0 | P86: 0
B87: December | E87: 0 | I87: 0 | M87: 0 | P87: 0
B89: Total | D89: =SUM(D76:D87) -> 0 | E89: =IF(D89<>0,F89/D89,0) -> 0 | F89: =SUM(F76:F87) -> 0 | H89: =SUM(H76:H87) -> 0 | I89: =IF(H89<>0,J89/H89,0) -> 0 | J89: =SUM(J76:J87) -> 0 | L89: =SUM(L76:L87) -> 0 | M89: =IF(L89<>0,N89/L89,0) -> 0 | N89: =SUM(N76:N87) -> 0 | P89: =SUM(P76:P87) -> 0
B91: Total | D91: Network | H91: Line Connection | L91: Transformation Connection | P91: Total Line
B93: Month | D93: Units Billed | E93: Rate | F93: Amount | H93: Units Billed | I93: Rate | J93: Amount | L93: Units Billed | M93: Rate | N93: Amount | P93: Amount
B95: January | D95: =D19+D38+D57+D76 -> 81686 | E95: =IF(D95<>0,F95/D95,0) -> 3.229310163 | F95: =F19+F38+F57+F76 -> 263789.43 | H95: =H19+H38+H57+H76 -> 82560.27143 | I95: =IF(H95<>0,J95/H95,0) -> 0.7058084838 | J95: =J19+J38+J57+J76 -> 58271.74 | L95: =L19+L38+L57+L76 -> 76955.30675 | M95: =IF(L95<>0,N95/L95,0) -> 1.657418772 | N95: =N19+N38+N57+N76 -> 127547.17 | P95: =J95+N95 -> 185818.91
B96: February | D96: =D20+D39+D58+D77 -> 77565 | E96: 3.230543415 | F96: =F20+F39+F58+F77 -> 250577.1 | H96: =H20+H39+H58+H77 -> 78232 | I96: 0.7057853564 | J96: =J20+J39+J58+J77 -> 55215 | L96: =L20+L39+L58+L77 -> 73159 | M96: 1.657220711 | N96: =N20+N39+N58+N77 -> 121240.61 | P96: 176455.61
B97: March | D97: 73149 | E97: 3.230611081 | F97: 236315.97 | H97: 74170 | I97: 0.7058392881 | J97: 52352.1 | L97: 69455 | M97: 1.657437046 | N97: 115117.29 | P97: 167469.39
B98: April | D98: 69735.44969 | E98: 3.228384287 | F98: 225132.83 | H98: 71328.22857 | I98: 0.705836399 | J98: 50346.06 | L98: 66974.57055 | M98: 1.657349485 | N98: 111000.27 | P98: 161346.33
B99: May | D99: 76007.69811 | E99: 3.229104237 | F99: 245436.78 | H99: 77317.5 | I99: 0.705851198 | J99: 54574.65 | L99: 72580.22086 | M99: 1.657425654 | N99: 120296.32 | P99: 174870.97
B100: June | D100: 85557.44969 | E100: 3.231144582 | F100: 276448.49 | H100: 86835.48571 | I100: 0.7057873805 | J100: 61287.39 | L100: 81555.00613 | M100: 1.657113234 | N100: 135145.88 | P100: 196433.27
B101: July | D101: 95811.46855 | E101: 3.237971661 | F101: 310234.82 | H101: 99529.58571 | I101: 0.7072948159 | J101: 70396.76 | L101: 93411.65644 | M101: 1.664199372 | N101: 155455.62 | P101: 225852.38
B102: August | D102: 86980.83648 | E102: 3.230876724 | F102: 281024.36 | H102: 88580.54286 | I102: 0.7058393185 | J102: 62523.63 | L102: 83021.79141 | M102: 1.657413285 | N102: 137601.42 | P102: 200125.05
B103: September | D103: 89693.93711 | E103: 3.228810991 | F103: 289604.77 | H103: 90925 | I103: 0.7057915865 | J103: 64174.1 | L103: 85183.2638 | M103: 1.657200648 | N103: 141165.76 | P103: 205339.86
B104: October | D104: 70834.27044 | E104: 3.229857223 | F104: 228784.58 | H104: 72187.71429 | I104: 0.7059005885 | J104: 50957.35 | L104: 67423.42945 | M104: 1.657797162 | N104: 111774.37 | P104: 162731.72
B105: November | D105: 78123.60063 | E105: 3.230948113 | F105: 252413.3 | H105: 78268.45714 | I105: 0.7056504244 | J105: 55230.17 | L105: 72458.11043 | M105: 1.656855517 | N105: 120052.62 | P105: 175282.79
B106: December | D106: 82722.72013 | E106: 3.231379476 | F106: 267308.5 | H106: 82704.67143 | I106: 0.7059766878 | J106: 58387.57 | L106: 77468.9816 | M106: 1.65807472 | N106: 128449.36 | P106: 186836.93
B108: Total | D108: =SUM(D95:D106) -> 967867.4308 | E108: =IF(D108<>0,F108/D108,0) -> 3.230887651 | F108: =SUM(F95:F106) -> 3127070.93 | H108: =SUM(H95:H106) -> 982639.4571 | I108: =IF(H108<>0,J108/H108,0) -> 0.7059725874 | J108: =SUM(J95:J106) -> 693716.52 | L108: =SUM(L95:L106) -> 919646.3374 | M108: =IF(L108<>0,N108/L108,0) -> 1.658079446 | N108: =SUM(N95:N106) -> 1524846.69 | P108: =SUM(P95:P106) -> 2218563.21
N110: Transformer Allowance Credit (if applicable) | P110: ='15. RTSR - UTRs & Sub-Tx'!E95 -> 0
N112: Total including deduction for Transformer Allowance Credit | P112: =P108+P110 -> 2218563.21

Sheet 17. RTSR - Current Wholesale
B13: The purpose of this sheet is to calculate the expected billing when current 2014 Uniform Transmission Rates are applied against historical 2013 transmission units.
B16: IESO | D16: Network | H16: Line Connection | L16: Transformation Connection | P16: Total Line
B18: Month | D18: Units Billed | E18: Rate | F18: Amount | H18: Units Billed | I18: Rate | J18: Amount | L18: Units Billed | M18: Rate | N18: Amount | P18: Amount
B20: January | D20: ='16. RTSR - Historical Wholesale'!D19 -> 8951 | E20: ='15. RTSR - UTRs & Sub-Tx'!G22 -> 3.82 | F20: =D20*E20 -> 34192.82 | H20: ='16. RTSR - Historical Wholesale'!H19 -> 9591 | I20: ='15. RTSR - UTRs & Sub-Tx'!G24 -> 0.82 | J20: =H20*I20 -> 7864.62 | L20: ='16. RTSR - Historical Wholesale'!L19 -> 9591 | M20: ='15. RTSR - UTRs & Sub-Tx'!G26 -> 1.98 | N20: =L20*M20 -> 18990.18 | P20: =J20+N20 -> 26854.8
B21: February | D21: ='16. RTSR - Historical Wholesale'!D20 -> 8712 | E21: =E20 -> 3.82 | F21: =D21*E21 -> 33279.84 | H21: ='16. RTSR - Historical Wholesale'!H20 -> 9052 | I21: =I20 -> 0.82 | J21: =H21*I21 -> 7422.64 | L21: ='16. RTSR - Historical Wholesale'!L20 -> 9052 | M21: =M20 -> 1.98 | N21: =L21*M21 -> 17922.96 | P21: 25345.6
B22: March | D22: ='16. RTSR - Historical Wholesale'!D21 -> 8227 | E22: =E21 -> 3.82 | F22: 31427.14 | H22: ='16. RTSR - Historical Wholesale'!H21 -> 8662 | I22: =I21 -> 0.82 | J22: 7102.84 | L22: ='16. RTSR - Historical Wholesale'!L21 -> 8662 | M22: =M21 -> 1.98 | N22: 17150.76 | P22: 24253.6
B23: April | D23: ='16. RTSR - Historical Wholesale'!D22 -> 7498 | E23: 3.82 | F23: 28642.36 | H23: ='16. RTSR - Historical Wholesale'!H22 -> 8326 | I23: 0.82 | J23: 6827.32 | L23: ='16. RTSR - Historical Wholesale'!L22 -> 8326 | M23: 1.98 | N23: 16485.48 | P23: 23312.8
B24: May | D24: ='16. RTSR - Historical Wholesale'!D23 -> 8294 | E24: 3.82 | F24: 31683.08 | H24: ='16. RTSR - Historical Wholesale'!H23 -> 9048 | I24: 0.82 | J24: 7419.36 | L24: ='16. RTSR - Historical Wholesale'!L23 -> 9048 | M24: 1.98 | N24: 17915.04 | P24: 25334.4
B25: June | D25: ='16. RTSR - Historical Wholesale'!D24 -> 9724 | E25: 3.82 | F25: 37145.68 | H25: ='16. RTSR - Historical Wholesale'!H24 -> 10051 | I25: 0.82 | J25: 8241.82 | L25: ='16. RTSR - Historical Wholesale'!L24 -> 10051 | M25: 1.98 | N25: 19900.98 | P25: 28142.8
B26: July | D26: ='16. RTSR - Historical Wholesale'!D25 -> 12343 | E26: 3.82 | F26: 47150.26 | H26: ='16. RTSR - Historical Wholesale'!H25 -> 14521 | I26: 0.82 | J26: 11907.22 | L26: ='16. RTSR - Historical Wholesale'!L25 -> 14521 | M26: 1.98 | N26: 28751.58 | P26: 40658.8
B27: August | D27: ='16. RTSR - Historical Wholesale'!D26 -> 9834 | E27: 3.82 | F27: 37565.88 | H27: ='16. RTSR - Historical Wholesale'!H26 -> 10345 | I27: 0.82 | J27: 8482.9 | L27: ='16. RTSR - Historical Wholesale'!L26 -> 10345 | M27: 1.98 | N27: 20483.1 | P27: 28966
B28: September | D28: ='16. RTSR - Historical Wholesale'!D27 -> 9729 | E28: 3.82 | F28: 37164.78 | H28: ='16. RTSR - Historical Wholesale'!H27 -> 10532 | I28: 0.82 | J28: 8636.24 | L28: ='16. RTSR - Historical Wholesale'!L27 -> 10532 | M28: 1.98 | N28: 20853.36 | P28: 29489.6
B29: October | D29: ='16. RTSR - Historical Wholesale'!D28 -> 7848 | E29: 3.82 | F29: 29979.36 | H29: ='16. RTSR - Historical Wholesale'!H28 -> 8519 | I29: 0.82 | J29: 6985.58 | L29: ='16. RTSR - Historical Wholesale'!L28 -> 8519 | M29: 1.98 | N29: 16867.62 | P29: 23853.2
B30: November | D30: ='16. RTSR - Historical Wholesale'!D29 -> 8845 | E30: 3.82 | F30: 33787.9 | H30: ='16. RTSR - Historical Wholesale'!H29 -> 8845 | I30: 0.82 | J30: 7252.9 | L30: ='16. RTSR - Historical Wholesale'!L29 -> 8845 | M30: 1.98 | N30: 17513.1 | P30: 24766
B31: December | D31: ='16. RTSR - Historical Wholesale'!D30 -> 9445 | E31: 3.82 | F31: 36079.9 | H31: ='16. RTSR - Historical Wholesale'!H30 -> 9886 | I31: 0.82 | J31: 8106.52 | L31: ='16. RTSR - Historical Wholesale'!L30 -> 9886 | M31: 1.98 | N31: 19574.28 | P31: 27680.8
B33: Total | D33: =SUM(D20:D31) -> 109450 | E33: =IF(D33<>0,F33/D33,0) -> 3.82 | F33: =SUM(F20:F31) -> 418099 | H33: =SUM(H20:H31) -> 117378 | I33: =IF(H33<>0,J33/H33,0) -> 0.82 | J33: =SUM(J20:J31) -> 96249.96 | L33: =SUM(L20:L31) -> 117378 | M33: =IF(L33<>0,N33/L33,0) -> 1.98 | N33: =SUM(N20:N31) -> 232408.44 | P33: =SUM(P20:P31) -> 328658.4
B35: Hydro One | D35: Network | H35: Line Connection | L35: Transformation Connection | P35: Total Line
B37: Month | D37: Units Billed | E37: Rate | F37: Amount | H37: Units Billed | I37: Rate | J37: Amount | L37: Units Billed | M37: Rate | N37: Amount | P37: Amount
B39: January | D39: ='16. RTSR - Historical Wholesale'!D38 -> 72735 | E39: ='15. RTSR - UTRs & Sub-Tx'!G35+'15. RTSR - UTRs & Sub-Tx'!G79 -> 3.3765 | F39: =D39*E39 -> 245589.7275 | H39: ='16. RTSR - Historical Wholesale'!H38 -> 72969.27143 | I39: ='15. RTSR - UTRs & Sub-Tx'!G37+'15. RTSR - UTRs & Sub-Tx'!G81 -> 0.7167 | J39: =H39*I39 -> 52297.07683 | L39: ='16. RTSR - Historical Wholesale'!L38 -> 67364.30675 | M39: ='15. RTSR - UTRs & Sub-Tx'!G39 -> 1.62 | N39: =L39*M39 -> 109130.1769 | P39: =J39+N39 -> 161427.2538
B40: February | D40: ='16. RTSR - Historical Wholesale'!D39 -> 68853 | E40: =E39 -> 3.3765 | F40: =D40*E40 -> 232482.1545 | H40: ='16. RTSR - Historical Wholesale'!H39 -> 69180 | I40: =I39 -> 0.7167 | J40: =H40*I40 -> 49581.306 | L40: ='16. RTSR - Historical Wholesale'!L39 -> 64107 | M40: =M39 -> 1.62 | N40: =L40*M40 -> 103853.34 | P40: 153434.646
B41: March | D41: ='16. RTSR - Historical Wholesale'!D40 -> 64922 | E41: =E40 -> 3.3765 | F41: 219209.133 | H41: ='16. RTSR - Historical Wholesale'!H40 -> 65508 | I41: =I40 -> 0.7167 | J41: 46949.5836 | L41: ='16. RTSR - Historical Wholesale'!L40 -> 60793 | M41: =M40 -> 1.62 | N41: 98484.66 | P41: 145434.2436
B42: April | D42: ='16. RTSR - Historical Wholesale'!D41 -> 62237.44969 | E42: 3.3765 | F42: 210144.7489 | H42: ='16. RTSR - Historical Wholesale'!H41 -> 63002.22857 | I42: 0.7167 | J42: 45153.69722 | L42: ='16. RTSR - Historical Wholesale'!L41 -> 58648.57055 | M42: =M41 -> 1.62 | N42: 95010.68429 | P42: 140164.3815
B43: May | D43: ='16. RTSR - Historical Wholesale'!D42 -> 67713.69811 | E43: 3.3765 | F43: 228635.3017 | H43: ='16. RTSR - Historical Wholesale'!H42 -> 68269.5 | I43: 0.7167 | J43: 48928.75065 | L43: ='16. RTSR - Historical Wholesale'!L42 -> 63532.22086 | M43: 1.62 | N43: 102922.1978 | P43: 151850.9484
B44: June | D44: ='16. RTSR - Historical Wholesale'!D43 -> 75833.44969 | E44: 3.3765 | F44: 256051.6429 | H44: ='16. RTSR - Historical Wholesale'!H43 -> 76784.48571 | I44: 0.7167 | J44: 55031.44091 | L44: ='16. RTSR - Historical Wholesale'!L43 -> 71504.00613 | M44: 1.62 | N44: 115836.4899 | P44: 170867.9309
B45: July | D45: ='16. RTSR - Historical Wholesale'!D44 -> 83468.46855 | E45: 3.3765 | F45: 281831.2841 | H45: ='16. RTSR - Historical Wholesale'!H44 -> 85008.58571 | I45: 0.7167 | J45: 60925.65338 | L45: ='16. RTSR - Historical Wholesale'!L44 -> 78890.65644 | M45: 1.62 | N45: 127802.8634 | P45: 188728.5168
B46: August | D46: ='16. RTSR - Historical Wholesale'!D45 -> 77146.83648 | E46: 3.3765 | F46: 260486.2934 | H46: ='16. RTSR - Historical Wholesale'!H45 -> 78235.54286 | I46: 0.7167 | J46: 56071.41357 | L46: ='16. RTSR - Historical Wholesale'!L45 -> 72676.79141 | M46: 1.62 | N46: 117736.4021 | P46: 173807.8157
B47: September | D47: ='16. RTSR - Historical Wholesale'!D46 -> 79964.93711 | E47: 3.3765 | F47: 270001.6101 | H47: ='16. RTSR - Historical Wholesale'!H46 -> 80393 | I47: 0.7167 | J47: 57617.6631 | L47: ='16. RTSR - Historical Wholesale'!L46 -> 74651.2638 | M47: 1.62 | N47: 120935.0474 | P47: 178552.7105
B48: October | D48: ='16. RTSR - Historical Wholesale'!D47 -> 62986.27044 | E48: 3.3765 | F48: 212673.1421 | H48: ='16. RTSR - Historical Wholesale'!H47 -> 63668.71429 | I48: 0.7167 | J48: 45631.36753 | L48: ='16. RTSR - Historical Wholesale'!L47 -> 58904.42945 | M48: 1.62 | N48: 95425.17571 | P48: 141056.5432
B49: November | D49: ='16. RTSR - Historical Wholesale'!D48 -> 69278.60063 | E49: 3.3765 | F49: 233919.195 | H49: ='16. RTSR - Historical Wholesale'!H48 -> 69423.45714 | I49: 0.7167 | J49: 49755.79173 | L49: ='16. RTSR - Historical Wholesale'!L48 -> 63613.11043 | M49: 1.62 | N49: 103053.2389 | P49: 152809.0306
B50: December | D50: ='16. RTSR - Historical Wholesale'!D49 -> 73277.72013 | E50: 3.3765 | F50: 247422.222 | H50: ='16. RTSR - Historical Wholesale'!H49 -> 72818.67143 | I50: 0.7167 | J50: 52189.14181 | L50: ='16. RTSR - Historical Wholesale'!L49 -> 67582.9816 | M50: 1.62 | N50: 109484.4302 | P50: 161673.572
B52: Total | D52: =SUM(D39:D50) -> 858417.4308 | E52: =IF(D52<>0,F52/D52,0) -> 3.3765 | F52: =SUM(F39:F50) -> 2898446.455 | H52: =SUM(H39:H50) -> 865261.4571 | I52: =IF(H52<>0,J52/H52,0) -> 0.7167 | J52: =SUM(J39:J50) -> 620132.8863 | L52: =SUM(L39:L50) -> 802268.3374 | M52: =IF(L52<>0,N52/L52,0) -> 1.62 | N52: =SUM(N39:N50) -> 1299674.707 | P52: =SUM(P39:P50) -> 1919807.593
B54: ='16. RTSR - Historical Wholesale'!B53 -> Add Extra Host Here (I) | D54: Network | H54: Line Connection | L54: Transformation Connection | P54: Total Line
B56: Month | D56: Units Billed | E56: Rate | F56: Amount | H56: Units Billed | I56: Rate | J56: Amount | L56: Units Billed | M56: Rate | N56: Amount | P56: Amount
B58: January | D58: ='16. RTSR - Historical Wholesale'!D57 -> 0 | E58: ='15. RTSR - UTRs & Sub-Tx'!G50 -> 0 | F58: =D58*E58 -> 0 | H58: ='16. RTSR - Historical Wholesale'!H57 -> 0 | I58: ='15. RTSR - UTRs & Sub-Tx'!G52 -> 0 | J58: =H58*I58 -> 0 | L58: ='16. RTSR - Historical Wholesale'!L57 -> 0 | M58: ='15. RTSR - UTRs & Sub-Tx'!G54 -> 0 | N58: =L58*M58 -> 0 | P58: =J58+N58 -> 0
B59: February | D59: ='16. RTSR - Historical Wholesale'!D58 -> 0 | E59: =E58 -> 0 | F59: =D59*E59 -> 0 | H59: ='16. RTSR - Historical Wholesale'!H58 -> 0 | I59: =I58 -> 0 | J59: =H59*I59 -> 0 | L59: ='16. RTSR - Historical Wholesale'!L58 -> 0 | M59: =M58 -> 0 | N59: =L59*M59 -> 0 | P59: 0
B60: March | D60: ='16. RTSR - Historical Wholesale'!D59 -> 0 | E60: =E59 -> 0 | F60: 0 | H60: ='16. RTSR - Historical Wholesale'!H59 -> 0 | I60: =I59 -> 0 | J60: 0 | L60: ='16. RTSR - Historical Wholesale'!L59 -> 0 | M60: =M59 -> 0 | N60: 0 | P60: 0
B61: April | D61: ='16. RTSR - Historical Wholesale'!D60 -> 0 | E61: 0 | F61: 0 | H61: ='16. RTSR - Historical Wholesale'!H60 -> 0 | I61: 0 | J61: 0 | L61: ='16. RTSR - Historical Wholesale'!L60 -> 0 | M61: =M60 -> 0 | N61: 0 | P61: 0
B62: May | D62: ='16. RTSR - Historical Wholesale'!D61 -> 0 | E62: 0 | F62: 0 | H62: ='16. RTSR - Historical Wholesale'!H61 -> 0 | I62: 0 | J62: 0 | L62: ='16. RTSR - Historical Wholesale'!L61 -> 0 | M62: 0 | N62: 0 | P62: 0
B63: June | D63: ='16. RTSR - Historical Wholesale'!D62 -> 0 | E63: 0 | F63: 0 | H63: ='16. RTSR - Historical Wholesale'!H62 -> 0 | I63: 0 | J63: 0 | L63: ='16. RTSR - Historical Wholesale'!L62 -> 0 | M63: 0 | N63: 0 | P63: 0
B64: July | D64: ='16. RTSR - Historical Wholesale'!D63 -> 0 | E64: 0 | F64: 0 | H64: ='16. RTSR - Historical Wholesale'!H63 -> 0 | I64: 0 | J64: 0 | L64: ='16. RTSR - Historical Wholesale'!L63 -> 0 | M64: 0 | N64: 0 | P64: 0
B65: August | D65: ='16. RTSR - Historical Wholesale'!D64 -> 0 | E65: 0 | F65: 0 | H65: ='16. RTSR - Historical Wholesale'!H64 -> 0 | I65: 0 | J65: 0 | L65: ='16. RTSR - Historical Wholesale'!L64 -> 0 | M65: 0 | N65: 0 | P65: 0
B66: September | D66: ='16. RTSR - Historical Wholesale'!D65 -> 0 | E66: 0 | F66: 0 | H66: ='16. RTSR - Historical Wholesale'!H65 -> 0 | I66: 0 | J66: 0 | L66: ='16. RTSR - Historical Wholesale'!L65 -> 0 | M66: 0 | N66: 0 | P66: 0
B67: October | D67: ='16. RTSR - Historical Wholesale'!D66 -> 0 | E67: 0 | F67: 0 | H67: ='16. RTSR - Historical Wholesale'!H66 -> 0 | I67: 0 | J67: 0 | L67: ='16. RTSR - Historical Wholesale'!L66 -> 0 | M67: 0 | N67: 0 | P67: 0
B68: November | D68: ='16. RTSR - Historical Wholesale'!D67 -> 0 | E68: 0 | F68: 0 | H68: ='16. RTSR - Historical Wholesale'!H67 -> 0 | I68: 0 | J68: 0 | L68: ='16. RTSR - Historical Wholesale'!L67 -> 0 | M68: 0 | N68: 0 | P68: 0
B69: December | D69: ='16. RTSR - Historical Wholesale'!D68 -> 0 | E69: 0 | F69: 0 | H69: ='16. RTSR - Historical Wholesale'!H68 -> 0 | I69: 0 | J69: 0 | L69: ='16. RTSR - Historical Wholesale'!L68 -> 0 | M69: 0 | N69: 0 | P69: 0
B71: Total | D71: =SUM(D58:D69) -> 0 | E71: =IF(D71<>0,F71/D71,0) -> 0 | F71: =SUM(F58:F69) -> 0 | H71: =SUM(H58:H69) -> 0 | I71: =IF(H71<>0,J71/H71,0) -> 0 | J71: =SUM(J58:J69) -> 0 | L71: =SUM(L58:L69) -> 0 | M71: =IF(L71<>0,N71/L71,0) -> 0 | N71: =SUM(N58:N69) -> 0 | P71: =SUM(P58:P69) -> 0
B73: ='16. RTSR - Historical Wholesale'!B72 -> Add Extra Host Here (II) | D73: Network | H73: Line Connection | L73: Transformation Connection | P73: Total Line
B75: Month | D75: Units Billed | E75: Rate | F75: Amount | H75: Units Billed | I75: Rate | J75: Amount | L75: Units Billed | M75: Rate | N75: Amount | P75: Amount
B77: January | D77: ='16. RTSR - Historical Wholesale'!D76 -> 0 | E77: ='15. RTSR - UTRs & Sub-Tx'!G65 -> 0 | F77: =D77*E77 -> 0 | H77: ='16. RTSR - Historical Wholesale'!H76 -> 0 | I77: ='15. RTSR - UTRs & Sub-Tx'!G67 -> 0 | J77: =H77*I77 -> 0 | L77: ='16. RTSR - Historical Wholesale'!L76 -> 0 | M77: ='15. RTSR - UTRs & Sub-Tx'!G69 -> 0 | N77: =L77*M77 -> 0 | P77: =J77+N77 -> 0
B78: February | D78: ='16. RTSR - Historical Wholesale'!D77 -> 0 | E78: =E77 -> 0 | F78: =D78*E78 -> 0 | H78: ='16. RTSR - Historical Wholesale'!H77 -> 0 | I78: =I77 -> 0 | J78: =H78*I78 -> 0 | L78: ='16. RTSR - Historical Wholesale'!L77 -> 0 | M78: =M77 -> 0 | N78: =L78*M78 -> 0 | P78: 0
B79: March | D79: ='16. RTSR - Historical Wholesale'!D78 -> 0 | E79: =E78 -> 0 | F79: 0 | H79: ='16. RTSR - Historical Wholesale'!H78 -> 0 | I79: =I78 -> 0 | J79: 0 | L79: ='16. RTSR - Historical Wholesale'!L78 -> 0 | M79: =M78 -> 0 | N79: 0 | P79: 0
B80: April | D80: ='16. RTSR - Historical Wholesale'!D79 -> 0 | E80: 0 | F80: 0 | H80: ='16. RTSR - Historical Wholesale'!H79 -> 0 | I80: 0 | J80: 0 | L80: ='16. RTSR - Historical Wholesale'!L79 -> 0 | M80: =M79 -> 0 | N80: 0 | P80: 0
B81: May | D81: ='16. RTSR - Historical Wholesale'!D80 -> 0 | E81: 0 | F81: 0 | H81: ='16. RTSR - Historical Wholesale'!H80 -> 0 | I81: 0 | J81: 0 | L81: ='16. RTSR - Historical Wholesale'!L80 -> 0 | M81: 0 | N81: 0 | P81: 0
B82: June | D82: ='16. RTSR - Historical Wholesale'!D81 -> 0 | E82: 0 | F82: 0 | H82: ='16. RTSR - Historical Wholesale'!H81 -> 0 | I82: 0 | J82: 0 | L82: ='16. RTSR - Historical Wholesale'!L81 -> 0 | M82: 0 | N82: 0 | P82: 0
B83: July | D83: ='16. RTSR - Historical Wholesale'!D82 -> 0 | E83: 0 | F83: 0 | H83: ='16. RTSR - Historical Wholesale'!H82 -> 0 | I83: 0 | J83: 0 | L83: ='16. RTSR - Historical Wholesale'!L82 -> 0 | M83: 0 | N83: 0 | P83: 0
B84: August | D84: ='16. RTSR - Historical Wholesale'!D83 -> 0 | E84: 0 | F84: 0 | H84: ='16. RTSR - Historical Wholesale'!H83 -> 0 | I84: 0 | J84: 0 | L84: ='16. RTSR - Historical Wholesale'!L83 -> 0 | M84: 0 | N84: 0 | P84: 0
B85: September | D85: ='16. RTSR - Historical Wholesale'!D84 -> 0 | E85: 0 | F85: 0 | H85: ='16. RTSR - Historical Wholesale'!H84 -> 0 | I85: 0 | J85: 0 | L85: ='16. RTSR - Historical Wholesale'!L84 -> 0 | M85: 0 | N85: 0 | P85: 0
B86: October | D86: ='16. RTSR - Historical Wholesale'!D85 -> 0 | E86: 0 | F86: 0 | H86: ='16. RTSR - Historical Wholesale'!H85 -> 0 | I86: 0 | J86: 0 | L86: ='16. RTSR - Historical Wholesale'!L85 -> 0 | M86: 0 | N86: 0 | P86: 0
B87: November | D87: ='16. RTSR - Historical Wholesale'!D86 -> 0 | E87: 0 | F87: 0 | H87: ='16. RTSR - Historical Wholesale'!H86 -> 0 | I87: 0 | J87: 0 | L87: ='16. RTSR - Historical Wholesale'!L86 -> 0 | M87: 0 | N87: 0 | P87: 0
B88: December | D88: ='16. RTSR - Historical Wholesale'!D87 -> 0 | E88: 0 | F88: 0 | H88: ='16. RTSR - Historical Wholesale'!H87 -> 0 | I88: 0 | J88: 0 | L88: ='16. RTSR - Historical Wholesale'!L87 -> 0 | M88: 0 | N88: 0 | P88: 0
B90: Total | D90: =SUM(D77:D88) -> 0 | E90: =IF(D90<>0,F90/D90,0) -> 0 | F90: =SUM(F77:F88) -> 0 | H90: =SUM(H77:H88) -> 0 | I90: =IF(H90<>0,J90/H90,0) -> 0 | J90: =SUM(J77:J88) -> 0 | L90: =SUM(L77:L88) -> 0 | M90: =IF(L90<>0,N90/L90,0) -> 0 | N90: =SUM(N77:N88) -> 0 | P90: =SUM(P77:P88) -> 0
B92: Total | D92: Network | H92: Line Connection | L92: Transformation Connection | P92: Total Line
B94: Month | D94: Units Billed | E94: Rate | F94: Amount | H94: Units Billed | I94: Rate | J94: Amount | L94: Units Billed | M94: Rate | N94: Amount | P94: Amount
B96: January | D96: =D20+D39+D58+D77 -> 81686 | E96: =IF(D96<>0,F96/D96,0) -> 3.425097905 | F96: =F20+F39+F58+F77 -> 279782.5475 | H96: =H20+H39+H58+H77 -> 82560.27143 | I96: =IF(H96<>0,J96/H96,0) -> 0.7287003276 | J96: =J20+J39+J58+J77 -> 60161.69683 | L96: =L20+L39+L58+L77 -> 76955.30675 | M96: =IF(L96<>0,N96/L96,0) -> 1.664867081 | N96: =N20+N39+N58+N77 -> 128120.3569 | P96: =J96+N96 -> 188282.0538
B97: February | D97: =D21+D40+D59+D78 -> 77565 | E97: 3.426313344 | F97: =F21+F40+F59+F78 -> 265761.9945 | H97: =H21+H40+H59+H78 -> 78232 | I97: 0.7286525463 | J97: =J21+J40+J59+J78 -> 57003.946 | L97: =L21+L40+L59+L78 -> 73159 | M97: 1.664542982 | N97: =N21+N40+N59+N78 -> 121776.3 | P97: 178780.246
B98: March | D98: 73149 | E98: 3.426380033 | F98: 250636.273 | H98: 74170 | I98: 0.7287639693 | J98: 54052.4236 | L98: 69455 | M98: 1.664896984 | N98: 115635.42 | P98: 169687.8436
B99: April | D99: 69735.44969 | E99: 3.424185403 | F99: 238787.1089 | H99: 71328.22857 | I99: 0.7287580003 | J99: 51981.01722 | L99: 66974.57055 | M99: 1.664753702 | N99: 111496.1643 | P99: 163477.1815
B100: May | D100: 76007.69811 | E100: 3.424894953 | F100: 260318.3817 | H100: 77317.5 | I100: 0.728788575 | J100: 56348.11065 | L100: 72580.22086 | M100: 1.664878342 | N100: 120837.2378 | P100: 177185.3484
B101: June | D101: 85557.44969 | E101: 3.426905827 | F101: 293197.3229 | H101: 86835.48571 | I101: 0.7286567282 | J101: 63273.26091 | L101: 81555.00613 | M101: 1.664367111 | N101: 135737.4699 | P101: 199010.7309
B102: July | D102: 95811.46855 | E102: 3.433634293 | F102: 328981.5441 | H102: 99529.58571 | I102: 0.7317710896 | J102: 72832.87338 | L102: 93411.65644 | M102: 1.675962609 | N102: 156554.4434 | P102: 229387.3168
B103: August | D103: 86980.83648 | E103: 3.426641838 | F103: 298052.1734 | H103: 88580.54286 | I103: 0.728764032 | J103: 64554.31357 | L103: 83021.79141 | M103: 1.664858102 | N103: 138219.5021 | P103: 202773.8157
B104: September | D104: 89693.93711 | E104: 3.424605944 | F104: 307166.3901 | H104: 90925 | I104: 0.7286654177 | J104: 66253.9031 | L104: 85183.2638 | M104: 1.664510152 | N104: 141788.4074 | P104: 208042.3105
B105: October | D105: 70834.27044 | E105: 3.425637063 | F105: 242652.5021 | H105: 72187.71429 | I105: 0.7288906159 | J105: 52616.94753 | L105: 67423.42945 | M105: 1.665486265 | N105: 112292.7957 | P105: 164909.7432
B106: November | D106: 78123.60063 | E106: 3.426712195 | F106: 267707.095 | H106: 78268.45714 | I106: 0.7283737768 | J106: 57008.69173 | L106: 72458.11043 | M106: 1.663945391 | N106: 120566.3389 | P106: 177575.0306
B107: December | D107: 82722.72013 | E107: 3.427137328 | F107: 283502.122 | H107: 82704.67143 | I107: 0.729047837 | J107: 60295.66181 | L107: 77468.9816 | M107: 1.665940452 | N107: 129058.7102 | P107: 189354.372
B109: Total | D109: =SUM(D96:D107) -> 967867.4308 | E109: =IF(D109<>0,F109/D109,0) -> 3.426652607 | F109: =SUM(F96:F107) -> 3316545.455 | H109: =SUM(H96:H107) -> 982639.4571 | I109: =IF(H109<>0,J109/H109,0) -> 0.7290393655 | J109: =SUM(J96:J107) -> 716382.8463 | L109: =SUM(L96:L107) -> 919646.3374 | M109: =IF(L109<>0,N109/L109,0) -> 1.665948185 | N109: =SUM(N96:N107) -> 1532083.147 | P109: =SUM(P96:P107) -> 2248465.993
N111: Transformer Allowance Credit (if applicable) | P111: ='15. RTSR - UTRs & Sub-Tx'!G95 -> 0
N113: Total including deduction for Transformer Allowance Credit | P113: =P109+P111 -> 2248465.993

Sheet 18. RTSR - Forecast Wholesale
B13: The purpose of this sheet is to calculate the expected billing when forecasted 2015 Uniform Transmission Rates are applied against historical 2013 transmission units.
B16: IESO | D16: Network | H16: Line Connection | L16: Transformation Connection | P16: Total Line
B18: Month | D18: Units Billed | E18: Rate | F18: Amount | H18: Units Billed | I18: Rate | J18: Amount | L18: Units Billed | M18: Rate | N18: Amount | P18: Amount
B20: January | D20: ='16. RTSR - Historical Wholesale'!D19 -> 8951 | E20: ='15. RTSR - UTRs & Sub-Tx'!I22 -> 3.78 | F20: =D20*E20 -> 33834.78 | H20: ='16. RTSR - Historical Wholesale'!H19 -> 9591 | I20: ='15. RTSR - UTRs & Sub-Tx'!I24 -> 0.86 | J20: =H20*I20 -> 8248.26 | L20: ='16. RTSR - Historical Wholesale'!L19 -> 9591 | M20: ='15. RTSR - UTRs & Sub-Tx'!I26 -> 2 | N20: =L20*M20 -> 19182 | P20: =J20+N20 -> 27430.26
B21: February | D21: ='16. RTSR - Historical Wholesale'!D20 -> 8712 | E21: =E20 -> 3.78 | F21: 32931.36 | H21: ='16. RTSR - Historical Wholesale'!H20 -> 9052 | I21: =I20 -> 0.86 | J21: 7784.72 | L21: ='16. RTSR - Historical Wholesale'!L20 -> 9052 | M21: =M20 -> 2 | N21: 18104 | P21: 25888.72
B22: March | D22: ='16. RTSR - Historical Wholesale'!D21 -> 8227 | E22: 3.78 | F22: 31098.06 | H22: ='16. RTSR - Historical Wholesale'!H21 -> 8662 | I22: 0.86 | J22: 7449.32 | L22: ='16. RTSR - Historical Wholesale'!L21 -> 8662 | M22: 2 | N22: 17324 | P22: 24773.32
B23: April | D23: ='16. RTSR - Historical Wholesale'!D22 -> 7498 | E23: 3.78 | F23: 28342.44 | H23: ='16. RTSR - Historical Wholesale'!H22 -> 8326 | I23: 0.86 | J23: 7160.36 | L23: ='16. RTSR - Historical Wholesale'!L22 -> 8326 | M23: 2 | N23: 16652 | P23: 23812.36
B24: May | D24: ='16. RTSR - Historical Wholesale'!D23 -> 8294 | E24: 3.78 | F24: 31351.32 | H24: ='16. RTSR - Historical Wholesale'!H23 -> 9048 | I24: 0.86 | J24: 7781.28 | L24: ='16. RTSR - Historical Wholesale'!L23 -> 9048 | M24: 2 | N24: 18096 | P24: 25877.28
B25: June | D25: ='16. RTSR - Historical Wholesale'!D24 -> 9724 | E25: 3.78 | F25: 36756.72 | H25: ='16. RTSR - Historical Wholesale'!H24 -> 10051 | I25: 0.86 | J25: 8643.86 | L25: ='16. RTSR - Historical Wholesale'!L24 -> 10051 | M25: 2 | N25: 20102 | P25: 28745.86
B26: July | D26: ='16. RTSR - Historical Wholesale'!D25 -> 12343 | E26: 3.78 | F26: 46656.54 | H26: ='16. RTSR - Historical Wholesale'!H25 -> 14521 | I26: 0.86 | J26: 12488.06 | L26: ='16. RTSR - Historical Wholesale'!L25 -> 14521 | M26: 2 | N26: 29042 | P26: 41530.06
B27: August | D27: ='16. RTSR - Historical Wholesale'!D26 -> 9834 | E27: 3.78 | F27: 37172.52 | H27: ='16. RTSR - Historical Wholesale'!H26 -> 10345 | I27: 0.86 | J27: 8896.7 | L27: ='16. RTSR - Historical Wholesale'!L26 -> 10345 | M27: 2 | N27: 20690 | P27: 29586.7
B28: September | D28: ='16. RTSR - Historical Wholesale'!D27 -> 9729 | E28: 3.78 | F28: 36775.62 | H28: ='16. RTSR - Historical Wholesale'!H27 -> 10532 | I28: 0.86 | J28: 9057.52 | L28: ='16. RTSR - Historical Wholesale'!L27 -> 10532 | M28: 2 | N28: 21064 | P28: 30121.52
B29: October | D29: ='16. RTSR - Historical Wholesale'!D28 -> 7848 | E29: 3.78 | F29: 29665.44 | H29: ='16. RTSR - Historical Wholesale'!H28 -> 8519 | I29: 0.86 | J29: 7326.34 | L29: ='16. RTSR - Historical Wholesale'!L28 -> 8519 | M29: 2 | N29: 17038 | P29: 24364.34
B30: November | D30: ='16. RTSR - Historical Wholesale'!D29 -> 8845 | E30: 3.78 | F30: 33434.1 | H30: ='16. RTSR - Historical Wholesale'!H29 -> 8845 | I30: 0.86 | J30: 7606.7 | L30: ='16. RTSR - Historical Wholesale'!L29 -> 8845 | M30: 2 | N30: 17690 | P30: 25296.7
B31: December | D31: ='16. RTSR - Historical Wholesale'!D30 -> 9445 | E31: 3.78 | F31: 35702.1 | H31: ='16. RTSR - Historical Wholesale'!H30 -> 9886 | I31: 0.86 | J31: 8501.96 | L31: ='16. RTSR - Historical Wholesale'!L30 -> 9886 | M31: 2 | N31: 19772 | P31: 28273.96
B33: Total | D33: =SUM(D20:D31) -> 109450 | E33: =IF(D33<>0,F33/D33,0) -> 3.78 | F33: =SUM(F20:F31) -> 413721 | H33: =SUM(H20:H31) -> 117378 | I33: =IF(H33<>0,J33/H33,0) -> 0.86 | J33: =SUM(J20:J31) -> 100945.08 | L33: =SUM(L20:L31) -> 117378 | M33: =IF(L33<>0,N33/L33,0) -> 2 | N33: =SUM(N20:N31) -> 234756 | P33: =SUM(P20:P31) -> 335701.08
B35: Hydro One | D35: Network | H35: Line Connection | L35: Transformation Connection | P35: Total Line
B37: Month | D37: Units Billed | E37: Rate | F37: Amount | H37: Units Billed | I37: Rate | J37: Amount | L37: Units Billed | M37: Rate | N37: Amount | P37: Amount
B39: January | D39: ='16. RTSR - Historical Wholesale'!D38 -> 72735 | E39: ='15. RTSR - UTRs & Sub-Tx'!I35+'15. RTSR - UTRs & Sub-Tx'!I79 -> 3.23 | F39: =D39*E39 -> 234934.05 | H39: ='16. RTSR - Historical Wholesale'!H38 -> 72969.27143 | I39: ='15. RTSR - UTRs & Sub-Tx'!I37+'15. RTSR - UTRs & Sub-Tx'!I81 -> 0.65 | J39: =H39*I39 -> 47430.02643 | L39: ='16. RTSR - Historical Wholesale'!L38 -> 67364.30675 | M39: ='15. RTSR - UTRs & Sub-Tx'!I39 -> 1.62 | N39: =L39*M39 -> 109130.1769 | P39: =J39+N39 -> 156560.2034
B40: February | D40: ='16. RTSR - Historical Wholesale'!D39 -> 68853 | E40: =E39 -> 3.23 | F40: 222395.19 | H40: ='16. RTSR - Historical Wholesale'!H39 -> 69180 | I40: =I39 -> 0.65 | J40: 44967 | L40: ='16. RTSR - Historical Wholesale'!L39 -> 64107 | M40: =M39 -> 1.62 | N40: 103853.34 | P40: 148820.34
B41: March | D41: ='16. RTSR - Historical Wholesale'!D40 -> 64922 | E41: 3.23 | F41: 209698.06 | H41: ='16. RTSR - Historical Wholesale'!H40 -> 65508 | I41: 0.65 | J41: 42580.2 | L41: ='16. RTSR - Historical Wholesale'!L40 -> 60793 | M41: 1.62 | N41: 98484.66 | P41: 141064.86
B42: April | D42: ='16. RTSR - Historical Wholesale'!D41 -> 62237.44969 | E42: 3.23 | F42: 201026.9625 | H42: ='16. RTSR - Historical Wholesale'!H41 -> 63002.22857 | I42: 0.65 | J42: 40951.44857 | L42: ='16. RTSR - Historical Wholesale'!L41 -> 58648.57055 | M42: 1.62 | N42: 95010.68429 | P42: 135962.1329
B43: May | D43: ='16. RTSR - Historical Wholesale'!D42 -> 67713.69811 | E43: 3.23 | F43: 218715.2449 | H43: ='16. RTSR - Historical Wholesale'!H42 -> 68269.5 | I43: 0.65 | J43: 44375.175 | L43: ='16. RTSR - Historical Wholesale'!L42 -> 63532.22086 | M43: 1.62 | N43: 102922.1978 | P43: 147297.3728
B44: June | D44: ='16. RTSR - Historical Wholesale'!D43 -> 75833.44969 | E44: 3.23 | F44: 244942.0425 | H44: ='16. RTSR - Historical Wholesale'!H43 -> 76784.48571 | I44: 0.65 | J44: 49909.91571 | L44: ='16. RTSR - Historical Wholesale'!L43 -> 71504.00613 | M44: 1.62 | N44: 115836.4899 | P44: 165746.4057
B45: July | D45: ='16. RTSR - Historical Wholesale'!D44 -> 83468.46855 | E45: 3.23 | F45: 269603.1534 | H45: ='16. RTSR - Historical Wholesale'!H44 -> 85008.58571 | I45: 0.65 | J45: 55255.58071 | L45: ='16. RTSR - Historical Wholesale'!L44 -> 78890.65644 | M45: 1.62 | N45: 127802.8634 | P45: 183058.4441
B46: August | D46: ='16. RTSR - Historical Wholesale'!D45 -> 77146.83648 | E46: 3.23 | F46: 249184.2818 | H46: ='16. RTSR - Historical Wholesale'!H45 -> 78235.54286 | I46: 0.65 | J46: 50853.10286 | L46: ='16. RTSR - Historical Wholesale'!L45 -> 72676.79141 | M46: 1.62 | N46: 117736.4021 | P46: 168589.5049
B47: September | D47: ='16. RTSR - Historical Wholesale'!D46 -> 79964.93711 | E47: 3.23 | F47: 258286.7469 | H47: ='16. RTSR - Historical Wholesale'!H46 -> 80393 | I47: 0.65 | J47: 52255.45 | L47: ='16. RTSR - Historical Wholesale'!L46 -> 74651.2638 | M47: 1.62 | N47: 120935.0474 | P47: 173190.4974
B48: October | D48: ='16. RTSR - Historical Wholesale'!D47 -> 62986.27044 | E48: 3.23 | F48: 203445.6535 | H48: ='16. RTSR - Historical Wholesale'!H47 -> 63668.71429 | I48: 0.65 | J48: 41384.66429 | L48: ='16. RTSR - Historical Wholesale'!L47 -> 58904.42945 | M48: 1.62 | N48: 95425.17571 | P48: 136809.84
B49: November | D49: ='16. RTSR - Historical Wholesale'!D48 -> 69278.60063 | E49: 3.23 | F49: 223769.88 | H49: ='16. RTSR - Historical Wholesale'!H48 -> 69423.45714 | I49: 0.65 | J49: 45125.24714 | L49: ='16. RTSR - Historical Wholesale'!L48 -> 63613.11043 | M49: 1.62 | N49: 103053.2389 | P49: 148178.486
B50: December | D50: ='16. RTSR - Historical Wholesale'!D49 -> 73277.72013 | E50: 3.23 | F50: 236687.036 | H50: ='16. RTSR - Historical Wholesale'!H49 -> 72818.67143 | I50: 0.65 | J50: 47332.13643 | L50: ='16. RTSR - Historical Wholesale'!L49 -> 67582.9816 | M50: 1.62 | N50: 109484.4302 | P50: 156816.5666
B52: Total | D52: =SUM(D39:D50) -> 858417.4308 | E52: =IF(D52<>0,F52/D52,0) -> 3.23 | F52: =SUM(F39:F50) -> 2772688.302 | H52: =SUM(H39:H50) -> 865261.4571 | I52: =IF(H52<>0,J52/H52,0) -> 0.65 | J52: =SUM(J39:J50) -> 562419.9471 | L52: =SUM(L39:L50) -> 802268.3374 | M52: =IF(L52<>0,N52/L52,0) -> 1.62 | N52: =SUM(N39:N50) -> 1299674.707 | P52: =SUM(P39:P50) -> 1862094.654
B54: ='16. RTSR - Historical Wholesale'!B53 -> Add Extra Host Here (I) | D54: Network | H54: Line Connection | L54: Transformation Connection | P54: Total Line
B56: Month | D56: Units Billed | E56: Rate | F56: Amount | H56: Units Billed | I56: Rate | J56: Amount | L56: Units Billed | M56: Rate | N56: Amount | P56: Amount
B58: January | D58: ='16. RTSR - Historical Wholesale'!D57 -> 0 | E58: ='15. RTSR - UTRs & Sub-Tx'!I50 -> 0 | F58: =D58*E58 -> 0 | H58: ='16. RTSR - Historical Wholesale'!H57 -> 0 | I58: ='15. RTSR - UTRs & Sub-Tx'!I52 -> 0 | J58: =H58*I58 -> 0 | L58: ='16. RTSR - Historical Wholesale'!L57 -> 0 | M58: ='15. RTSR - UTRs & Sub-Tx'!I54 -> 0 | N58: =L58*M58 -> 0 | P58: =J58+N58 -> 0
B59: February | D59: ='16. RTSR - Historical Wholesale'!D58 -> 0 | E59: =E58 -> 0 | F59: 0 | H59: ='16. RTSR - Historical Wholesale'!H58 -> 0 | I59: =I58 -> 0 | J59: 0 | L59: ='16. RTSR - Historical Wholesale'!L58 -> 0 | M59: =M58 -> 0 | N59: 0 | P59: 0
B60: March | D60: ='16. RTSR - Historical Wholesale'!D59 -> 0 | E60: 0 | F60: 0 | H60: ='16. RTSR - Historical Wholesale'!H59 -> 0 | I60: 0 | J60: 0 | L60: ='16. RTSR - Historical Wholesale'!L59 -> 0 | M60: 0 | N60: 0 | P60: 0
B61: April | D61: ='16. RTSR - Historical Wholesale'!D60 -> 0 | E61: 0 | F61: 0 | H61: ='16. RTSR - Historical Wholesale'!H60 -> 0 | I61: 0 | J61: 0 | L61: ='16. RTSR - Historical Wholesale'!L60 -> 0 | M61: 0 | N61: 0 | P61: 0
B62: May | D62: ='16. RTSR - Historical Wholesale'!D61 -> 0 | E62: 0 | F62: 0 | H62: ='16. RTSR - Historical Wholesale'!H61 -> 0 | I62: 0 | J62: 0 | L62: ='16. RTSR - Historical Wholesale'!L61 -> 0 | M62: 0 | N62: 0 | P62: 0
B63: June | D63: ='16. RTSR - Historical Wholesale'!D62 -> 0 | E63: 0 | F63: 0 | H63: ='16. RTSR - Historical Wholesale'!H62 -> 0 | I63: 0 | J63: 0 | L63: ='16. RTSR - Historical Wholesale'!L62 -> 0 | M63: 0 | N63: 0 | P63: 0
B64: July | D64: ='16. RTSR - Historical Wholesale'!D63 -> 0 | E64: 0 | F64: 0 | H64: ='16. RTSR - Historical Wholesale'!H63 -> 0 | I64: 0 | J64: 0 | L64: ='16. RTSR - Historical Wholesale'!L63 -> 0 | M64: 0 | N64: 0 | P64: 0
B65: August | D65: ='16. RTSR - Historical Wholesale'!D64 -> 0 | E65: 0 | F65: 0 | H65: ='16. RTSR - Historical Wholesale'!H64 -> 0 | I65: 0 | J65: 0 | L65: ='16. RTSR - Historical Wholesale'!L64 -> 0 | M65: 0 | N65: 0 | P65: 0
B66: September | D66: ='16. RTSR - Historical Wholesale'!D65 -> 0 | E66: 0 | F66: 0 | H66: ='16. RTSR - Historical Wholesale'!H65 -> 0 | I66: 0 | J66: 0 | L66: ='16. RTSR - Historical Wholesale'!L65 -> 0 | M66: 0 | N66: 0 | P66: 0
B67: October | D67: ='16. RTSR - Historical Wholesale'!D66 -> 0 | E67: 0 | F67: 0 | H67: ='16. RTSR - Historical Wholesale'!H66 -> 0 | I67: 0 | J67: 0 | L67: ='16. RTSR - Historical Wholesale'!L66 -> 0 | M67: 0 | N67: 0 | P67: 0
B68: November | D68: ='16. RTSR - Historical Wholesale'!D67 -> 0 | E68: 0 | F68: 0 | H68: ='16. RTSR - Historical Wholesale'!H67 -> 0 | I68: 0 | J68: 0 | L68: ='16. RTSR - Historical Wholesale'!L67 -> 0 | M68: 0 | N68: 0 | P68: 0
B69: December | D69: ='16. RTSR - Historical Wholesale'!D68 -> 0 | E69: 0 | F69: 0 | H69: ='16. RTSR - Historical Wholesale'!H68 -> 0 | I69: 0 | J69: 0 | L69: ='16. RTSR - Historical Wholesale'!L68 -> 0 | M69: 0 | N69: 0 | P69: 0
B71: Total | D71: =SUM(D58:D69) -> 0 | E71: =IF(D71<>0,F71/D71,0) -> 0 | F71: =SUM(F58:F69) -> 0 | H71: =SUM(H58:H69) -> 0 | I71: =IF(H71<>0,J71/H71,0) -> 0 | J71: =SUM(J58:J69) -> 0 | L71: =SUM(L58:L69) -> 0 | M71: =IF(L71<>0,N71/L71,0) -> 0 | N71: =SUM(N58:N69) -> 0 | P71: =SUM(P58:P69) -> 0
B73: ='16. RTSR - Historical Wholesale'!B72 -> Add Extra Host Here (II) | D73: Network | H73: Line Connection | L73: Transformation Connection | P73: Total Line
B75: Month | D75: Units Billed | E75: Rate | F75: Amount | H75: Units Billed | I75: Rate | J75: Amount | L75: Units Billed | M75: Rate | N75: Amount | P75: Amount
B77: January | D77: ='16. RTSR - Historical Wholesale'!D76 -> 0 | E77: ='15. RTSR - UTRs & Sub-Tx'!I65 -> 0 | F77: =D77*E77 -> 0 | H77: ='16. RTSR - Historical Wholesale'!H76 -> 0 | I77: ='15. RTSR - UTRs & Sub-Tx'!I67 -> 0 | J77: =H77*I77 -> 0 | L77: ='16. RTSR - Historical Wholesale'!L76 -> 0 | M77: ='15. RTSR - UTRs & Sub-Tx'!I69 -> 0 | N77: =L77*M77 -> 0 | P77: =J77+N77 -> 0
B78: February | D78: ='16. RTSR - Historical Wholesale'!D77 -> 0 | E78: =E77 -> 0 | F78: 0 | H78: ='16. RTSR - Historical Wholesale'!H77 -> 0 | I78: =I77 -> 0 | J78: 0 | L78: ='16. RTSR - Historical Wholesale'!L77 -> 0 | M78: =M77 -> 0 | N78: 0 | P78: 0
B79: March | D79: ='16. RTSR - Historical Wholesale'!D78 -> 0 | E79: 0 | F79: 0 | H79: ='16. RTSR - Historical Wholesale'!H78 -> 0 | I79: 0 | J79: 0 | L79: ='16. RTSR - Historical Wholesale'!L78 -> 0 | M79: 0 | N79: 0 | P79: 0
B80: April | D80: ='16. RTSR - Historical Wholesale'!D79 -> 0 | E80: 0 | F80: 0 | H80: ='16. RTSR - Historical Wholesale'!H79 -> 0 | I80: 0 | J80: 0 | L80: ='16. RTSR - Historical Wholesale'!L79 -> 0 | M80: 0 | N80: 0 | P80: 0
B81: May | D81: ='16. RTSR - Historical Wholesale'!D80 -> 0 | E81: 0 | F81: 0 | H81: ='16. RTSR - Historical Wholesale'!H80 -> 0 | I81: 0 | J81: 0 | L81: ='16. RTSR - Historical Wholesale'!L80 -> 0 | M81: 0 | N81: 0 | P81: 0
B82: June | D82: ='16. RTSR - Historical Wholesale'!D81 -> 0 | E82: 0 | F82: 0 | H82: ='16. RTSR - Historical Wholesale'!H81 -> 0 | I82: 0 | J82: 0 | L82: ='16. RTSR - Historical Wholesale'!L81 -> 0 | M82: 0 | N82: 0 | P82: 0
B83: July | D83: ='16. RTSR - Historical Wholesale'!D82 -> 0 | E83: 0 | F83: 0 | H83: ='16. RTSR - Historical Wholesale'!H82 -> 0 | I83: 0 | J83: 0 | L83: ='16. RTSR - Historical Wholesale'!L82 -> 0 | M83: 0 | N83: 0 | P83: 0
B84: August | D84: ='16. RTSR - Historical Wholesale'!D83 -> 0 | E84: 0 | F84: 0 | H84: ='16. RTSR - Historical Wholesale'!H83 -> 0 | I84: 0 | J84: 0 | L84: ='16. RTSR - Historical Wholesale'!L83 -> 0 | M84: 0 | N84: 0 | P84: 0
B85: September | D85: ='16. RTSR - Historical Wholesale'!D84 -> 0 | E85: 0 | F85: 0 | H85: ='16. RTSR - Historical Wholesale'!H84 -> 0 | I85: 0 | J85: 0 | L85: ='16. RTSR - Historical Wholesale'!L84 -> 0 | M85: 0 | N85: 0 | P85: 0
B86: October | D86: ='16. RTSR - Historical Wholesale'!D85 -> 0 | E86: 0 | F86: 0 | H86: ='16. RTSR - Historical Wholesale'!H85 -> 0 | I86: 0 | J86: 0 | L86: ='16. RTSR - Historical Wholesale'!L85 -> 0 | M86: 0 | N86: 0 | P86: 0
B87: November | D87: ='16. RTSR - Historical Wholesale'!D86 -> 0 | E87: 0 | F87: 0 | H87: ='16. RTSR - Historical Wholesale'!H86 -> 0 | I87: 0 | J87: 0 | L87: ='16. RTSR - Historical Wholesale'!L86 -> 0 | M87: 0 | N87: 0 | P87: 0
B88: December | D88: ='16. RTSR - Historical Wholesale'!D87 -> 0 | E88: 0 | F88: 0 | H88: ='16. RTSR - Historical Wholesale'!H87 -> 0 | I88: 0 | J88: 0 | L88: ='16. RTSR - Historical Wholesale'!L87 -> 0 | M88: 0 | N88: 0 | P88: 0
B90: Total | D90: =SUM(D77:D88) -> 0 | E90: =IF(D90<>0,F90/D90,0) -> 0 | F90: =SUM(F77:F88) -> 0 | H90: =SUM(H77:H88) -> 0 | I90: =IF(H90<>0,J90/H90,0) -> 0 | J90: =SUM(J77:J88) -> 0 | L90: =SUM(L77:L88) -> 0 | M90: =IF(L90<>0,N90/L90,0) -> 0 | N90: =SUM(N77:N88) -> 0 | P90: =SUM(P77:P88) -> 0
B92: Total | D92: Network | H92: Line Connection | L92: Transformation Connection | P92: Total Line
B94: Month | D94: Units Billed | E94: Rate | F94: Amount | H94: Units Billed | I94: Rate | J94: Amount | L94: Units Billed | M94: Rate | N94: Amount | P94: Amount
B96: January | D96: =D20+D39 -> 81686 | E96: =IF(D96<>0,F96/D96,0) -> 3.290267977 | F96: =F20+F39 -> 268768.83 | H96: =H20+H39 -> 82560.27143 | I96: =IF(H96<>0,J96/H96,0) -> 0.674395632 | J96: =J20+J39 -> 55678.28643 | L96: =L20+L39 -> 76955.30675 | M96: =IF(L96<>0,N96/L96,0) -> 1.667359697 | N96: =N20+N39 -> 128312.1769 | P96: =J96+N96 -> 183990.4634
B97: February | D97: 77565 | E97: 3.291775285 | F97: 255326.55 | H97: 78232 | I97: 0.6742984968 | J97: 52751.72 | L97: 73159 | M97: 1.667017592 | N97: 121957.34 | P97: 174709.06
B98: March | D98: 73149 | E98: 3.291857988 | F98: 240796.12 | H98: 74170 | I98: 0.6745250101 | J98: 50029.52 | L98: 69455 | M98: 1.667391261 | N98: 115808.66 | P98: 165838.18
B99: April | D99: 69735.44969 | E99: 3.289136351 | F99: 229369.4025 | H99: 71328.22857 | I99: 0.6745128757 | J99: 48111.80857 | L99: 66974.57055 | M99: 1.667240019 | N99: 111662.6843 | P99: 159774.4929
B100: May | D100: 76007.69811 | E100: 3.290016289 | F100: 250066.5649 | H100: 77317.5 | I100: 0.6745750315 | J100: 52156.455 | L100: 72580.22086 | M100: 1.667371584 | N100: 121018.1978 | P100: 173174.6528
B101: June | D101: 85557.44969 | E101: 3.292510045 | F101: 281698.7625 | H101: 86835.48571 | I101: 0.6743069983 | J101: 58553.77571 | L101: 81555.00613 | M101: 1.66683195 | N101: 135938.4899 | P101: 194492.2657
B102: July | D102: 95811.46855 | E102: 3.300854253 | F102: 316259.6934 | H102: 99529.58571 | I102: 0.6806382266 | J102: 67743.64071 | L102: 93411.65644 | M102: 1.679071643 | N102: 156844.8634 | P102: 224588.5041
B103: August | D103: 86980.83648 | E103: 3.292182663 | F103: 286356.8018 | H103: 88580.54286 | I103: 0.6745251376 | J103: 59749.80286 | L103: 83021.79141 | M103: 1.667350219 | N103: 138426.4021 | P103: 198176.2049
B104: September | D104: 89693.93711 | E104: 3.289657878 | F104: 295062.3669 | H104: 90925 | I104: 0.6743246632 | J104: 61312.97 | L104: 85183.2638 | M104: 1.666982938 | N104: 141999.0474 | P104: 203312.0174
B105: October | D105: 70834.27044 | E105: 3.290936606 | F105: 233111.0935 | H105: 72187.71429 | I105: 0.6747824719 | J105: 48711.00429 | L105: 67423.42945 | M105: 1.66801328 | N105: 112463.1757 | P105: 161174.18
B106: November | D106: 78123.60063 | E106: 3.292269915 | F106: 257203.98 | H106: 78268.45714 | I106: 0.6737317825 | J106: 52731.94714 | L106: 72458.11043 | M106: 1.666386802 | N106: 120743.2389 | P106: 173475.186
B107: December | D107: 82722.72013 | E107: 3.292797137 | F107: 272389.136 | H107: 82704.67143 | I107: 0.6751020887 | J107: 55834.09643 | L107: 77468.9816 | M107: 1.668492699 | N107: 129256.4302 | P107: 185090.5266
B109: Total | D109: =SUM(D96:D107) -> 967867.4308 | E109: =IF(D109<>0,F109/D109,0) -> 3.292196018 | F109: =SUM(F96:F107) -> 3186409.302 | H109: =SUM(H96:H107) -> 982639.4571 | I109: =IF(H109<>0,J109/H109,0) -> 0.6750848669 | J109: =SUM(J96:J107) -> 663365.0271 | L109: =SUM(L96:L107) -> 919646.3374 | M109: =IF(L109<>0,N109/L109,0) -> 1.668500862 | N109: =SUM(N96:N107) -> 1534430.707 | P109: =SUM(P96:P107) -> 2197795.734
N111: Transformer Allowance Credit (if applicable) | P111: ='15. RTSR - UTRs & Sub-Tx'!I95 -> 0
N113: Total including deduction for Transformer Allowance Credit | P113: =P109+P111 -> 2197795.734

Sheet 19. RTSR Ntwrk to Curren WS
A13: The purpose of this sheet is to re-align the current RTS Network Rates to recover current wholesale network costs.
A16: Rate Class | B16: Rate Description | C16: Unit | E16: Current RTSR-Network | G16: Loss Adjusted Billed kWh | I16: Loss Adjusted Billed kW | K16: Billed Amount | M16: Billed Amount % | O16: Current Wholesale Billing | Q16: Proposed RTSR Network
A19: RESIDENTIAL | B19: Retail Transmission Rate - Network Service Rate | C19: $/kWh | E19: 0.0064 | G19: 145243757 | I19: 0 | K19: =IF(E19="", "", IF(C19="$/kWh", E19*G19, E19*I19)) -> 929560.0447 | M19: =IF(ISERROR(K19/SUM(K19:K100)),"",K19/SUM(K19:K100)) -> 0.2851585526 | O19: =IF(ISERROR('17. RTSR - Current Wholesale'!$F$109*M19), "", '17. RTSR - Current Wholesale'!$F$109*M19) -> 945741.3016 | Q19: =IF(C19="","",IF(C19="$/kWh",IF(G19<>0,O19/G19,),IF(I19<>0,O19/I19,0))) -> 0.00651140759
A20: GENERAL SERVICE LESS THAN 50 KW | B20: Retail Transmission Rate - Network Service Rate | C20: $/kWh | E20: 0.0059 | G20: 49923948.76 | I20: 0 | K20: 294551.2977 | M20: =IF(ISERROR(K20/SUM(K19:K100)),"",K20/SUM(K19:K100)) -> 0.09035868333 | O20: =IF(ISERROR('17. RTSR - Current Wholesale'!$F$109*M20), "", '17. RTSR - Current Wholesale'!$F$109*M20) -> 299678.6805 | Q20: 0.006002703872
A21: GENERAL SERVICE 50 TO 999 KW | B21: Retail Transmission Rate - Network Service Rate | C21: $/kW | E21: 2.666 | G21: 0 | I21: 356032.75 | K21: 949183.3115 | M21: =IF(ISERROR(K21/SUM(K19:K100)),"",K21/SUM(K19:K100)) -> 0.2911783276 | O21: =IF(ISERROR('17. RTSR - Current Wholesale'!$F$109*M21), "", '17. RTSR - Current Wholesale'!$F$109*M21) -> 965706.1592 | Q21: 2.712408224
A22: GENERAL SERVICE 1,000 TO 4,999 KW | B22: Retail Transmission Rate - Network Service Rate | C22: $/kW | E22: 2.8956 | G22: 0 | I22: 137877.28 | K22: 399237.452 | M22: =IF(ISERROR(K22/SUM(K19:K100)),"",K22/SUM(K19:K100)) -> 0.1224729641 | O22: =IF(ISERROR('17. RTSR - Current Wholesale'!$F$109*M22), "", '17. RTSR - Current Wholesale'!$F$109*M22) -> 406187.1523 | Q22: 2.946004972
A23: LARGE USE | B23: Retail Transmission Rate - Network Service Rate | C23: $/kW | E23: 3.2101 | G23: 0 | I23: 164251 | K23: 527262.1351 | M23: =IF(ISERROR(K23/SUM(K19:K100)),"",K23/SUM(K19:K100)) -> 0.1617467405 | O23: =IF(ISERROR('17. RTSR - Current Wholesale'!$F$109*M23), "", '17. RTSR - Current Wholesale'!$F$109*M23) -> 536440.4169 | Q23: 3.26597961
A24: STREET LIGHTING | B24: Retail Transmission Rate - Network Service Rate | C24: $/kW | E24: 2.059 | G24: 0 | I24: 6999 | K24: 14410.941 | M24: =IF(ISERROR(K24/SUM(K19:K100)),"",K24/SUM(K19:K100)) -> 0.004420804337 | O24: =IF(ISERROR('17. RTSR - Current Wholesale'!$F$109*M24), "", '17. RTSR - Current Wholesale'!$F$109*M24) -> 14661.79853 | Q24: 2.094841911
A25: SENTINEL LIGHTING | B25: Retail Transmission Rate - Network Service Rate | C25: $/kW | E25: 2.059 | G25: 0 | I25: 261 | K25: 537.399 | M25: =IF(ISERROR(K25/SUM(K19:K100)),"",K25/SUM(K19:K100)) -> 0.0001648563983 | O25: =IF(ISERROR('17. RTSR - Current Wholesale'!$F$109*M25), "", '17. RTSR - Current Wholesale'!$F$109*M25) -> 546.7537387 | Q25: 2.094841911
A26: UNMETERED SCATTERED LOAD | B26: Retail Transmission Rate - Network Service Rate | C26: $/kWh | E26: 0.0059 | G26: 562423.7003 | I26: 0 | K26: 3318.299832 | M26: =IF(ISERROR(K26/SUM(K19:K100)),"",K26/SUM(K19:K100)) -> 0.001017945621 | O26: =IF(ISERROR('17. RTSR - Current Wholesale'!$F$109*M26), "", '17. RTSR - Current Wholesale'!$F$109*M26) -> 3376.062924 | Q26: 0.006002703872
A27: EMBEDDED DISTRIBUTOR | B27: Retail Transmission Rate - Network Service Rate | C27: $/kW | E27: 3.8739 | G27: 0 | I27: 36588.4 | K27: 141739.8028 | M27: =IF(ISERROR(K27/SUM(K19:K100)),"",K27/SUM(K19:K100)) -> 0.04348112554 | O27: =IF(ISERROR('17. RTSR - Current Wholesale'!$F$109*M27), "", '17. RTSR - Current Wholesale'!$F$109*M27) -> 144207.1293 | Q27: 3.941334666

Sheet 20. RTSR Adj Conn to Current WS
A13: The purpose of this sheet is to re-align the current RTS Connection Rates to recover current wholesale connection costs.
A16: Rate Class | B16: Rate Description | C16: Unit | E16: Current RTSR-Connection | G16: Loss Adjusted Billed kWh | I16: Loss Adjusted Billed kW | K16: Billed Amount | M16: Billed Amount % | O16: Current Wholesale Billing | Q16: Proposed RTSR Connection
A19: RESIDENTIAL | B19: Retail Transmission Rate - Line and Transformation Connection Service Rate | C19: $/kWh | E19: 0.0049 | G19: 145243757 | I19: 0 | K19: =IF(E19="", "", IF(C19="$/kWh", E19*G19, E19*I19)) -> 711694.4092 | M19: =IF(ISERROR(K19/SUM(K19:K100)),"",K19/SUM(K19:K100)) -> 0.3261544317 | O19: =IF(ISERROR('17. RTSR - Current Wholesale'!$P$113*M19), "", '17. RTSR - Current Wholesale'!$P$113*M19) -> 733347.1482 | Q19: =IF(C19="","",IF(C19="$/kWh",IF(G19<>0,O19/G19,),IF(I19<>0,O19/I19,0))) -> 0.005049078621
A20: GENERAL SERVICE LESS THAN 50 KW | B20: Retail Transmission Rate - Line and Transformation Connection Service Rate | C20: $/kWh | E20: 0.0045 | G20: 49923948.76 | I20: 0 | K20: 224657.7694 | M20: =IF(ISERROR(K20/SUM(K19:K100)),"",K20/SUM(K19:K100)) -> 0.1029558841 | O20: =IF(ISERROR('17. RTSR - Current Wholesale'!$P$113*M20), "", '17. RTSR - Current Wholesale'!$P$113*M20) -> 231492.8042 | Q20: 0.004636908937
A21: GENERAL SERVICE 50 TO 999 KW | B21: Retail Transmission Rate - Line and Transformation Connection Service Rate | C21: $/kW | E21: 1.627 | G21: 0 | I21: 356032.75 | K21: 579265.2843 | M21: =IF(ISERROR(K21/SUM(K19:K100)),"",K21/SUM(K19:K100)) -> 0.2654649765 | O21: =IF(ISERROR('17. RTSR - Current Wholesale'!$P$113*M21), "", '17. RTSR - Current Wholesale'!$P$113*M21) -> 596888.9719 | Q21: 1.676500187
A22: GENERAL SERVICE 1,000 TO 4,999 KW | B22: Retail Transmission Rate - Line and Transformation Connection Service Rate | C22: $/kW | E22: 1.7429 | G22: 0 | I22: 137877 | K22: 240305.8233 | M22: =IF(ISERROR(K22/SUM(K19:K100)),"",K22/SUM(K19:K100)) -> 0.1101270548 | O22: =IF(ISERROR('17. RTSR - Current Wholesale'!$P$113*M22), "", '17. RTSR - Current Wholesale'!$P$113*M22) -> 247616.9377 | Q22: 1.795926353
A23: LARGE USE | B23: Retail Transmission Rate - Line and Transformation Connection Service Rate | C23: $/kW | E23: 1.977 | G23: 0 | I23: 164251 | K23: 324724.227 | M23: =IF(ISERROR(K23/SUM(K19:K100)),"",K23/SUM(K19:K100)) -> 0.1488142163 | O23: =IF(ISERROR('17. RTSR - Current Wholesale'!$P$113*M23), "", '17. RTSR - Current Wholesale'!$P$113*M23) -> 334603.7045 | Q23: 2.03714866
A24: STREET LIGHTING | B24: Retail Transmission Rate - Line and Transformation Connection Service Rate | C24: $/kW | E24: 2.0686 | G24: 0 | I24: 6999 | K24: 14478.1314 | M24: =IF(ISERROR(K24/SUM(K19:K100)),"",K24/SUM(K19:K100)) -> 0.006635020113 | O24: =IF(ISERROR('17. RTSR - Current Wholesale'!$P$113*M24), "", '17. RTSR - Current Wholesale'!$P$113*M24) -> 14918.61709 | Q24: 2.131535517
A25: SENTINEL LIGHTING | B25: Retail Transmission Rate - Line and Transformation Connection Service Rate | C25: $/kW | E25: 1.2516 | G25: 0 | I25: 261 | K25: 326.6676 | M25: =IF(ISERROR(K25/SUM(K19:K100)),"",K25/SUM(K19:K100)) -> 0.0001497048228 | O25: =IF(ISERROR('17. RTSR - Current Wholesale'!$P$113*M25), "", '17. RTSR - Current Wholesale'!$P$113*M25) -> 336.6062031 | Q25: 1.289678939
A26: UNMETERED SCATTERED LOAD | B26: Retail Transmission Rate - Line and Transformation Connection Service Rate | C26: $/kWh | E26: 0.0045 | G26: 562423.7003 | I26: 0 | K26: 2530.906651 | M26: =IF(ISERROR(K26/SUM(K19:K100)),"",K26/SUM(K19:K100)) -> 0.001159860763 | O26: =IF(ISERROR('17. RTSR - Current Wholesale'!$P$113*M26), "", '17. RTSR - Current Wholesale'!$P$113*M26) -> 2607.907483 | Q26: 0.004636908937
A27: EMBEDDED DISTRIBUTOR | B27: Retail Transmission Rate - Line and Transformation Connection Service Rate | C27: $/kW | E27: 2.2984 | G27: 0 | I27: 36588.4 | K27: 84094.77856 | M27: =IF(ISERROR(K27/SUM(K19:K100)),"",K27/SUM(K19:K100)) -> 0.03853885088 | O27: =IF(ISERROR('17. RTSR - Current Wholesale'!$P$113*M27), "", '17. RTSR - Current Wholesale'!$P$113*M27) -> 86653.29562 | Q27: 2.368327

Sheet 21. RTSR Adj Ntwk to Forcast WS
A13: The purpose of this sheet is to update the re-align RTS Network Rates to recover forecast wholesale network costs.
A16: Rate Class | B16: Rate Description | C16: Unit | E16: Adjusted RTSR-Network | G16: Loss Adjusted Billed kWh | I16: Loss Adjusted Billed kW | K16: Billed Amount | M16: Billed Amount % | O16: Forecast Wholesale Billing | Q16: Proposed RTSR Network
A19: RESIDENTIAL | B19: Retail Transmission Rate - Network Service Rate | C19: $/kWh | E19: 0.00651140759 | G19: 145243757 | I19: 0 | K19: =IF(E19="", "", IF(C19="$/kWh", E19*G19, E19*I19)) -> 945741.3016 | M19: =IF(ISERROR(K19/SUM(K19:K100)),"",K19/SUM(K19:K100)) -> 0.2851585526 | O19: =IF(ISERROR('18. RTSR - Forecast Wholesale'!$F$109*M19), "", '18. RTSR - Forecast Wholesale'!$F$109*M19) -> 908631.8644 | Q19: =IF(C19="","",IF(C19="$/kWh",IF(G19<>0,O19/G19,),IF(I19<>0,O19/I19,0))) -> 0.00625590995
A20: GENERAL SERVICE LESS THAN 50 KW | B20: Retail Transmission Rate - Network Service Rate | C20: $/kWh | E20: 0.006002703872 | G20: 49923948.76 | I20: 0 | K20: 299678.6805 | M20: =IF(ISERROR(K20/SUM(K19:K100)),"",K20/SUM(K19:K100)) -> 0.09035868333 | O20: =IF(ISERROR('18. RTSR - Forecast Wholesale'!$F$109*M20), "", '18. RTSR - Forecast Wholesale'!$F$109*M20) -> 287919.7491 | Q20: 0.005767166985
A21: GENERAL SERVICE 50 TO 999 KW | B21: Retail Transmission Rate - Network Service Rate | C21: $/kW | E21: 2.712408224 | G21: 0 | I21: 356032.75 | K21: 965706.1592 | M21: =IF(ISERROR(K21/SUM(K19:K100)),"",K21/SUM(K19:K100)) -> 0.2911783276 | O21: =IF(ISERROR('18. RTSR - Forecast Wholesale'!$F$109*M21), "", '18. RTSR - Forecast Wholesale'!$F$109*M21) -> 927813.3316 | Q21: 2.605977488
A22: GENERAL SERVICE 1,000 TO 4,999 KW | B22: Retail Transmission Rate - Network Service Rate | C22: $/kW | E22: 2.946004972 | G22: 0 | I22: 137877.28 | K22: 406187.1523 | M22: =IF(ISERROR(K22/SUM(K19:K100)),"",K22/SUM(K19:K100)) -> 0.1224729641 | O22: =IF(ISERROR('18. RTSR - Forecast Wholesale'!$F$109*M22), "", '18. RTSR - Forecast Wholesale'!$F$109*M22) -> 390248.9919 | Q22: 2.830408258
A23: LARGE USE | B23: Retail Transmission Rate - Network Service Rate | C23: $/kW | E23: 3.26597961 | G23: 0 | I23: 164251 | K23: 536440.4169 | M23: =IF(ISERROR(K23/SUM(K19:K100)),"",K23/SUM(K19:K100)) -> 0.1617467405 | O23: =IF(ISERROR('18. RTSR - Forecast Wholesale'!$F$109*M23), "", '18. RTSR - Forecast Wholesale'!$F$109*M23) -> 515391.3183 | Q23: 3.137827583
A24: STREET LIGHTING | B24: Retail Transmission Rate - Network Service Rate | C24: $/kW | E24: 2.094841911 | G24: 0 | I24: 6999 | K24: 14661.79853 | M24: =IF(ISERROR(K24/SUM(K19:K100)),"",K24/SUM(K19:K100)) -> 0.004420804337 | O24: =IF(ISERROR('18. RTSR - Forecast Wholesale'!$F$109*M24), "", '18. RTSR - Forecast Wholesale'!$F$109*M24) -> 14086.49206 | Q24: 2.012643529
A25: SENTINEL LIGHTING | B25: Retail Transmission Rate - Network Service Rate | C25: $/kW | E25: 2.094841911 | G25: 0 | I25: 261 | K25: 546.7537387 | M25: =IF(ISERROR(K25/SUM(K19:K100)),"",K25/SUM(K19:K100)) -> 0.0001648563983 | O25: =IF(ISERROR('18. RTSR - Forecast Wholesale'!$F$109*M25), "", '18. RTSR - Forecast Wholesale'!$F$109*M25) -> 525.2999611 | Q25: 2.012643529
A26: UNMETERED SCATTERED LOAD | B26: Retail Transmission Rate - Network Service Rate | C26: $/kWh | E26: 0.006002703872 | G26: 562423.7003 | I26: 0 | K26: 3376.062924 | M26: =IF(ISERROR(K26/SUM(K19:K100)),"",K26/SUM(K19:K100)) -> 0.001017945621 | O26: =IF(ISERROR('18. RTSR - Forecast Wholesale'!$F$109*M26), "", '18. RTSR - Forecast Wholesale'!$F$109*M26) -> 3243.591396 | Q26: 0.005767166985
A27: EMBEDDED DISTRIBUTOR | B27: Retail Transmission Rate - Network Service Rate | C27: $/kW | E27: 3.941334666 | G27: 0 | I27: 36588.4 | K27: 144207.1293 | M27: =IF(ISERROR(K27/SUM(K19:K100)),"",K27/SUM(K19:K100)) -> 0.04348112554 | O27: =IF(ISERROR('18. RTSR - Forecast Wholesale'!$F$109*M27), "", '18. RTSR - Forecast Wholesale'!$F$109*M27) -> 138548.6629 | Q27: 3.786682743

Sheet 22. RTSR Adj Conn. to Forcst WS
A13: The purpose of this sheet is to update the re-aligned RTS Connection Rates to recover forecast wholesale connection costs.
A16: Rate Class | B16: Rate Description | C16: Unit | E16: Adjusted RTSR-Connection | G16: Loss Adjusted Billed kWh | I16: Loss Adjusted Billed kW | K16: Billed Amount | M16: Billed Amount % | O16: Forecast Wholesale Billing | Q16: Proposed RTSR Connection
A19: RESIDENTIAL | B19: Retail Transmission Rate - Line and Transformation Connection Service Rate | C19: $/kWh | E19: 0.005049078621 | G19: 145243757 | I19: 0 | K19: =IF(E19="", "", IF(C19="$/kWh", E19*G19, E19*I19)) -> 733347.1482 | M19: =IF(ISERROR(K19/SUM(K19:K100)),"",K19/SUM(K19:K100)) -> 0.3261544317 | O19: =IF(ISERROR('18. RTSR - Forecast Wholesale'!$P$113*M19), "", '18. RTSR - Forecast Wholesale'!$P$113*M19) -> 716820.8186 | Q19: =IF(C19="","",IF(C19="$/kWh",IF(G19<>0,O19/G19,),IF(I19<>0,O19/I19,0))) -> 0.004935295213
A20: GENERAL SERVICE LESS THAN 50 KW | B20: Retail Transmission Rate - Line and Transformation Connection Service Rate | C20: $/kWh | E20: 0.004636908937 | G20: 49923948.76 | I20: 0 | K20: 231492.8042 | M20: =IF(ISERROR(K20/SUM(K19:K100)),"",K20/SUM(K19:K100)) -> 0.1029558841 | O20: =IF(ISERROR('18. RTSR - Forecast Wholesale'!$P$113*M20), "", '18. RTSR - Forecast Wholesale'!$P$113*M20) -> 226276.0029 | Q20: 0.004532413971
A21: GENERAL SERVICE 50 TO 999 KW | B21: Retail Transmission Rate - Line and Transformation Connection Service Rate | C21: $/kW | E21: 1.676500187 | G21: 0 | I21: 356032.75 | K21: 596888.9719 | M21: =IF(ISERROR(K21/SUM(K19:K100)),"",K21/SUM(K19:K100)) -> 0.2654649765 | O21: =IF(ISERROR('18. RTSR - Forecast Wholesale'!$P$113*M21), "", '18. RTSR - Forecast Wholesale'!$P$113*M21) -> 583437.7928 | Q21: 1.638719451
A22: GENERAL SERVICE 1,000 TO 4,999 KW | B22: Retail Transmission Rate - Line and Transformation Connection Service Rate | C22: $/kW | E22: 1.795926353 | G22: 0 | I22: 137877 | K22: 247616.9377 | M22: =IF(ISERROR(K22/SUM(K19:K100)),"",K22/SUM(K19:K100)) -> 0.1101270548 | O22: =IF(ISERROR('18. RTSR - Forecast Wholesale'!$P$113*M22), "", '18. RTSR - Forecast Wholesale'!$P$113*M22) -> 242036.7713 | Q22: 1.755454291
A23: LARGE USE | B23: Retail Transmission Rate - Line and Transformation Connection Service Rate | C23: $/kW | E23: 2.03714866 | G23: 0 | I23: 164251 | K23: 334603.7045 | M23: =IF(ISERROR(K23/SUM(K19:K100)),"",K23/SUM(K19:K100)) -> 0.1488142163 | O23: =IF(ISERROR('18. RTSR - Forecast Wholesale'!$P$113*M23), "", '18. RTSR - Forecast Wholesale'!$P$113*M23) -> 327063.2496 | Q23: 1.991240538
A24: STREET LIGHTING | B24: Retail Transmission Rate - Line and Transformation Connection Service Rate | C24: $/kW | E24: 2.131535517 | G24: 0 | I24: 6999 | K24: 14918.61709 | M24: =IF(ISERROR(K24/SUM(K19:K100)),"",K24/SUM(K19:K100)) -> 0.006635020113 | O24: =IF(ISERROR('18. RTSR - Forecast Wholesale'!$P$113*M24), "", '18. RTSR - Forecast Wholesale'!$P$113*M24) -> 14582.4189 | Q24: 2.083500342
A25: SENTINEL LIGHTING | B25: Retail Transmission Rate - Line and Transformation Connection Service Rate | C25: $/kW | E25: 1.289678939 | G25: 0 | I25: 261 | K25: 336.6062031 | M25: =IF(ISERROR(K25/SUM(K19:K100)),"",K25/SUM(K19:K100)) -> 0.0001497048228 | O25: =IF(ISERROR('18. RTSR - Forecast Wholesale'!$P$113*M25), "", '18. RTSR - Forecast Wholesale'!$P$113*M25) -> 329.0206209 | Q25: 1.260615406
A26: UNMETERED SCATTERED LOAD | B26: Retail Transmission Rate - Line and Transformation Connection Service Rate | C26: $/kWh | E26: 0.004636908937 | G26: 562423.7003 | I26: 0 | K26: 2607.907483 | M26: =IF(ISERROR(K26/SUM(K19:K100)),"",K26/SUM(K19:K100)) -> 0.001159860763 | O26: =IF(ISERROR('18. RTSR - Forecast Wholesale'!$P$113*M26), "", '18. RTSR - Forecast Wholesale'!$P$113*M26) -> 2549.137037 | Q26: 0.004532413971
A27: EMBEDDED DISTRIBUTOR | B27: Retail Transmission Rate - Line and Transformation Connection Service Rate | C27: $/kW | E27: 2.368327 | G27: 0 | I27: 36588.4 | K27: 86653.29562 | M27: =IF(ISERROR(K27/SUM(K19:K100)),"",K27/SUM(K19:K100)) -> 0.03853885088 | O27: =IF(ISERROR('18. RTSR - Forecast Wholesale'!$P$113*M27), "", '18. RTSR - Forecast Wholesale'!$P$113*M27) -> 84700.52206 | Q27: 2.314955616

Sheet 23. RTSR Final 2015 RTS Rates
A13: This sheet lists proposed RTSRs for all classes. No input required.
A16: Rate Class | B16: Rate Description | C16: Unit | E16: Proposed Retail Transmission Rate
A19: RESIDENTIAL | B19: Retail Transmission Rate - Network Service Rate | C19: $/kWh | E19: 0.00625590995
A20: RESIDENTIAL | B20: Retail Transmission Rate - Line and Transformation Connection Service Rate | C20: $/kWh | E20: 0.004935295213
A21: GENERAL SERVICE LESS THAN 50 KW | B21: Retail Transmission Rate - Network Service Rate | C21: $/kWh | E21: 0.005767166985
A22: GENERAL SERVICE LESS THAN 50 KW | B22: Retail Transmission Rate - Line and Transformation Connection Service Rate | C22: $/kWh | E22: 0.004532413971
A23: GENERAL SERVICE 50 TO 999 KW | B23: Retail Transmission Rate - Network Service Rate | C23: $/kW | E23: 2.605977488
A24: GENERAL SERVICE 50 TO 999 KW | B24: Retail Transmission Rate - Line and Transformation Connection Service Rate | C24: $/kW | E24: 1.638719451
A25: GENERAL SERVICE 1,000 TO 4,999 KW | B25: Retail Transmission Rate - Network Service Rate | C25: $/kW | E25: 2.830408258
A26: GENERAL SERVICE 1,000 TO 4,999 KW | B26: Retail Transmission Rate - Line and Transformation Connection Service Rate | C26: $/kW | E26: 1.755454291
A27: LARGE USE | B27: Retail Transmission Rate - Network Service Rate | C27: $/kW | E27: 3.137827583
A28: LARGE USE | B28: Retail Transmission Rate - Line and Transformation Connection Service Rate | C28: $/kW | E28: 1.991240538
A29: STREET LIGHTING | B29: Retail Transmission Rate - Network Service Rate | C29: $/kW | E29: 2.012643529
A30: STREET LIGHTING | B30: Retail Transmission Rate - Line and Transformation Connection Service Rate | C30: $/kW | E30: 2.083500342
A31: SENTINEL LIGHTING | B31: Retail Transmission Rate - Network Service Rate | C31: $/kW | E31: 2.012643529
A32: SENTINEL LIGHTING | B32: Retail Transmission Rate - Line and Transformation Connection Service Rate | C32: $/kW | E32: 1.260615406
A33: UNMETERED SCATTERED LOAD | B33: Retail Transmission Rate - Network Service Rate | C33: $/kWh | E33: 0.005767166985
A34: UNMETERED SCATTERED LOAD | B34: Retail Transmission Rate - Line and Transformation Connection Service Rate | C34: $/kWh | E34: 0.004532413971
A35: EMBEDDED DISTRIBUTOR | B35: Retail Transmission Rate - Network Service Rate | C35: $/kW | E35: 3.786682743
A36: EMBEDDED DISTRIBUTOR | B36: Retail Transmission Rate - Line and Transformation Connection Service Rate | C36: $/kW | E36: 2.314955616

Sheet 24. Rev2Cost_GDPIPI
Y1: FALSE | Z1: 0 | AC1: NO
Y2: TRUE
A12: If applicable, please enter any adjustments related to the revenue to cost ratio model into columns C and E. The Price Escalator and Stretch Factor have been set at the 2014 values and will be updated by Board staff at a later date.
A15: Price Escalator | B15: 0.016 | C15: Choose Stretch Factor Group | E15: III
A16: Productivity Factor | B16: 0 | C16: Associated Stretch Factor Value | E16: =IF(E15="I", 0%, IF(E15="II", 0.15%, IF(E15="III", 0.3%, IF(E15="IV", 0.45%, 0.6%)))) -> 0.003
A17: Price Cap Index | B17: =B15-B16-E16 -> 0.013
B19: Current MFC | C19: MFC Adjustment from R/C Model | D19: Current Volumetric Charge | E19: DVR Adjustment from R/C Model | F19: Price Cap Index to be Applied to MFC and DVR | G19: Proposed MFC | H19: Proposed Volumetric Charge
A20: Rate Class
A22: RESIDENTIAL | B22: 15.44 | D22: 0.018 | F22: =$B$17 -> 0.013 | G22: =ROUND(SUM(B22,C22)*(1+F22),2) -> 15.64 | H22: =ROUND(SUM(D22,E22)*(1+F22),4) -> 0.0182
A23: GENERAL SERVICE LESS THAN 50 KW | B23: 21.27 | D23: 0.0138 | F23: 0.013 | G23: 21.55 | H23: 0.014
A24: GENERAL SERVICE 50 TO 999 KW | B24: 122.08 | D24: 2.961 | F24: 0.013 | G24: 123.67 | H24: 2.9995
A25: GENERAL SERVICE 1,000 TO 4,999 KW | B25: 2421.63 | D25: 4.024 | F25: 0.013 | G25: 2453.11 | H25: 4.0763
A26: LARGE USE | B26: 9890.55 | D26: 1.8179 | F26: 0.013 | G26: 10019.13 | H26: 1.8415
A27: STREET LIGHTING | B27: 3.86 | D27: 22.4339 | F27: 0.013 | G27: 3.91 | H27: 22.7255
A28: SENTINEL LIGHTING | B28: 5.33 | D28: 14.9586 | F28: 0.013 | G28: 5.4 | H28: 15.1531
A29: UNMETERED SCATTERED LOAD | B29: 3.05 | D29: 0.109 | F29: 0.013 | G29: 3.09 | H29: 0.1104
A30: EMBEDDED DISTRIBUTOR | B30: 2253.91 | D30: 3.8772 | F30: 0.013 | G30: 2283.21 | H30: 3.9276
A31: microFIT | B31: 5.4 | G31: 5.4

Sheet 24. hidden (hidden)
A1: Rate Class | B1: MFC Adjustment from R/C Model | C1: DVR Adjustment from R/C Model
A2: RESIDENTIAL | B2: 15.44 | D2: 0.018
A3: GENERAL SERVICE LESS THAN 50 KW | B3: 21.27 | D3: 0.0138
A4: GENERAL SERVICE 50 TO 999 KW | B4: 122.08 | D4: 2.961
A5: GENERAL SERVICE 1,000 TO 4,999 KW | B5: 2421.63 | D5: 4.024
A6: LARGE USE | B6: 9890.55 | D6: 1.8179
A7: STREET LIGHTING | B7: 3.86 | D7: 22.4339
A8: SENTINEL LIGHTING | B8: 5.33 | D8: 14.9586
A9: UNMETERED SCATTERED LOAD | B9: 3.05 | D9: 0.109
A10: EMBEDDED DISTRIBUTOR | B10: 2253.91 | D10: 3.8772
A11: microFIT | B11: 5.4

Sheet 25. Other Charges & LF
A11: Please enter the following charges as found on your most recent Board-Approved Tariff Schedule. The standard Allowance rates have been included as default entries. If you have different rates, please make the appropriate corrections in the applicable cells below. As well, please enter the current Specific Service Charges below. The standard Retail Service Charges have been entered below. If you have different rates, please make the appropriate corrections in columns A, C or D as applicable (cells are unlocked).
C13: UNIT | D13: RATE
A15: ALLOWANCES
A17: Transformer Allowance for Ownership - per kW of billing demand/month | C17: $/kW | D17: -0.6
A20: Primary Metering Allowance for transformer losses – applied to measured demand and energy | C20: % | D20: -1
A22: SPECIFIC SERVICE CHARGES
A24: APPLICATION
A26: The application of these rates and charges shall be in accordance with the Licence of the Distributor and any Code or Order of the Board, and amendments thereto as approved by the Board, which may be applicable to the administration of this schedule.
A27: No charges to meet the costs of any work or service done or furnished for the purpose of the distribution of electricity shall be made except as permitted by this schedule, unless required by the Distributor’s Licence or a Code or Order of the Board, and amendments thereto as approved by the Board, or as specified herein.
A28: It should be noted that this schedule does not list any charges, assessments or credits that are required by law to be invoiced by a distributor and that are not subject to Board approval, such as the Debt Retirement Charge, the Global Adjustment, the Ontario Clean Energy Benefit and the HST.
A30: Customer Administration
A31: Arrears certificate | C31: $ | D31: 15
A32: Easement Letter | C32: $ | D32: 15
A33: Credit Reference/credit check (plus credit agency costs) | C33: $ | D33: 15
A34: Returned cheque (plus bank charges) | C34: $ | D34: 15
A35: Account set up charge/change of occupancy charge (plus credit agency costs if applicable) | C35: $ | D35: 30
A36: Special meter reads | C36: $ | D36: 30
A37: Meter dispute charge plus Measurement Canada fees (if meter found correct) | C37: $ | D37: 30
A67: Non-Payment of Account
A68: Late Payment – per month | C68: % | D68: 1.5
A69: Late Payment – per annum | C69: % | D69: 19.56
A70: Collection of account charge – no disconnection - during regular business hours | C70: $ | D70: 30
A71: Collection of account charge – no disconnection – after regular hours | C71: $ | D71: 165
A72: Disconnect/Reconnect at meter – during regular hours | C72: $ | D72: 65
A73: Disconnect/Reconnect at meter – after regular hours | C73: $ | D73: 185
A74: Disconnect/Reconnect at pole – during regular hours | C74: $ | D74: 185
A94: Temporary Service – Install & remove – overhead – no transformer | C94: $ | D94: 500
A95: Temporary Service – Install & remove – underground – no transformer | C95: $ | D95: 300
A96: Specific Charge for Access to the Power Poles - $/pole/year | C96: $ | D96: 22.35
A116: RETAIL SERVICE CHARGES (if applicable)
A118: The application of these rates and charges shall be in accordance with the Licence of the Distributor and any Code or Order of the Board, and amendments thereto as approved by the Board, which may be applicable to the administration of this schedule.
A120: No rates and charges for the distribution of electricity and charges to meet the costs of any work or service done or furnished for the purpose of the distribution of electricity shall be made except as permitted by this schedule, unless required by the Distributor’s Licence or a Code or Order of the Board, and amendments thereto as approved by the Board, or as specified herein.
A122: Unless specifically noted, this schedule does not contain any charges for the electricity commodity, be it under the Regulated Price Plan, a contract with a retailer or the wholesale market price, as applicable.
A124: It should be noted that this schedule does not list any charges, assessments, or credits that are required by law to be invoiced by a distributor and that are not subject to Board approval, such as the Debt Retirement Charge, the Global Adjustment, the Ontario Clean Energy Benefit and the HST.
A126: Retail Service Charges refer to services provided by a distributor to retailers or customers related to the supply of competitive electricity.
A128: One-time charge, per retailer, to establish the service agreement between the distributor and the retailer | C128: $ | D128: 100
A129: Monthly Fixed Charge, per retailer | C129: $ | D129: 20
A130: Monthly Variable Charge, per customer, per retailer | C130: $/cust. | D130: 0.5
A131: Distributor-consolidated billing monthly charge, per customer, per retailer | C131: $/cust. | D131: 0.3
A132: Retailer-consolidated billing monthly credit, per customer, per retailer | C132: $/cust. | D132: -0.3
A133: Service Transaction Requests (STR)
A134: Request fee, per request, applied to the requesting party | C134: $ | D134: 0.25
A135: Processing fee, per request, applied to the requesting party | C135: $ | D135: 0.5
A136: Request for customer information as outlined in Section 10.6.3 and Chapter 11 of the Retail
A137: Settlement Code directly to retailers and customers, if not delivered electronically through the
A138: Electronic Business Transaction (EBT) system, applied to the requesting party
A139: Up to twice a year | C139: $ | D139: no charge
A140: More than twice a year, per request (plus incremental delivery costs) | C140: $ | D140: 2
A143: LOSS FACTORS
A145: If the distributor is not capable of prorating changed loss factors jointly with distribution rates, the revised loss factors will be implemented upon the first subsequent billing for each billing cycle.
A148: Total Loss Factor – Secondary Metered Customer < 5,000 kW | D148: 1.0451 | H148: TLF_Secondary_LT_5000kW
A149: Total Loss Factor – Secondary Metered Customer > 5,000 kW | D149: 1.0161 | H149: TLF_Primary_LT_5000kW
A150: Total Loss Factor – Primary Metered Customer < 5,000 kW | D150: 1.0347
A151: Total Loss Factor – Primary Metered Customer > 5,000 kW | D151: 1.006

Sheet 26. Proposed Rates
Z1: 3
L5: =ROUND(LEN(B5), -2) / 100 -> 0
L9: =ROUND(LEN(B9), -2) / 100 -> 0
B12: In the Green Cells below, enter any proposed rate riders that are not already included in this model (e.g: ICM rate riders). In column B, the rate rider descriptions must begin with "Rate Rider for". In column C, choose the associated unit from the drop-down menu. In column D, enter the rate. All rate riders with a "$" unit will be rounded to 2 decimal places and all others will be rounded to 4 decimal places.
A20: RESIDENTIAL | B20: RESIDENTIAL SERVICE CLASSIFICATION | C20: Unit | D20: Rate
A21: RESIDENTIAL
A22: RESIDENTIAL
A23: RESIDENTIAL
A24: RESIDENTIAL
A25: RESIDENTIAL
A26: RESIDENTIAL
A27: RESIDENTIAL
A28: RESIDENTIAL
A29: RESIDENTIAL
A30: RESIDENTIAL
A32: GENERAL SERVICE LESS THAN 50 KW | B32: GENERAL SERVICE LESS THAN 50 KW SERVICE CLASSIFICATION | C32: Unit | D32: Rate
A33: GENERAL SERVICE LESS THAN 50 KW
A34: GENERAL SERVICE LESS THAN 50 KW
A35: GENERAL SERVICE LESS THAN 50 KW
A36: GENERAL SERVICE LESS THAN 50 KW
A37: GENERAL SERVICE LESS THAN 50 KW
A38: GENERAL SERVICE LESS THAN 50 KW
A39: GENERAL SERVICE LESS THAN 50 KW
A40: GENERAL SERVICE LESS THAN 50 KW
A41: GENERAL SERVICE LESS THAN 50 KW
A42: GENERAL SERVICE LESS THAN 50 KW
A44: GENERAL SERVICE 50 TO 999 KW | B44: GENERAL SERVICE 50 TO 999 KW SERVICE CLASSIFICATION | C44: Unit | D44: Rate
A45: GENERAL SERVICE 50 TO 999 KW
A46: GENERAL SERVICE 50 TO 999 KW
A47: GENERAL SERVICE 50 TO 999 KW
A48: GENERAL SERVICE 50 TO 999 KW
A49: GENERAL SERVICE 50 TO 999 KW
A50: GENERAL SERVICE 50 TO 999 KW
A51: GENERAL SERVICE 50 TO 999 KW
A52: GENERAL SERVICE 50 TO 999 KW
A53: GENERAL SERVICE 50 TO 999 KW
A54: GENERAL SERVICE 50 TO 999 KW
A56: GENERAL SERVICE 1,000 TO 4,999 KW | B56: GENERAL SERVICE 1,000 TO 4,999 KW SERVICE CLASSIFICATION | C56: Unit | D56: Rate
A57: GENERAL SERVICE 1,000 TO 4,999 KW
A58: GENERAL SERVICE 1,000 TO 4,999 KW
A59: GENERAL SERVICE 1,000 TO 4,999 KW
A60: GENERAL SERVICE 1,000 TO 4,999 KW
A61: GENERAL SERVICE 1,000 TO 4,999 KW
A62: GENERAL SERVICE 1,000 TO 4,999 KW
A63: GENERAL SERVICE 1,000 TO 4,999 KW
A64: GENERAL SERVICE 1,000 TO 4,999 KW
A65: GENERAL SERVICE 1,000 TO 4,999 KW
A66: GENERAL SERVICE 1,000 TO 4,999 KW
A68: LARGE USE | B68: LARGE USE SERVICE CLASSIFICATION | C68: Unit | D68: Rate
A69: LARGE USE
A70: LARGE USE
A71: LARGE USE
A72: LARGE USE
A73: LARGE USE
A74: LARGE USE
A75: LARGE USE
A76: LARGE USE
A77: LARGE USE
A78: LARGE USE
A80: STREET LIGHTING | B80: STREET LIGHTING SERVICE CLASSIFICATION | C80: Unit | D80: Rate
A81: STREET LIGHTING
A82: STREET LIGHTING
A83: STREET LIGHTING
A84: STREET LIGHTING
A85: STREET LIGHTING
A86: STREET LIGHTING
A87: STREET LIGHTING
A88: STREET LIGHTING
A89: STREET LIGHTING
A90: STREET LIGHTING
A92: SENTINEL LIGHTING | B92: SENTINEL LIGHTING SERVICE CLASSIFICATION | C92: Unit | D92: Rate
A93: SENTINEL LIGHTING
A94: SENTINEL LIGHTING
A95: SENTINEL LIGHTING
A96: SENTINEL LIGHTING
A97: SENTINEL LIGHTING
A98: SENTINEL LIGHTING
A99: SENTINEL LIGHTING
A100: SENTINEL LIGHTING
A101: SENTINEL LIGHTING
A102: SENTINEL LIGHTING
A104: UNMETERED SCATTERED LOAD | B104: UNMETERED SCATTERED LOAD SERVICE CLASSIFICATION | C104: Unit | D104: Rate
A105: UNMETERED SCATTERED LOAD
A106: UNMETERED SCATTERED LOAD
A107: UNMETERED SCATTERED LOAD
A108: UNMETERED SCATTERED LOAD
A109: UNMETERED SCATTERED LOAD
A110: UNMETERED SCATTERED LOAD
A111: UNMETERED SCATTERED LOAD
A112: UNMETERED SCATTERED LOAD
A113: UNMETERED SCATTERED LOAD
A114: UNMETERED SCATTERED LOAD
A116: EMBEDDED DISTRIBUTOR | B116: EMBEDDED DISTRIBUTOR SERVICE CLASSIFICATION | C116: Unit | D116: Rate
A117: EMBEDDED DISTRIBUTOR
A118: EMBEDDED DISTRIBUTOR
A119: EMBEDDED DISTRIBUTOR
A120: EMBEDDED DISTRIBUTOR
A121: EMBEDDED DISTRIBUTOR
A122: EMBEDDED DISTRIBUTOR
A123: EMBEDDED DISTRIBUTOR
A124: EMBEDDED DISTRIBUTOR
A125: EMBEDDED DISTRIBUTOR
A126: EMBEDDED DISTRIBUTOR
A128: microFIT | B128: microFIT SERVICE CLASSIFICATION | C128: Unit | D128: Rate
A129: microFIT
A130: microFIT
A131: microFIT
A132: microFIT
A133: microFIT
A134: microFIT
A135: microFIT
A136: microFIT
A137: microFIT
A138: microFIT
B142: PROPOSED MONTHLY RATES AND CHARGES - Regulatory Component
A144: Wholesale Market Service Rate | B144: Wholesale Market Service Rate | C144: $/kWh | D144: 0.0044
A145: Rural or Remote Electricity Rate Protection Charge (RRRP) | B145: Rural or Remote Electricity Rate Protection Charge (RRRP) | C145: $/kWh | D145: 0.0013
A146: Standard Supply Service - Administrative Charge (if applicable) | B146: Standard Supply Service - Administrative Charge (if applicable) | C146: $ | D146: 0.25

Sheet 26. Hidden (hidden)
A1: RESIDENTIAL | B1: RESIDENTIAL SERVICE CLASSIFICATION | C1: Unit | D1: Rate
A2: RESIDENTIAL
A3: RESIDENTIAL
A4: RESIDENTIAL
A5: RESIDENTIAL
A6: RESIDENTIAL
A7: RESIDENTIAL
A8: RESIDENTIAL
A9: RESIDENTIAL
A10: RESIDENTIAL
A11: RESIDENTIAL
A13: GENERAL SERVICE LESS THAN 50 KW | B13: GENERAL SERVICE LESS THAN 50 KW SERVICE CLASSIFICATION | C13: Unit | D13: Rate
A14: GENERAL SERVICE LESS THAN 50 KW
A15: GENERAL SERVICE LESS THAN 50 KW
A16: GENERAL SERVICE LESS THAN 50 KW
A17: GENERAL SERVICE LESS THAN 50 KW
A18: GENERAL SERVICE LESS THAN 50 KW
A19: GENERAL SERVICE LESS THAN 50 KW
A20: GENERAL SERVICE LESS THAN 50 KW
A21: GENERAL SERVICE LESS THAN 50 KW
A22: GENERAL SERVICE LESS THAN 50 KW
A23: GENERAL SERVICE LESS THAN 50 KW
A25: GENERAL SERVICE 50 TO 999 KW | B25: GENERAL SERVICE 50 TO 999 KW SERVICE CLASSIFICATION | C25: Unit | D25: Rate
A26: GENERAL SERVICE 50 TO 999 KW
A27: GENERAL SERVICE 50 TO 999 KW
A28: GENERAL SERVICE 50 TO 999 KW
A29: GENERAL SERVICE 50 TO 999 KW
A30: GENERAL SERVICE 50 TO 999 KW
A31: GENERAL SERVICE 50 TO 999 KW
A32: GENERAL SERVICE 50 TO 999 KW
A33: GENERAL SERVICE 50 TO 999 KW
A34: GENERAL SERVICE 50 TO 999 KW
A35: GENERAL SERVICE 50 TO 999 KW
A37: GENERAL SERVICE 1,000 TO 4,999 KW | B37: GENERAL SERVICE 1,000 TO 4,999 KW SERVICE CLASSIFICATION | C37: Unit | D37: Rate
A38: GENERAL SERVICE 1,000 TO 4,999 KW
A39: GENERAL SERVICE 1,000 TO 4,999 KW
A40: GENERAL SERVICE 1,000 TO 4,999 KW
A41: GENERAL SERVICE 1,000 TO 4,999 KW
A42: GENERAL SERVICE 1,000 TO 4,999 KW
A43: GENERAL SERVICE 1,000 TO 4,999 KW
A44: GENERAL SERVICE 1,000 TO 4,999 KW
A45: GENERAL SERVICE 1,000 TO 4,999 KW
A46: GENERAL SERVICE 1,000 TO 4,999 KW
A47: GENERAL SERVICE 1,000 TO 4,999 KW
A49: LARGE USE | B49: LARGE USE SERVICE CLASSIFICATION | C49: Unit | D49: Rate
A50: LARGE USE
A51: LARGE USE
A52: LARGE USE
A53: LARGE USE
A54: LARGE USE
A55: LARGE USE
A56: LARGE USE
A57: LARGE USE
A58: LARGE USE
A59: LARGE USE
A61: STREET LIGHTING | B61: STREET LIGHTING SERVICE CLASSIFICATION | C61: Unit | D61: Rate
A62: STREET LIGHTING
A63: STREET LIGHTING
A64: STREET LIGHTING
A65: STREET LIGHTING
A66: STREET LIGHTING
A67: STREET LIGHTING
A68: STREET LIGHTING
A69: STREET LIGHTING
A70: STREET LIGHTING
A71: STREET LIGHTING
A73: SENTINEL LIGHTING | B73: SENTINEL LIGHTING SERVICE CLASSIFICATION | C73: Unit | D73: Rate
A74: SENTINEL LIGHTING
A75: SENTINEL LIGHTING
A76: SENTINEL LIGHTING
A77: SENTINEL LIGHTING
A78: SENTINEL LIGHTING
A79: SENTINEL LIGHTING
A80: SENTINEL LIGHTING
A81: SENTINEL LIGHTING
A82: SENTINEL LIGHTING
A83: SENTINEL LIGHTING
A85: UNMETERED SCATTERED LOAD | B85: UNMETERED SCATTERED LOAD SERVICE CLASSIFICATION | C85: Unit | D85: Rate
A86: UNMETERED SCATTERED LOAD
A87: UNMETERED SCATTERED LOAD
A88: UNMETERED SCATTERED LOAD
A89: UNMETERED SCATTERED LOAD
A90: UNMETERED SCATTERED LOAD
A91: UNMETERED SCATTERED LOAD
A92: UNMETERED SCATTERED LOAD
A93: UNMETERED SCATTERED LOAD
A94: UNMETERED SCATTERED LOAD
A95: UNMETERED SCATTERED LOAD
A97: EMBEDDED DISTRIBUTOR | B97: EMBEDDED DISTRIBUTOR SERVICE CLASSIFICATION | C97: Unit | D97: Rate
A98: EMBEDDED DISTRIBUTOR
A99: EMBEDDED DISTRIBUTOR
A100: EMBEDDED DISTRIBUTOR
A101: EMBEDDED DISTRIBUTOR
A102: EMBEDDED DISTRIBUTOR
A103: EMBEDDED DISTRIBUTOR
A104: EMBEDDED DISTRIBUTOR
A105: EMBEDDED DISTRIBUTOR
A106: EMBEDDED DISTRIBUTOR
A107: EMBEDDED DISTRIBUTOR
A109: microFIT | B109: microFIT SERVICE CLASSIFICATION | C109: Unit | D109: Rate
A110: microFIT
A111: microFIT
A112: microFIT
A113: microFIT
A114: microFIT
A115: microFIT
A116: microFIT
A117: microFIT
A118: microFIT
A119: microFIT
B123: PROPOSED MONTHLY RATES AND CHARGES - Regulatory Component
A125: Wholesale Market Service Rate | B125: Wholesale Market Service Rate | C125: $/kWh | D125: 0.0044
A126: Rural or Remote Electricity Rate Protection Charge (RRRP) | B126: Rural or Remote Electricity Rate Protection Charge (RRRP) | C126: $/kWh | D126: 0.0013
A127: Standard Supply Service - Administrative Charge (if applicable) | B127: Standard Supply Service - Administrative Charge (if applicable) | C127: $ | D127: 0.25

Sheet 27. Final Tariff Schedule
A1: hidden column | B1: ='1. Information Sheet'!F14 -> Erie Thames Powerlines Corporation | F1: hidden column | Z1: 3
A2: for rate classes | B2: TARIFF OF RATES AND CHARGES | F2: for proposed
B3: ="Effective and Implementation Date " & TEXT('1. Information Sheet'!F26, "mmmm dd, yyyy") -> Effective and Implementation Date May 01, 2015 | F3: labeliing
B5: This schedule supersedes and replaces all previously
B6: approved schedules of Rates, Charges and Loss Factors | L6: =ROUND(LEN(B6), -2) / 100 -> 1
B7: =IF(LEN('1. Information Sheet'!F18)=0, "Please enter your assigned EB# on Sheet 1", '1. Information Sheet'!F18) -> EB-2014-0070
B9: RESIDENTIAL SERVICE CLASSIFICATION
B11: This classification refers to the supply of electrical energy to customers residing in residential dwelling units. Further servicing details are available in the distributor's Conditions of Service. | L11: =ROUND(LEN(B11), -2) / 100 -> 2
B13: APPLICATION
B15: The application of these rates and charges shall be in accordance with the Licence of the Distributor and any Code or Order of the Board, and amendments thereto as approved by the Board, which may be applicable to the administration of this schedule. | L15: =ROUND(LEN(B15), -2) / 100 -> 3
B17: No rates and charges for the distribution of electricity and charges to meet the costs of any work or service done or furnished for the purpose of the distribution of electricity shall be made except as permitted by this schedule unless required by the Distributors's Licence or a Code or Order of the Board, and amendments thereto as approved by the Board, or as specified herein. | L17: =ROUND(LEN(B17), -2) / 100 -> 4
B19: Unless specifically noted, this schedule does not contain any charges for the electricity commodity, be it under the Regulated Price Plan, a contract with a retailer or the wholesale market price, as applicable. In addition, the charges in the MONTHLY RATES AND CHARGES -- Regulatory Component of this schedule do not apply to a customer that is an embedded wholesale market participant. | L19: =ROUND(LEN(B19), -2) / 100 -> 4
B21: It should be noted that this schedule does not list any charges, assessments or credits that are required by law to be invoiced by a distributor and that are not subject to Board approval, such as the Debt Retirement Charge, the Global Adjustment, the Ontario Clean Energy Benefit and the HST. | L21: =ROUND(LEN(B21), -2) / 100 -> 3
B23: MONTHLY RATES AND CHARGES - Delivery Component
A25: RESIDENTIAL | B25: Service Charge | D25: $ | E25: 15.64 | K25: 1_P_MSC
A26: RESIDENTIAL | B26: Rate Rider for Smart Metering Entity Charge - effective until October 31, 2018 | D26: $ | E26: 0.79 | K26: 1_P_SMEC
A27: RESIDENTIAL | B27: Distribution Volumetric Rate | D27: $/kWh | E27: 0.0182 | K27: 1_P_VC_1
A28: RESIDENTIAL | B28: Low Voltage Volumetric Rate | D28: $/kWh | E28: 0.0021 | K28: 1_P_LVrate
A29: RESIDENTIAL | B29: Rate Rider for Disposition of Deferral/Variance Accounts (2012) – effective until December 31, 2016 Applicable only in the former service area of Clinton Power | D29: $/kWh | E29: 0.0073 | K29: 1_P_VC_DEFVAR_kWh_1
A30: RESIDENTIAL | B30: Rate Rider for Deferral/Variance Account Disposition (2014) effective until April 30, 2016 | D30: $/kWh | E30: -0.0037 | K30: 1_P_VC_DEFVAR_kWh_2
A31: RESIDENTIAL | B31: Rate Rider for Global Adjustment Account (2014) effective until April 30, 2016 Applicable only for Non-RPP Customers | D31: $/kWh | E31: 0.0015 | K31: 1_P_VC_GA_Rate_Rider_kWh_1
A32: RESIDENTIAL | B32: Rate Rider for Disposition of Deferral/Variance Accounts (2015) - effective until April 30, 2016 | D32: $/kWh | E32: 0.0046 | K32: 1_P_VC_DEFVAR_kWh_3
A33: RESIDENTIAL | B33: Rate Rider for Disposition of Global Adjustment Account (2015) - effective until April 30, 2016 Applicable only for Non RPP Customers | D33: $/kWh | E33: -0.0037 | K33: 1_P_VC_GA_Rate_Rider_kWh_2
A34: RESIDENTIAL | B34: Retail Transmission Rate - Network Service Rate | D34: $/kWh | E34: 0.00625590995 | K34: 1_P_RTSR_Network
A35: RESIDENTIAL | B35: Retail Transmission Rate - Line and Transformation Connection Service Rate | D35: $/kWh | E35: 0.004935295213 | K35: 1_P_RTSR_Connection
A36: RESIDENTIAL
A37: RESIDENTIAL | B37: MONTHLY RATES AND CHARGES - Regulatory Component
A38: RESIDENTIAL
A39: RESIDENTIAL | B39: Wholesale Market Service Rate | D39: $/kWh | E39: 0.0044 | K39: 1_P_WMSR
A40: RESIDENTIAL | B40: Rural or Remote Electricity Rate Protection Charge (RRRP) | D40: $/kWh | E40: 0.0013 | K40: 1_P_RRPC
A41: RESIDENTIAL | B41: Standard Supply Service - Administrative Charge (if applicable) | D41: $ | E41: 0.25 | K41: 1_P_SSS
B43: GENERAL SERVICE LESS THAN 50 KW SERVICE CLASSIFICATION
B45: This classification refers to the supply of electrical energy to General Service buildings requiring a connection with a connected load less than 50 kW, and, Town Houses and Condominiums described in section 3.1.9 of the Distributor's Conditions of Service that require centralized bulk metering. General Service buildings are defined as buildins that are used for purposes other than single family dwellings. Further servicing details are available in the distributor's Conditions of Service. | L45: =ROUND(LEN(B45), -2) / 100 -> 5
B47: APPLICATION
B49: The application of these rates and charges shall be in accordance with the Licence of the Distributor and any Code or Order of the Board, and amendments thereto as approved by the Board, which may be applicable to the administration of this schedule. | L49: =ROUND(LEN(B49), -2) / 100 -> 3
B51: No rates and charges for the distribution of electricity and charges to meet the costs of any work or service done or furnished for the purpose of the distribution of electricity shall be made except as permitted by this schedule unless required by the Distributors's Licence or a Code or Order of the Board, and amendments thereto as approved by the Board, or as specified herein. | L51: =ROUND(LEN(B51), -2) / 100 -> 4
B53: Unless specifically noted, this schedule does not contain any charges for the electricity commodity, be it under the Regulated Price Plan, a contract with a retailer or the wholesale market price, as applicable. In addition, the charges in the MONTHLY RATES AND CHARGES -- Regulatory Component of this schedule do not apply to a customer that is an embedded wholesale market participant. | L53: =ROUND(LEN(B53), -2) / 100 -> 4
B55: It should be noted that this schedule does not list any charges, assessments or credits that are required by law to be invoiced by a distributor and that are not subject to Board approval, such as the Debt Retirement Charge, the Global Adjustment, the Ontario Clean Energy Benefit and the HST. | L55: =ROUND(LEN(B55), -2) / 100 -> 3
B57: MONTHLY RATES AND CHARGES - Delivery Component
A59: GENERAL SERVICE LESS THAN 50 KW | B59: Service Charge | D59: $ | E59: 21.55 | K59: 2_P_MSC
A60: GENERAL SERVICE LESS THAN 50 KW | B60: Rate Rider for Smart Metering Entity Charge - effective until October 31, 2018 | D60: $ | E60: 0.79 | K60: 2_P_SMEC
A61: GENERAL SERVICE LESS THAN 50 KW | B61: Distribution Volumetric Rate | D61: $/kWh | E61: 0.014 | K61: 2_P_VC_1
A62: GENERAL SERVICE LESS THAN 50 KW | B62: Low Voltage Volumetric Rate | D62: $/kWh | E62: 0.002 | K62: 2_P_LVrate
A63: GENERAL SERVICE LESS THAN 50 KW | B63: Rate Rider for Disposition of Deferral/Variance Accounts (2012) – effective until December 31, 2016 Applicable only in the former service area of Clinton Power | D63: $/kWh | E63: 0.0073 | K63: 2_P_VC_DEFVAR_kWh_1
A64: GENERAL SERVICE LESS THAN 50 KW | B64: Rate Rider for Deferral/Variance Account Disposition (2014) effective until April 30, 2016 | D64: $/kWh | E64: -0.0037 | K64: 2_P_VC_DEFVAR_kWh_2
A65: GENERAL SERVICE LESS THAN 50 KW | B65: Rate Rider for Global Adjustment Account (2014) effective until April 30, 2016 Applicable only for Non-RPP Customers | D65: $/kWh | E65: 0.0015 | K65: 2_P_VC_GA_Rate_Rider_kWh_1
A66: GENERAL SERVICE LESS THAN 50 KW | B66: Rate Rider for Disposition of Deferral/Variance Accounts (2015) - effective until April 30, 2016 | D66: $/kWh | E66: 0.0046 | K66: 2_P_VC_DEFVAR_kWh_3
A67: GENERAL SERVICE LESS THAN 50 KW | B67: Rate Rider for Disposition of Global Adjustment Account (2015) - effective until April 30, 2016 Applicable only for Non RPP Customers | D67: $/kWh | E67: -0.0037 | K67: 2_P_VC_GA_Rate_Rider_kWh_2
A68: GENERAL SERVICE LESS THAN 50 KW | B68: Retail Transmission Rate - Network Service Rate | D68: $/kWh | E68: 0.005767166985 | K68: 2_P_RTSR_Network
A69: GENERAL SERVICE LESS THAN 50 KW | B69: Retail Transmission Rate - Line and Transformation Connection Service Rate | D69: $/kWh | E69: 0.004532413971 | K69: 2_P_RTSR_Connection
A70: GENERAL SERVICE LESS THAN 50 KW
A71: GENERAL SERVICE LESS THAN 50 KW | B71: MONTHLY RATES AND CHARGES - Regulatory Component
A72: GENERAL SERVICE LESS THAN 50 KW
A73: GENERAL SERVICE LESS THAN 50 KW | B73: Wholesale Market Service Rate | D73: $/kWh | E73: 0.0044 | K73: 2_P_WMSR
A74: GENERAL SERVICE LESS THAN 50 KW | B74: Rural or Remote Electricity Rate Protection Charge (RRRP) | D74: $/kWh | E74: 0.0013 | K74: 2_P_RRPC
A75: GENERAL SERVICE LESS THAN 50 KW | B75: Standard Supply Service - Administrative Charge (if applicable) | D75: $ | E75: 0.25 | K75: 2_P_SSS
B77: GENERAL SERVICE 50 TO 999 KW SERVICE CLASSIFICATION
B79: This classification refers to the supply of electrical energy to General Service customers requiring a connection with a connected load, or whose average monthly maximum demand used for biling purposes, is equal to or greater than 50 kW but less than 1000 kW. Further servicing details are available in the distributor's Conditions of Service. | L79: =ROUND(LEN(B79), -2) / 100 -> 3
B81: APPLICATION
B83: The application of these rates and charges shall be in accordance with the Licence of the Distributor and any Code or Order of the Board, and amendments thereto as approved by the Board, which may be applicable to the administration of this schedule. | L83: =ROUND(LEN(B83), -2) / 100 -> 3
B85: No rates and charges for the distribution of electricity and charges to meet the costs of any work or service done or furnished for the purpose of the distribution of electricity shall be made except as permitted by this schedule unless required by the Distributors's Licence or a Code or Order of the Board, and amendments thereto as approved by the Board, or as specified herein. | L85: =ROUND(LEN(B85), -2) / 100 -> 4
B87: Unless specifically noted, this schedule does not contain any charges for the electricity commodity, be it under the Regulated Price Plan, a contract with a retailer or the wholesale market price, as applicable. In addition, the charges in the MONTHLY RATES AND CHARGES -- Regulatory Component of this schedule do not apply to a customer that is an embedded wholesale market participant. | L87: =ROUND(LEN(B87), -2) / 100 -> 4
B89: It should be noted that this schedule does not list any charges, assessments or credits that are required by law to be invoiced by a distributor and that are not subject to Board approval, such as the Debt Retirement Charge, the Global Adjustment, the Ontario Clean Energy Benefit and the HST. | L89: =ROUND(LEN(B89), -2) / 100 -> 3
B91: MONTHLY RATES AND CHARGES - Delivery Component
A93: GENERAL SERVICE 50 TO 999 KW | B93: Service Charge | D93: $ | E93: 123.67 | K93: 3_P_MSC
A94: GENERAL SERVICE 50 TO 999 KW | B94: Distribution Volumetric Rate | D94: $/kW | E94: 2.9995 | K94: 3_P_VC_1
A95: GENERAL SERVICE 50 TO 999 KW | B95: Low Voltage Volumetric Rate | D95: $/kW | E95: 0.7099 | K95: 3_P_LVrate
A96: GENERAL SERVICE 50 TO 999 KW | B96: Rate Rider for Disposition of Deferral/Variance Accounts (2012) – effective until December 31, 2016 Applicable only in the former service area of Clinton Power | D96: $/kW | E96: 2.4601 | K96: 3_P_VC_DEFVAR_kW_1
A97: GENERAL SERVICE 50 TO 999 KW | B97: Rate Rider for Deferral/Variance Account Disposition (2014) effective until April 30, 2016 | D97: $/kW | E97: -1.2536 | K97: 3_P_VC_DEFVAR_kW_2
A98: GENERAL SERVICE 50 TO 999 KW | B98: Rate Rider for Global Adjustment Account (2014) effective until April 30, 2016 Applicable only for Non-RPP Customers | D98: $/kW | E98: 0.5252 | K98: 3_P_VC_GA_Rate_Rider_kW_1
A99: GENERAL SERVICE 50 TO 999 KW | B99: Rate Rider for Disposition of Deferral/Variance Accounts (2015) - effective until April 30, 2016 | D99: $/kW | E99: 1.5552 | K99: 3_P_VC_DEFVAR_kW_3
A100: GENERAL SERVICE 50 TO 999 KW | B100: Rate Rider for Disposition of Global Adjustment Account (2015) - effective until April 30, 2016 Applicable only for Non RPP Customers | D100: $/kW | E100: -1.2759 | K100: 3_P_VC_GA_Rate_Rider_kW_2
A101: GENERAL SERVICE 50 TO 999 KW | B101: Retail Transmission Rate - Network Service Rate | D101: $/kW | E101: 2.605977488 | K101: 3_P_RTSR_Network
A102: GENERAL SERVICE 50 TO 999 KW | B102: Retail Transmission Rate - Line and Transformation Connection Service Rate | D102: $/kW | E102: 1.638719451 | K102: 3_P_RTSR_Connection
A103: GENERAL SERVICE 50 TO 999 KW
A104: GENERAL SERVICE 50 TO 999 KW | B104: MONTHLY RATES AND CHARGES - Regulatory Component
A105: GENERAL SERVICE 50 TO 999 KW
A106: GENERAL SERVICE 50 TO 999 KW | B106: Wholesale Market Service Rate | D106: $/kWh | E106: 0.0044 | K106: 3_P_WMSR
A107: GENERAL SERVICE 50 TO 999 KW | B107: Rural or Remote Electricity Rate Protection Charge (RRRP) | D107: $/kWh | E107: 0.0013 | K107: 3_P_RRPC
A108: GENERAL SERVICE 50 TO 999 KW | B108: Standard Supply Service - Administrative Charge (if applicable) | D108: $ | E108: 0.25 | K108: 3_P_SSS
B110: GENERAL SERVICE 1,000 TO 4,999 KW SERVICE CLASSIFICATION
B112: This classification refers to the supply of electrical energy to General Service Customers requiring a connection with a connected load or whose average monthly maximum demand used for billng purposes is equal to or greater than 1000 kW but less than 5000 kW. Further servicing details are available in the distributor's Conditions of Service. | L112: =ROUND(LEN(B112), -2) / 100 -> 3
B114: APPLICATION
B116: The application of these rates and charges shall be in accordance with the Licence of the Distributor and any Code or Order of the Board, and amendments thereto as approved by the Board, which may be applicable to the administration of this schedule. | L116: =ROUND(LEN(B116), -2) / 100 -> 3
B118: No rates and charges for the distribution of electricity and charges to meet the costs of any work or service done or furnished for the purpose of the distribution of electricity shall be made except as permitted by this schedule unless required by the Distributors's Licence or a Code or Order of the Board, and amendments thereto as approved by the Board, or as specified herein. | L118: =ROUND(LEN(B118), -2) / 100 -> 4
B120: Unless specifically noted, this schedule does not contain any charges for the electricity commodity, be it under the Regulated Price Plan, a contract with a retailer or the wholesale market price, as applicable. In addition, the charges in the MONTHLY RATES AND CHARGES -- Regulatory Component of this schedule do not apply to a customer that is an embedded wholesale market participant. | L120: =ROUND(LEN(B120), -2) / 100 -> 4
B122: It should be noted that this schedule does not list any charges, assessments or credits that are required by law to be invoiced by a distributor and that are not subject to Board approval, such as the Debt Retirement Charge, the Global Adjustment, the Ontario Clean Energy Benefit and the HST. | L122: =ROUND(LEN(B122), -2) / 100 -> 3
B124: MONTHLY RATES AND CHARGES - Delivery Component
A126: GENERAL SERVICE 1,000 TO 4,999 KW | B126: Service Charge | D126: $ | E126: 2453.11 | K126: 4_P_MSC
A127: GENERAL SERVICE 1,000 TO 4,999 KW | B127: Distribution Volumetric Rate | D127: $/kW | E127: 4.0763 | K127: 4_P_VC_1
A128: GENERAL SERVICE 1,000 TO 4,999 KW | B128: Low Voltage Volumetric Rate | D128: $/kW | E128: 0.7635 | K128: 4_P_LVrate
A129: GENERAL SERVICE 1,000 TO 4,999 KW | B129: Rate Rider for Deferral/Variance Account Disposition (2014) effective until April 30, 2016 | D129: $/kW | E129: -2.621 | K129: 4_P_VC_DEFVAR_kW_1
A130: GENERAL SERVICE 1,000 TO 4,999 KW | B130: Rate Rider for Global Adjustment Account (2014) effective until April 30, 2016 Applicable only for Non-RPP Customers | D130: $/kW | E130: 1.098 | K130: 4_P_VC_GA_Rate_Rider_kW_1
A131: GENERAL SERVICE 1,000 TO 4,999 KW | B131: Rate Rider for Disposition of Deferral/Variance Accounts (2015) - effective until April 30, 2016 | D131: $/kW | E131: 3.2515 | K131: 4_P_VC_DEFVAR_kW_2
A132: GENERAL SERVICE 1,000 TO 4,999 KW | B132: Rate Rider for Disposition of Global Adjustment Account (2015) - effective until April 30, 2016 Applicable only for Non RPP Customers | D132: $/kW | E132: -2.6677 | K132: 4_P_VC_GA_Rate_Rider_kW_2
A133: GENERAL SERVICE 1,000 TO 4,999 KW | B133: Retail Transmission Rate - Network Service Rate | D133: $/kW | E133: 2.830408258 | K133: 4_P_RTSR_Network
A134: GENERAL SERVICE 1,000 TO 4,999 KW | B134: Retail Transmission Rate - Line and Transformation Connection Service Rate | D134: $/kW | E134: 1.755454291 | K134: 4_P_RTSR_Connection
A135: GENERAL SERVICE 1,000 TO 4,999 KW
A136: GENERAL SERVICE 1,000 TO 4,999 KW | B136: MONTHLY RATES AND CHARGES - Regulatory Component
A137: GENERAL SERVICE 1,000 TO 4,999 KW
A138: GENERAL SERVICE 1,000 TO 4,999 KW | B138: Wholesale Market Service Rate | D138: $/kWh | E138: 0.0044 | K138: 4_P_WMSR
A139: GENERAL SERVICE 1,000 TO 4,999 KW | B139: Rural or Remote Electricity Rate Protection Charge (RRRP) | D139: $/kWh | E139: 0.0013 | K139: 4_P_RRPC
A140: GENERAL SERVICE 1,000 TO 4,999 KW | B140: Standard Supply Service - Administrative Charge (if applicable) | D140: $ | E140: 0.25 | K140: 4_P_SSS
B142: LARGE USE SERVICE CLASSIFICATION
B144: This classification refers to the supply of electrical energy to General Service Customers requiring a connection with a connected load or whose average monthly maximum demand used for billing purposes is equal to or greather than, or is forecast to be equal to or great than, 5000 kW. Further servicing details are available in the distributor's Conditions of Service. | L144: =ROUND(LEN(B144), -2) / 100 -> 4
B146: APPLICATION
B148: The application of these rates and charges shall be in accordance with the Licence of the Distributor and any Code or Order of the Board, and amendments thereto as approved by the Board, which may be applicable to the administration of this schedule. | L148: =ROUND(LEN(B148), -2) / 100 -> 3
B150: No rates and charges for the distribution of electricity and charges to meet the costs of any work or service done or furnished for the purpose of the distribution of electricity shall be made except as permitted by this schedule unless required by the Distributors's Licence or a Code or Order of the Board, and amendments thereto as approved by the Board, or as specified herein. | L150: =ROUND(LEN(B150), -2) / 100 -> 4
B152: Unless specifically noted, this schedule does not contain any charges for the electricity commodity, be it under the Regulated Price Plan, a contract with a retailer or the wholesale market price, as applicable. In addition, the charges in the MONTHLY RATES AND CHARGES -- Regulatory Component of this schedule do not apply to a customer that is an embedded wholesale market participant. | L152: =ROUND(LEN(B152), -2) / 100 -> 4
B154: It should be noted that this schedule does not list any charges, assessments or credits that are required by law to be invoiced by a distributor and that are not subject to Board approval, such as the Debt Retirement Charge, the Global Adjustment, the Ontario Clean Energy Benefit and the HST. | L154: =ROUND(LEN(B154), -2) / 100 -> 3
B156: MONTHLY RATES AND CHARGES - Delivery Component
A158: LARGE USE | B158: Service Charge | D158: $ | E158: 10019.13 | K158: 5_P_MSC
A159: LARGE USE | B159: Distribution Volumetric Rate | D159: $/kW | E159: 1.8415 | K159: 5_P_VC_1
A160: LARGE USE | B160: Low Voltage Volumetric Rate | D160: $/kW | E160: 0.0733 | K160: 5_P_LVrate
A161: LARGE USE | B161: Rate Rider for Deferral/Variance Account Disposition (2014) effective until April 30, 2016 | D161: $/kW | E161: -2.2264 | K161: 5_P_VC_DEFVAR_kW_1
A162: LARGE USE | B162: Rate Rider for Global Adjustment Account (2014) effective until April 30, 2016 Applicable only for Non-RPP Customers | D162: $/kW | E162: 0.9327 | K162: 5_P_VC_GA_Rate_Rider_kW_1
A163: LARGE USE | B163: Rate Rider for Disposition of Deferral/Variance Accounts (2015) - effective until April 30, 2016 | D163: $/kW | E163: 2.762 | K163: 5_P_VC_DEFVAR_kW_2
A164: LARGE USE | B164: Retail Transmission Rate - Network Service Rate | D164: $/kW | E164: 3.137827583 | K164: 5_P_RTSR_Network
A165: LARGE USE | B165: Retail Transmission Rate - Line and Transformation Connection Service Rate | D165: $/kW | E165: 1.991240538 | K165: 5_P_RTSR_Connection
A166: LARGE USE
A167: LARGE USE | B167: MONTHLY RATES AND CHARGES - Regulatory Component
A168: LARGE USE
A169: LARGE USE | B169: Wholesale Market Service Rate | D169: $/kWh | E169: 0.0044 | K169: 5_P_WMSR
A170: LARGE USE | B170: Rural or Remote Electricity Rate Protection Charge (RRRP) | D170: $/kWh | E170: 0.0013 | K170: 5_P_RRPC
A171: LARGE USE | B171: Standard Supply Service - Administrative Charge (if applicable) | D171: $ | E171: 0.25 | K171: 5_P_SSS
B173: STREET LIGHTING SERVICE CLASSIFICATION
B175: This Classification refers to an account for roadway lighting with a Municipality, Regional Municipality, Minsitry of Transportation and private roadway lighting, controlled by photo cells. The consumption for these customers will be based on the calculated connection load times the required lighting times established in the approved OEB street lighting load shape template. Further servicing details are available in the distributor's Conditions of Service. | L175: =ROUND(LEN(B175), -2) / 100 -> 5
B177: APPLICATION
B179: The application of these rates and charges shall be in accordance with the Licence of the Distributor and any Code or Order of the Board, and amendments thereto as approved by the Board, which may be applicable to the administration of this schedule. | L179: =ROUND(LEN(B179), -2) / 100 -> 3
B181: No rates and charges for the distribution of electricity and charges to meet the costs of any work or service done or furnished for the purpose of the distribution of electricity shall be made except as permitted by this schedule unless required by the Distributors's Licence or a Code or Order of the Board, and amendments thereto as approved by the Board, or as specified herein. | L181: =ROUND(LEN(B181), -2) / 100 -> 4
B183: Unless specifically noted, this schedule does not contain any charges for the electricity commodity, be it under the Regulated Price Plan, a contract with a retailer or the wholesale market price, as applicable. In addition, the charges in the MONTHLY RATES AND CHARGES -- Regulatory Component of this schedule do not apply to a customer that is an embedded wholesale market participant. | L183: =ROUND(LEN(B183), -2) / 100 -> 4
B185: It should be noted that this schedule does not list any charges, assessments or credits that are required by law to be invoiced by a distributor and that are not subject to Board approval, such as the Debt Retirement Charge, the Global Adjustment, the Ontario Clean Energy Benefit and the HST. | L185: =ROUND(LEN(B185), -2) / 100 -> 3
B187: MONTHLY RATES AND CHARGES - Delivery Component
A189: STREET LIGHTING | B189: Service Charge (per connection) | D189: $ | E189: 3.91 | K189: 6_P_MSC
A190: STREET LIGHTING | B190: Distribution Volumetric Rate | D190: $/kW | E190: 22.7255 | K190: 6_P_VC_1
A191: STREET LIGHTING | B191: Low Voltage Volumetric Rate | D191: $/kW | E191: 0.5482 | K191: 6_P_LVrate
A192: STREET LIGHTING | B192: Rate Rider for Disposition of Deferral/Variance Accounts (2012) – effective until December 31, 2016 Applicable only in the former service area of Clinton Power | D192: $/kW | E192: 2.699 | K192: 6_P_VC_DEFVAR_kW_1
A193: STREET LIGHTING | B193: Rate Rider for Deferral/Variance Account Disposition (2014) effective until April 30, 2016 | D193: $/kW | E193: -1.1657 | K193: 6_P_VC_DEFVAR_kW_2
A194: STREET LIGHTING | B194: Rate Rider for Global Adjustment Account (2014) effective until April 30, 2016 Applicable only for Non-RPP Customers | D194: $/kW | E194: 0.0058 | K194: 6_P_VC_GA_Rate_Rider_kW_1
A195: STREET LIGHTING | B195: Rate Rider for Disposition of Deferral/Variance Accounts (2015) - effective until April 30, 2016 | D195: $/kW | E195: 1.4461 | K195: 6_P_VC_DEFVAR_kW_3
A196: STREET LIGHTING | B196: Rate Rider for Disposition of Global Adjustment Account (2015) - effective until April 30, 2016 Applicable only for Non RPP Customers | D196: $/kW | E196: -1.1864 | K196: 6_P_VC_GA_Rate_Rider_kW_2
A197: STREET LIGHTING | B197: Retail Transmission Rate - Network Service Rate | D197: $/kW | E197: 2.012643529 | K197: 6_P_RTSR_Network
A198: STREET LIGHTING | B198: Retail Transmission Rate - Line and Transformation Connection Service Rate | D198: $/kW | E198: 2.083500342 | K198: 6_P_RTSR_Connection
A199: STREET LIGHTING
A200: STREET LIGHTING | B200: MONTHLY RATES AND CHARGES - Regulatory Component
A201: STREET LIGHTING
A202: STREET LIGHTING | B202: Wholesale Market Service Rate | D202: $/kWh | E202: 0.0044 | K202: 6_P_WMSR
A203: STREET LIGHTING | B203: Rural or Remote Electricity Rate Protection Charge (RRRP) | D203: $/kWh | E203: 0.0013 | K203: 6_P_RRPC
A204: STREET LIGHTING | B204: Standard Supply Service - Administrative Charge (if applicable) | D204: $ | E204: 0.25 | K204: 6_P_SSS
B206: SENTINEL LIGHTING SERVICE CLASSIFICATION
B208: This classification refers to accounts that are an unmetered lighting load supplied to a sentinel light. Further servicing details are available in the distributor's Conditions of Service. | L208: =ROUND(LEN(B208), -2) / 100 -> 2
B210: APPLICATION
B212: The application of these rates and charges shall be in accordance with the Licence of the Distributor and any Code or Order of the Board, and amendments thereto as approved by the Board, which may be applicable to the administration of this schedule. | L212: =ROUND(LEN(B212), -2) / 100 -> 3
B214: No rates and charges for the distribution of electricity and charges to meet the costs of any work or service done or furnished for the purpose of the distribution of electricity shall be made except as permitted by this schedule unless required by the Distributors's Licence or a Code or Order of the Board, and amendments thereto as approved by the Board, or as specified herein. | L214: =ROUND(LEN(B214), -2) / 100 -> 4
B216: Unless specifically noted, this schedule does not contain any charges for the electricity commodity, be it under the Regulated Price Plan, a contract with a retailer or the wholesale market price, as applicable. In addition, the charges in the MONTHLY RATES AND CHARGES -- Regulatory Component of this schedule do not apply to a customer that is an embedded wholesale market participant. | L216: =ROUND(LEN(B216), -2) / 100 -> 4
B218: It should be noted that this schedule does not list any charges, assessments or credits that are required by law to be invoiced by a distributor and that are not subject to Board approval, such as the Debt Retirement Charge, the Global Adjustment, the Ontario Clean Energy Benefit and the HST. | L218: =ROUND(LEN(B218), -2) / 100 -> 3
B220: MONTHLY RATES AND CHARGES - Delivery Component
A222: SENTINEL LIGHTING | B222: Service Charge (per connection) | D222: $ | E222: 5.4 | K222: 7_P_MSC
A223: SENTINEL LIGHTING | B223: Distribution Volumetric Rate | D223: $/kW | E223: 15.1531 | K223: 7_P_VC_1
A224: SENTINEL LIGHTING | B224: Low Voltage Volumetric Rate | D224: $/kW | E224: 0.5482 | K224: 7_P_LVrate
A225: SENTINEL LIGHTING | B225: Rate Rider for Disposition of Deferral/Variance Accounts (2012) – effective until December 31, 2016 Applicable only in the former service area of Clinton Power | D225: $/kW | E225: 2.7025 | K225: 7_P_VC_DEFVAR_kW_1
A226: SENTINEL LIGHTING | B226: Rate Rider for Deferral/Variance Account Disposition (2014) effective until April 30, 2016 | D226: $/kW | E226: -1.305 | K226: 7_P_VC_DEFVAR_kW_2
A227: SENTINEL LIGHTING | B227: Rate Rider for Disposition of Global Adjustmnet Account (2014) - effective until April 30, 2016 Applicable only for Non-RPP Customers | D227: $/kW | E227: 0.5467 | K227: 7_P_VC_Rate_Rider_kW_3
A228: SENTINEL LIGHTING | B228: Rate Rider for Disposition of Deferral/Variance Accounts (2015) - effective until April 30, 2016 | D228: $/kW | E228: 1.6189 | K228: 7_P_VC_DEFVAR_kW_3
A229: SENTINEL LIGHTING | B229: Rate Rider for Disposition of Global Adjustment Account (2015) - effective until April 30, 2016 Applicable only for Non RPP Customers | D229: $/kW | E229: -1.3282 | K229: 7_P_VC_GA_Rate_Rider_kW_1
A230: SENTINEL LIGHTING | B230: Retail Transmission Rate - Network Service Rate | D230: $/kW | E230: 2.012643529 | K230: 7_P_RTSR_Network
A231: SENTINEL LIGHTING | B231: Retail Transmission Rate - Line and Transformation Connection Service Rate | D231: $/kW | E231: 1.260615406 | K231: 7_P_RTSR_Connection
A232: SENTINEL LIGHTING
A233: SENTINEL LIGHTING | B233: MONTHLY RATES AND CHARGES - Regulatory Component
A234: SENTINEL LIGHTING
A235: SENTINEL LIGHTING | B235: Wholesale Market Service Rate | D235: $/kWh | E235: 0.0044 | K235: 7_P_WMSR
A236: SENTINEL LIGHTING | B236: Rural or Remote Electricity Rate Protection Charge (RRRP) | D236: $/kWh | E236: 0.0013 | K236: 7_P_RRPC
A237: SENTINEL LIGHTING | B237: Standard Supply Service - Administrative Charge (if applicable) | D237: $ | E237: 0.25 | K237: 7_P_SSS
B239: UNMETERED SCATTERED LOAD SERVICE CLASSIFICATION
B241: This classification refers to an account taking electricity at 750 volts or less whose average monthly peak demand is less than, or is forecast to be less than, 50 kW and the consumption is unmetered. Such connections include cable TV power packs, bus shelters, telephone booths, traffic lights, railway crossings, etc. The level of consumption will be agreed to by the distributor and the customer, based on detailed manufacturer information/documentation with regard to electrical consumption of unmetered load or periodic monitoring of actual consumption. Further servicing details are available in the distributor's Conditions of Service. | L241: =ROUND(LEN(B241), -2) / 100 -> 6
B243: APPLICATION
B245: The application of these rates and charges shall be in accordance with the Licence of the Distributor and any Code or Order of the Board, and amendments thereto as approved by the Board, which may be applicable to the administration of this schedule. | L245: =ROUND(LEN(B245), -2) / 100 -> 3
B247: No rates and charges for the distribution of electricity and charges to meet the costs of any work or service done or furnished for the purpose of the distribution of electricity shall be made except as permitted by this schedule unless required by the Distributors's Licence or a Code or Order of the Board, and amendments thereto as approved by the Board, or as specified herein. | L247: =ROUND(LEN(B247), -2) / 100 -> 4
B249: Unless specifically noted, this schedule does not contain any charges for the electricity commodity, be it under the Regulated Price Plan, a contract with a retailer or the wholesale market price, as applicable. In addition, the charges in the MONTHLY RATES AND CHARGES -- Regulatory Component of this schedule do not apply to a customer that is an embedded wholesale market participant. | L249: =ROUND(LEN(B249), -2) / 100 -> 4
B251: It should be noted that this schedule does not list any charges, assessments or credits that are required by law to be invoiced by a distributor and that are not subject to Board approval, such as the Debt Retirement Charge, the Global Adjustment, the Ontario Clean Energy Benefit and the HST. | L251: =ROUND(LEN(B251), -2) / 100 -> 3
B253: MONTHLY RATES AND CHARGES - Delivery Component
A255: UNMETERED SCATTERED LOAD | B255: Service Charge | D255: $ | E255: 3.09 | K255: 8_P_MSC
A256: UNMETERED SCATTERED LOAD | B256: Distribution Volumetric Rate | D256: $/kWh | E256: 0.1104 | K256: 8_P_VC_1
A257: UNMETERED SCATTERED LOAD | B257: Low Voltage Volumetric Rate | D257: $/kWh | E257: 0.002 | K257: 8_P_LVrate
A258: UNMETERED SCATTERED LOAD | B258: Rate Rider for Disposition of Deferral/Variance Accounts (2012) – effective until December 31, 2016 Applicable only in the former service area of Clinton Power | D258: $/kWh | E258: 0.0073 | K258: 8_P_VC_DEFVAR_kWh_1
A259: UNMETERED SCATTERED LOAD | B259: Rate Rider for Deferral/Variance Account Disposition (2014) effective until April 30, 2016 | D259: $/kWh | E259: -0.0037 | K259: 8_P_VC_DEFVAR_kWh_2
A260: UNMETERED SCATTERED LOAD | B260: Rate Rider for Global Adjustment Account (2014) effective until April 30, 2016 Applicable only for Non-RPP Customers | D260: $/kWh | E260: 0.0015 | K260: 8_P_VC_GA_Rate_Rider_kWh_1
A261: UNMETERED SCATTERED LOAD | B261: Rate Rider for Disposition of Deferral/Variance Accounts (2015) - effective until April 30, 2016 | D261: $/kWh | E261: 0.0046 | K261: 8_P_VC_DEFVAR_kWh_3
A262: UNMETERED SCATTERED LOAD | B262: Rate Rider for Disposition of Global Adjustment Account (2015) - effective until April 30, 2016 Applicable only for Non RPP Customers | D262: $/kWh | E262: -0.0037 | K262: 8_P_VC_GA_Rate_Rider_kWh_2
A263: UNMETERED SCATTERED LOAD | B263: Retail Transmission Rate - Network Service Rate | D263: $/kWh | E263: 0.005767166985 | K263: 8_P_RTSR_Network
A264: UNMETERED SCATTERED LOAD | B264: Retail Transmission Rate - Line and Transformation Connection Service Rate | D264: $/kWh | E264: 0.004532413971 | K264: 8_P_RTSR_Connection
A265: UNMETERED SCATTERED LOAD
A266: UNMETERED SCATTERED LOAD | B266: MONTHLY RATES AND CHARGES - Regulatory Component
A267: UNMETERED SCATTERED LOAD
A268: UNMETERED SCATTERED LOAD | B268: Wholesale Market Service Rate | D268: $/kWh | E268: 0.0044 | K268: 8_P_WMSR
A269: UNMETERED SCATTERED LOAD | B269: Rural or Remote Electricity Rate Protection Charge (RRRP) | D269: $/kWh | E269: 0.0013 | K269: 8_P_RRPC
A270: UNMETERED SCATTERED LOAD | B270: Standard Supply Service - Administrative Charge (if applicable) | D270: $ | E270: 0.25 | K270: 8_P_SSS
B272: EMBEDDED DISTRIBUTOR SERVICE CLASSIFICATION
B274: This classification refers to an electricity distributor licensed by the Ontario Energy Board that is provided electricity by means of this distributors's facilities. Further servicing details are available in the distributor's Conditions of Service. | L274: =ROUND(LEN(B274), -2) / 100 -> 3
B276: APPLICATION
... 81 more rows

Sheet 14. Bill Impacts (hidden)
Z1: =MATCH(A13, '3. Rate Class Selection'!B19:B40,0) -> 1 | AA1: =VLOOKUP(A13, lists!AO:AP,2,0) -> kWh
A11: Choose a Rate Class from the drop-down menu below and click UPDATE. For Street Lighting and USL classes, please ensure that the number of customers is manually entered into cells B30 and B31. Click the UPDATE button to refresh the sheet.
A13: RESIDENTIAL | F13: =IF(ISERROR(SEARCH("MicroFit",A13,1))=FALSE,"Bill impact presentation for this class does not exist.", "") -> 
A15: Consumption | B15: =730*D15*B17 -> 3650000 | C15: kWh | D15: 10000 | E15: =IF(AA1 = "kWh", "", "kW") -> 
A16: RPP Tier One | B16: 600 | C16: kWh | E16: 1
A17: Load Factor | B17: 0.5
A18: Loss Factor | B18: 1
B21: CURRENT ESTIMATED BILL | E21: PROPOSED ESTIMATED BILL
B22: Volume | C22: Current Rate ($) | D22: Current Charge ($) | E22: Volume | F22: Proposed Rate ($) | G22: Proposed Charge ($) | I22: Change ($) | J22: Change (%) | K22: % of Total RPP Bill | L22: % of Total TOU Bill
A23: Energy First Tier (kWh) | B23: 3650000 | C23: 0.075 | D23: =B23*C23 -> 273750 | E23: =B23 -> 3650000 | F23: =C23 -> 0.075 | G23: =E23*F23 -> 273750 | I23: =G23-D23 -> 0 | J23: =I23/D23 -> 0 | K23: =G23/G48 -> 0.8646078577
A24: Energy Second Tier (kWh) | B24: 0 | C24: 0.088 | D24: =B24*C24 -> 0 | E24: =B24 -> 0 | F24: =C24 -> 0.088 | G24: =E24*F24 -> 0 | I24: =G24-D24 -> 0 | J24: 0 | K24: =G24/G48 -> 0
A26: TOU - Off Peak | B26: =0.64*$B$15*$B$18 -> 2336000 | C26: 0.065 | D26: =C26*B26 -> 151840 | E26: =B26 -> 2336000 | F26: =C26 -> 0.065 | G26: =F26*E26 -> 151840 | I26: =G26-D26 -> 0 | J26: =I26/D26 -> 0 | L26: =G26/G54 -> 0.449726096
A27: TOU - Mid Peak | B27: =0.18*$B$15*$B$18 -> 657000 | C27: 0.1 | D27: =C27*B27 -> 65700 | E27: =B27 -> 657000 | F27: =C27 -> 0.1 | G27: =F27*E27 -> 65700 | H27: =G27*F27 -> 6570 | I27: =G27-D27 -> 0 | J27: =I27/D27 -> 0 | L27: =G27/G54 -> 0.1945930223
A28: TOU - On Peak | B28: =0.18*$B$15*$B$18 -> 657000 | C28: 0.117 | D28: 76869 | F28: =C28 -> 0.117 | G28: =F28*E28 -> 0 | H28: =G28*F28 -> 0 | J28: =I28/D28 -> 0 | L28: =G28/G54 -> 0
A30: Service Charge | B30: 1 | D30: 0 | G30: =F30*E30 -> 0 | H30: 0 | J30: 0 | K30: 0 | L30: 0
A31: Service Charge Rate Rider(s) | B31: 1 | C31: 0 | D31: 0 | F31: 0 | G31: 0 | H31: 0 | J31: 0 | K31: 0 | L31: 0
A32: Distribution Volumetric Rate | B32: 10000 | D32: 0 | E32: =B32 -> 10000 | G32: 0 | H32: 0 | I32: =G32-D32 -> 0 | J32: 0 | K32: 0 | L32: 0
A33: Low Voltage Volumetric Rate | B33: 10000 | D33: 0 | G33: 0 | H33: 0 | J33: 0 | K33: 0 | L33: 0
A34: Distribution Volumetric Rate Rider(s) | B34: 10000 | C34: 0 | D34: 0 | F34: 1.2025 | G34: 0 | H34: 0 | J34: 0 | K34: =G34/G48 -> 0 | L34: =G34/G54 -> 0
A35: Total: Distribution | D35: =ROUND(SUM(D30:D34),2) -> 0 | G35: =ROUND(SUM(G30:G34),2) -> 0 | J35: 0 | K35: =G35/G48 -> 0 | L35: =G35/G54 -> 0
A36: Total: Retail Transmission
A37: Sub-Total: Delivery (Distribution and Retail Transmission) | D37: =SUM(D36,D35) -> 0 | G37: =SUM(G36,G35) -> 0 | J37: 0 | K37: =G37/G48 -> 0 | L37: =G37/G54 -> 0
A38: Wholesale Market Service Rate | B38: 3650000 | C38: 0 | D38: =B38*C38 -> 0 | F38: =C38 -> 0 | G38: =E38*F38 -> 0 | J38: 0 | K38: 0 | L38: 0
A39: Rural Rate Protection Charge | B39: 3650000 | C39: 0 | D39: =B39*C39 -> 0 | E39: 3650000 | F39: 0 | G39: =E39*F39 -> 0 | I39: =G39-D39 -> 0 | J39: 0 | K39: 0 | L39: 0
A40: Standard Supply Service – Administration Charge (if applicable) | B40: 1 | C40: 0 | D40: =B40*C40 -> 0 | E40: 1 | F40: 0 | G40: =E40*F40 -> 0 | I40: =G40-D40 -> 0 | J40: 0 | K40: 0 | L40: 0
A41: Sub-Total: Regulatory | D41: =SUM(D38:D40) -> 0 | G41: =SUM(G38:H40) -> 0 | I41: =G41-D41 -> 0 | J41: 0 | K41: 0 | L41: 0
A42: Debt Retirement Charge (DRC) | B42: 3650000 | C42: 0.007 | D42: =B42*C42 -> 25550 | E42: =B42 -> 3650000 | F42: =C42 -> 0.007 | G42: =E42*F42 -> 25550 | I42: =G42-D42 -> 0 | J42: =I42/D42 -> 0 | K42: =G42/G48 -> 0.08069673339 | L42: =G42/G54 -> 0.07567506422
A44: Total Bill on RPP (before taxes) | D44: 299300 | G44: 311325 | I44: =G44-D44 -> 12025 | J44: =I44/D44 -> 0.04017707985 | K44: =G44/G48 -> 0.9832841691
A45: HST | C45: 0.13 | D45: =C45*D44 -> 38909 | F45: =C45 -> 0.13 | G45: =F45*G44 -> 40472.25 | I45: =G45-D45 -> 1563.25 | J45: =I45/D45 -> 0.04017707985 | K45: =G45/G48 -> 0.127826942
A46: Total Bill (including HST) | D46: =D45+D44 -> 338209 | G46: =G45+G44 -> 351797.25 | I46: =G46-D46 -> 13588.25 | J46: =I46/D46 -> 0.04017707985 | K46: =G46/G48 -> 1.111111111
A47: Ontario Clean Energy Benefit (OCEB) | C47: -0.1 | D47: =-0.1*D46 -> -33820.9 | F47: =C47 -> -0.1 | G47: =-0.1*G46 -> -35179.725 | I47: =G47-D47 -> -1358.825 | J47: =I47/D47 -> 0.04017707985 | K47: =G47/G48 -> -0.1111111111
A48: Total Bill on RPP (including OCEB) | D48: =D46+D47 -> 304388.1 | G48: =G46+G47 -> 316617.525 | I48: =G48-D48 -> 12229.425 | J48: =I48/D48 -> 0.04017707985 | K48: =G48/G48 -> 1
A50: Total Bill on TOU (before taxes) | D50: 319959 | G50: 331984 | I50: =G50-D50 -> 12025 | J50: =I50/D50 -> 0.03758294031 | L50: =G50/G54 -> 0.9832841691
A51: HST | C51: 0.13 | D51: =C51*D50 -> 41594.67 | F51: =C51 -> 0.13 | G51: =F51*G50 -> 43157.92 | I51: =G51-D51 -> 1563.25 | J51: =I51/D51 -> 0.03758294031 | L51: =G51/G54 -> 0.127826942
A52: Total Bill (including HST) | D52: =D51+D50 -> 361553.67 | G52: =G51+G50 -> 375141.92 | I52: =G52-D52 -> 13588.25 | J52: =I52/D52 -> 0.03758294031 | L52: =G52/G54 -> 1.111111111
A53: Ontario Clean Energy Benefit (OCEB) | C53: -0.1 | D53: =-0.1*D52 -> -36155.367 | F53: =C53 -> -0.1 | G53: =-0.1*G52 -> -37514.192 | I53: =G53-D53 -> -1358.825 | J53: =I53/D53 -> 0.03758294031 | L53: =G53/G54 -> -0.1111111111
A54: Total Bill on TOU (including OCEB) | D54: =D52+D53 -> 325398.303 | G54: =G52+G53 -> 337627.728 | I54: =G54-D54 -> 12229.425 | J54: =I54/D54 -> 0.03758294031 | L54: =G54/G54 -> 1
A57: Applicants must provide bill impacts for residential at 800 kWh and GS<50kW at 2000 kWh. In addition, their filing should cover the range that is relevant to their service territory, class by class. A general guideline of consumption levels follows: Residential (kWh) - 100, 250, 500, 800, 1000, 1500, 2000 GS<50kW (kWh) - 1000, 2000, 5000, 10000, 15000 GS>50kW (kW) 100, 500, 1000 Large User - range appropriate for utility Street/Sentinel Lighting Classes and USL - 150 kWh and 1 kW, range appropriate for utility.

Sheet 28. Bill Impacts
S1: 1 | Z1: =MATCH(C14, '3. Rate Class Selection'!B19:B40,0) -> 1 | AA1: =VLOOKUP(C14, lists!AO:AP,2,0) -> kWh
A14: Rate Class | C14: RESIDENTIAL
A16: Loss Factor | E16: 1
A18: Consumption | C18: kWh | E18: 800
A20: If Billed on a kW basis:
A21: Demand | C21: kW
E25: Current Board-Approved | I25: Proposed | M25: Impact
E26: Rate | F26: Volume | G26: Charge | I26: Rate | J26: Volume | K26: Charge | M26: $ Change | N26: % Change
E27: ($) | G27: ($) | I27: ($) | K27: ($)
A28: Monthly Service Charge | F28: 1 | G28: =F28*E28 -> 0 | J28: 1 | K28: =J28*I28 -> 0 | M28: =K28-G28 -> 0 | N28: =IF((G28)=0,"",(M28/G28)) -> 
A29: Distribution Volumetric Rate | F29: 800 | G29: =F29*E29 -> 0 | J29: =F29 -> 800 | K29: =J29*I29 -> 0 | M29: 0
A30: Fixed Rate Riders | E30: 0 | F30: 1 | G30: =F30*E30 -> 0 | I30: 0 | J30: 1 | K30: =J30*I30 -> 0 | M30: 0
A31: Volumetric Rate Riders | E31: 0 | F31: 800 | G31: =F31*E31 -> 0 | I31: 0 | J31: =F31 -> 800 | K31: =J31*I31 -> 0 | M31: 0
A32: Sub-Total A (excluding pass through) | G32: =SUM(G28:G31) -> 0 | K32: =SUM(K28:K31) -> 0 | M32: 0
A33: Line Losses on Cost of Power | E33: =E45*0.64+E46*0.18+E47*0.18 -> 0.08392 | F33: =E18*(E16-1) -> 0 | G33: =E33*F33 -> 0 | I33: =I45*0.64+I46*0.18+I47*0.18 -> 0.08392 | J33: =F33 -> 0 | K33: =I33*J33 -> 0 | M33: 0
A34: Total Deferral/Variance Account Rate Riders | E34: 0 | F34: 800 | G34: =F34*E34 -> 0 | I34: 0 | J34: =F34 -> 800 | K34: =J34*I34 -> 0 | M34: 0
A35: Low Voltage Service Charge | F35: 800 | G35: =F35*E35 -> 0 | J35: =F35 -> 800 | K35: =J35*I35 -> 0 | M35: 0
A36: Smart Meter Entity Charge | F36: 1 | G36: =F36*E36 -> 0 | J36: =F36 -> 1 | K36: =J36*I36 -> 0 | M36: 0
A37: Sub-Total B - Distribution (includes Sub-Total A) | G37: =SUM(G32:G36) -> 0 | K37: =SUM(K32:K36) -> 0 | M37: =K37-G37 -> 0 | N37: =IF((G37)=0,"",(M37/G37)) -> 
A38: RTSR - Network | F38: 800 | G38: =F38*E38 -> 0 | J38: =F38 -> 800 | K38: =J38*I38 -> 0 | M38: 0
A39: RTSR - Connection and/or Line and Transformation Connection | E39: 0 | F39: 800 | G39: =F39*E39 -> 0 | J39: =F39 -> 800 | K39: =J39*I39 -> 0 | M39: 0
A40: Sub-Total C - Delivery (including Sub-Total B) | G40: =SUM(G37:G39) -> 0 | K40: =SUM(K37:K39) -> 0 | M40: 0
A41: Wholesale Market Service Charge (WMSC) | E41: 0.0044 | F41: =E18*E16 -> 800 | G41: =F41*E41 -> 3.52 | I41: 0.0044 | J41: =E18*E16 -> 800 | K41: =J41*I41 -> 3.52 | M41: 0 | N41: 0
A42: Rural and Remote Rate Protection (RRRP) | E42: 0.0013 | F42: =E18*E16 -> 800 | G42: 1.04 | I42: 0.0013 | J42: =E18*E16 -> 800 | K42: 1.04 | M42: 0 | N42: 0
A43: Standard Supply Service Charge | E43: 0.25 | F43: 1 | G43: 0.25 | I43: 0.25 | J43: 1 | K43: 0.25 | M43: 0 | N43: 0
A44: Debt Retirement Charge (DRC) | E44: 0.007 | F44: =E18 -> 800 | G44: 5.6 | I44: 0.007 | J44: =E18 -> 800 | K44: 5.6 | M44: 0 | N44: 0
A45: TOU - Off Peak | E45: 0.067 | F45: 512 | G45: 34.304 | I45: 0.067 | J45: =F45 -> 512 | K45: 34.304 | M45: 0 | N45: 0
A46: TOU - Mid Peak | E46: 0.104 | F46: 144 | G46: 14.976 | I46: 0.104 | J46: =F46 -> 144 | K46: 14.976 | M46: 0 | N46: 0
A47: TOU - On Peak | E47: 0.124 | F47: 144 | G47: 17.856 | I47: 0.124 | J47: =F47 -> 144 | K47: 17.856 | M47: 0 | N47: 0
A49: Total Bill on TOU (before Taxes) | G49: =SUM(G40:G44,G45:G47) -> 77.546 | K49: =SUM(K40:K44,K45:K47) -> 77.546 | M49: =K49-G49 -> 0 | N49: =IF((G49)=0,"",(M49/G49)) -> 0
A50: HST | E50: 0.13 | G50: =G49*E50 -> 10.08098 | I50: 0.13 | K50: =K49*I50 -> 10.08098 | M50: 0 | N50: 0
A51: Total Bill (including HST) | G51: =G49+G50 -> 87.62698 | K51: =K49+K50 -> 87.62698 | M51: 0 | N51: 0
A52: Ontario Clean Energy Benefit 1 | G52: =ROUND(-G51*10%,2) -> -8.76 | K52: =ROUND(-K51*10%,2) -> -8.76 | M52: 0 | N52: 0
A53: Total Bill on TOU (including OCEB) | G53: =G51+G52 -> 78.86698 | K53: =K51+K52 -> 78.86698 | M53: 0 | N53: 0
A58: Note: For distributors who have a majority of customers on Tiered pricing, please provide a separate bill impact for such customers.

Sheet lists (hidden)
A1: DISTRIBUTED GENERATION [DGEN] | B1: Embedded Distributor | C1: =COUNTA(B1:B17) -> 4 | I1: A Standby Service Charge will be applied for a month where standby power is not provided. The applicable rate is the approved Distribution Volumetric Rate of the applicable service class and is applied to gross metered demand or contracted amount, whichever is greater. A monthly administration charge of $200, for simple metering arrangements, or $500, for complex metering arrangements, will also be applied. | L1: Loss Factors | N1: Units | O1: Units1 | P1: Units2 | Z1: Account History | AA1: Account set up charge/change of occupancy charge (plus credit agency costs if applicable) | AB1: Total Loss Factor – Embedded Distributor – Hydro One Networks Inc. | AL1: Algoma Power Inc. | AM1: Algoma Power Inc. | AO1: DISTRIBUTED GENERATION [DGEN] | AP1: kW | AT1: Sub-Total: Delivery (Distribution and Retail Transmission)
A2: EMBEDDED DISTRIBUTOR | B2: General Service 3,000 to 4,999 kW | I2: Distribution Volumetric Rate | L2: Total Loss Factor – Primary Metered Customer | N2: $ | O2: $/kWh | P2: $ | Z2: Account set up charge/change of occupancy charge | AA2: Administrative Billing Charge | AB2: Total Loss Factor – Primary Metered Customer | AL2: Atikokan Hydro Inc. | AM2: Atikokan Hydro Inc. | AO2: EMBEDDED DISTRIBUTOR | AP2: kW | AT2: Wholesale Market Service Rate | AW2: =AU2*AV2 -> 0 | AX2: =AU2 -> 0 | AY2: 0 | AZ2: =AX2*AY2 -> 0 | BB2: =AZ2-AW2 -> 0 | BC2: =BB2/AW2 -> 
A3: EMBEDDED DISTRIBUTOR | B3: General Service 1,000 to 4,999 kW | I3: Distribution Volumetric Rate - $/kW of contracted amount | L3: Total Loss Factor – Primary Metered Customer < 5,000 kW | N3: $/kWh | O3: $/kW | P3: % | W3: MSC | Z3: Account set up charge/change of occupancy charge (plus credit agency costs if applicable – Residential) | AA3: Bell Canada Pole Rentals | AB3: Total Loss Factor – Primary Metered Customer < 5,000 kW | AL3: Bluewater Power Distribution Corporation | AM3: Bluewater Power Distribution Corporation | AO3: EMBEDDED DISTRIBUTOR | AP3: kW | AT3: Rural or Remote Electricity Rate Protection Charge (RRRP) | AW3: =AU3*AV3 -> 0 | AX3: 0 | AY3: 0 | AZ3: =AX3*AY3 -> 0 | BB3: =AZ3-AW3 -> 0 | BC3: =BB3/AW3 -> 
A4: FARMS - SINGLE PHASE ENERGY-BILLED [F1] | B4: General Service Equal To Or Greater Than 1,500 kW - Interval Metered | I4: Distribution Wheeling Service Rate | L4: Total Loss Factor – Primary Metered Customer > 5,000 kW | N4: $/kW | O4: $/kVA | W4: SM_Rate_Adder | Z4: Account set up charge/change of occupancy charge (plus credit agency costs if applicable) | AA4: Clearance Pole Attachment charge $/pole/year | AB4: Total Loss Factor – Primary Metered Customer > 5,000 kW | AL4: Brant County Power Inc. | AM4: Brant County Power Inc. | AO4: FARMS - SINGLE PHASE ENERGY-BILLED [F1] | AP4: kWh | AT4: Standard Supply Service – Administration Charge (if applicable) | AW4: =AU4*AV4 -> 0 | AX4: 0 | AY4: 0 | AZ4: =AX4*AY4 -> 0 | BB4: =AZ4-AW4 -> 0 | BC4: =BB4/AW4 -> 
A5: FARMS - THREE PHASE ENERGY-BILLED [F3] | I5: Electricity Rate | L5: Total Loss Factor – Secondary Metered Customer | N5: $/kVA | W5: MSC_Rate_Rider_ | Z5: Arrears certificate | AA5: Collection of account charge – no disconnection | AB5: Total Loss Factor – Secondary Metered Customer | AL5: Brantford Power Inc. | AM5: Brantford Power Inc. | AO5: FARMS - THREE PHASE ENERGY-BILLED [F3] | AP5: kWh | AT5: Sub-Total: Regulatory | AW5: =SUM(AW2:AW4) -> 0 | AZ5: =SUM(AZ2:BA4) -> 0 | BB5: =AZ5-AW5 -> 0 | BC5: =BB5/AW5 -> 
A6: GENERAL SERVICE - COMMERCIAL | I6: Electricity Rate - All Additional kWh | L6: Total Loss Factor – Secondary Metered Customer < 5,000 kW | W6: VC | Z6: Arrears certificate (credit reference) | AA6: Collection of account charge – no disconnection – after regular hours | AB6: Total Loss Factor – Secondary Metered Customer < 5,000 kW | AL6: Burlington Hydro Inc. | AM6: Burlington Hydro Inc. | AO6: GENERAL SERVICE - COMMERCIAL | AP6: kW | AT6: Debt Retirement Charge (DRC) | AW6: =AU6*AV6 -> 0 | AX6: =AU6 -> 0 | AY6: =AV6 -> 0 | AZ6: =AX6*AY6 -> 0 | BB6: =AZ6-AW6 -> 0 | BC6: =BB6/AW6 -> 
A7: GENERAL SERVICE - INSTITUTIONAL | I7: Electricity Rate - First 250 kWh | AL7: Cambridge and North Dumfries Hydro Inc. | AM7: Cambridge and North Dumfries Hydro Inc. | AO7: GENERAL SERVICE - INSTITUTIONAL | AP7: kW
A8: GENERAL SERVICE 1,000 TO 2,999 KW | I8: Electricity Rate -All Additional kWh | L8: Total Loss Factor – Secondary Metered Customer > 5,000 kW | W8: VC_Rate_Rider_ | Z8: Charge to certify cheque | AA8: Collection of account charge – no disconnection - during regular business hours | AB8: Total Loss Factor – Secondary Metered Customer > 5,000 kW | AL8: Canadian Niagara Power Inc. | AM8: Canadian Niagara Power Inc. | AO8: GENERAL SERVICE 1,000 TO 2,999 KW | AP8: kW | AT8: Total Bill on RPP (before taxes) | BB8: =AZ8-AW8 -> 0
A9: GENERAL SERVICE 1,000 TO 4,999 KW | I9: Electricity Rate First 1,000 kWh | L9: Distribution Loss Factor - Secondary Metered Customer < 5,000 kW | W9: VC_GA_Rate_Rider_kW_ | Z9: Collection of Account Charge – No Disconnection | AA9: Collection of account charge – no disconnection – during regular hours | AL9: Centre Wellington Hydro Ltd. | AM9: Centre Wellington Hydro Ltd. | AO9: GENERAL SERVICE 1,000 TO 4,999 KW | AP9: kW | AT9: HST | AW9: =AV9*AW8 -> 0 | AY9: =AV9 -> 0 | AZ9: =AY9*AZ8 -> 0 | BB9: =AZ9-AW9 -> 0 | BC9: =BB9/AW9 -> 
A10: GENERAL SERVICE 1,000 TO 4,999 KW - INTERVAL METERS | I10: Electricity Rate First 25,000 kWh | L10: Distribution Loss Factor - Secondary Metered Customer > 5,000 kW | W10: VC_LV_Rate | Z10: Credit Card Convenience Charge | AA10: Collection/Disconnection/Load Limiter/Reconnection – if in Community | AL10: Chapleau Public Utilities Corporation | AM10: Chapleau Public Utilities Corporation | AO10: GENERAL SERVICE 1,000 TO 4,999 KW - INTERVAL METERS | AP10: kW | AT10: Total Bill (including HST) | AW10: =AW9+AW8 -> 0 | AZ10: =AZ9+AZ8 -> 0 | BB10: =AZ10-AW10 -> 0 | BC10: =BB10/AW10 -> 
A11: GENERAL SERVICE 1,000 TO 4,999 KW (CO-GENERATION) | I11: Electricity Rate First 6,000 kWh | L11: Distribution Loss Factor - Primary Metered Customer < 5,000 kW | W11: RTSR_Network | Z11: Credit check (plus credit agency costs) | AA11: Credit Card Convenience Charge | AL11: Collus PowerStream Corporation | AM11: Collus PowerStream Corporation | AO11: GENERAL SERVICE 1,000 TO 4,999 KW (CO-GENERATION) | AP11: kW | AT11: Ontario Clean Energy Benefit (OCEB) | AW11: =-0.1*AW10 -> 0 | AY11: =AV11 -> 0 | AZ11: =-0.1*AZ10 -> 0 | BB11: =AZ11-AW11 -> 0 | BC11: =BB11/AW11 -> 
A12: GENERAL SERVICE 1,500 TO 4,999 KW | I12: Electricity Rate Next 1,500 kWh | L12: Distribution Loss Factor - Primary Metered Customer > 5,000 kW | W12: RTSR_Connection | Z12: Credit reference Letter | AA12: Disconnect/Reconnect at meter – after regular hours | AL12: Cooperative Hydro Embrun Inc. | AM12: Cooperative Hydro Embrun Inc. | AO12: GENERAL SERVICE 1,500 TO 4,999 KW | AP12: kW | AT12: Total Bill on RPP (including OCEB) | AW12: =AW10+AW11 -> 0 | AZ12: =AZ10+AZ11 -> 0 | BB12: =AZ12-AW12 -> 0 | BC12: =BB12/AW12 -> 
A13: GENERAL SERVICE 2,500 TO 4,999 KW | I13: General Service 1,500 to 4,999 kW customer | AL13: E.L.K. Energy Inc. | AM13: E.L.K. Energy Inc. | AO13: GENERAL SERVICE 2,500 TO 4,999 KW | AP13: kW
A14: GENERAL SERVICE 3,000 TO 4,999 KW | I14: General Service 50 to 1,499 kW customer | L14: Total Loss Factor - Embedded Distributor | W14: RTSR_Network_Interval | Z14: Credit reference/credit check (plus credit agency costs – General Service) | AA14: Disconnect/Reconnect at meter – during regular hours | AL14: Enersource Hydro Mississauga Inc. | AM14: Enersource Hydro Mississauga Inc. | AO14: GENERAL SERVICE 3,000 TO 4,999 KW | AP14: kW | AT14: Total Bill on TOU (before taxes) | BB14: =AZ14-AW14 -> 0
A15: GENERAL SERVICE 3,000 TO 4,999 KW - INTERMEDIATE USE | I15: General Service Large Use customer | L15: Total Loss Factor – Embedded Distributor – Hydro One Networks Inc. | W15: RTSR_Connection_Interval | Z15: Credit Reference/credit check (plus credit agency costs) | AA15: Disconnect/Reconnect at pole – after regular hours | AL15: Entegrus Powerlines Inc. | AM15: Entegrus Powerlines Inc. | AO15: GENERAL SERVICE 3,000 TO 4,999 KW - INTERMEDIATE USE | AP15: kW | AT15: HST | AW15: =AV15*AW14 -> 0 | AY15: =AV15 -> 0 | AZ15: =AY15*AZ14 -> 0 | BB15: =AZ15-AW15 -> 0 | BC15: =BB15/AW15 -> 
A16: GENERAL SERVICE 3,000 TO 4,999 KW - INTERVAL METERED | I16: Green Energy Act Initiatives Funding Adder - effective until the date of the next cost of service-based rate order | W16: RTSR_Network_Interval_GR1000kW | Z16: Dispute Test – Commercial self contained -- MC | AA16: Disconnect/Reconnect at pole – during regular hours | AL16: Entegrus Powerlines Inc. - Dutton Service Area | AM16: Entegrus Powerlines Inc. - Dutton Service Area | AO16: GENERAL SERVICE 3,000 TO 4,999 KW - INTERVAL METERED | AP16: kW | AT16: Total Bill (including HST) | AW16: =AW15+AW14 -> 0 | AZ16: =AZ15+AZ14 -> 0 | BB16: =AZ16-AW16 -> 0 | BC16: =BB16/AW16 -> 
A17: GENERAL SERVICE 3,000 TO 4,999 KW - TIME OF USE | I17: Green Energy Act Plan Funding Adder | W17: RTSR_Connection_Interval_GR1000kW | Z17: Dispute Test – Commercial TT -- MC | AA17: Disconnect/Reconnect Charge – At Meter – After Hours | AL17: Entegrus Powerlines Inc. - former Chatham-Kent Hydro Service Area | AM17: Entegrus Powerlines Inc. - former Chatham-Kent Hydro Service Area | AO17: GENERAL SERVICE 3,000 TO 4,999 KW - TIME OF USE | AP17: kW | AT17: Ontario Clean Energy Benefit (OCEB) | AW17: =-0.1*AW16 -> 0 | AY17: =AV17 -> 0 | AZ17: =-0.1*AZ16 -> 0 | BB17: =AZ17-AW17 -> 0 | BC17: =BB17/AW17 -> 
A18: GENERAL SERVICE 50 TO 1,000 KW | I18: Green Energy Act Plan Funding Adder - effective April 1, 2013 until March 31, 2014 | W18: RTSR_Line_Connection | Z18: Dispute Test – Residential | AA18: Disconnect/Reconnect Charge – At Meter – During Regular Hours | AL18: Entegrus Powerlines Inc. - Newbury Service Area | AM18: Entegrus Powerlines Inc. - Newbury Service Area | AO18: GENERAL SERVICE 50 TO 1,000 KW | AP18: kW | AT18: Total Bill on TOU (including OCEB) | AW18: =AW16+AW17 -> 0 | AZ18: =AZ16+AZ17 -> 0 | BB18: =AZ18-AW18 -> 0 | BC18: =BB18/AW18 -> 
A19: GENERAL SERVICE 50 TO 1,000 KW - INTERVAL METERS | I19: Green Energy Act Plan Funding Adder - effective April 1, 2014 until March 31, 2015 | W19: RTSR_Transformer_Connection | Z19: Duplicate Invoices for previous billing | AA19: Disconnect/Reconnect Charge – At Pole – After Hours | AL19: Entegrus Powerlines Inc. - Strathroy, Mount Brydges and Parkhill Service Areas | AM19: Entegrus Powerlines Inc. - Strathroy, Mount Brydges and Parkhill Service Areas | AO19: GENERAL SERVICE 50 TO 1,000 KW - INTERVAL METERS | AP19: kW
A20: GENERAL SERVICE 50 TO 1,000 KW - NON INTERVAL METERS | I20: ICM Rate Rider (2014) - in effect until the effective date of the next cost of service rates | W20: WMSR | Z20: Easement Letter | AA20: Disconnect/Reconnect Charge – At Pole – During Regular Hours | AL20: ENWIN Utilities Ltd. | AM20: ENWIN Utilities Ltd. | AO20: GENERAL SERVICE 50 TO 1,000 KW - NON INTERVAL METERS | AP20: kW
A21: GENERAL SERVICE 50 TO 1,499 KW | I21: Low Voltage Service Charge | W21: RRRP | Z21: Income Tax Letter | AA21: Disconnect/Reconnect Charges for non payment of account - At Meter After Hours | AL21: Erie Thames Powerlines Corporation | AM21: Erie Thames Powerlines Corporation | AO21: GENERAL SERVICE 50 TO 1,499 KW | AP21: kW
A22: GENERAL SERVICE 50 TO 1,499 KW - INTERVAL METERED | I22: Low Voltage Service Rate | W22: SPC | Z22: Interval Meter Interrogation | AA22: Disconnect/Reconnect charges for non payment of account – at meter after regular hours | AL22: Espanola Regional Hydro Distribution Corporation | AM22: Espanola Regional Hydro Distribution Corporation | AO22: GENERAL SERVICE 50 TO 1,499 KW - INTERVAL METERED | AP22: kW
A23: GENERAL SERVICE 50 TO 2,499 KW | I23: Low Voltage Volumetric Rate | W23: DRC | Z23: Interval meter request change | AA23: Disconnect/Reconnect Charges for non payment of account - At Meter During Regular Hours | AL23: Essex Powerlines Corporation | AM23: Essex Powerlines Corporation | AO23: GENERAL SERVICE 50 TO 2,499 KW | AP23: kW
A24: GENERAL SERVICE 50 TO 2,999 KW | I24: LRAM Rate Rider - Effective Until April 30, 2015 | W24: SSS | Z24: Legal letter | AA24: Disconnect/Reconnect charges for non payment of account – at meter during regular hours | AL24: Festival Hydro Inc. | AM24: Festival Hydro Inc. | AO24: GENERAL SERVICE 50 TO 2,999 KW | AP24: kW
A25: GENERAL SERVICE 50 TO 2,999 KW - INTERVAL METERED | I25: Minimum Distribution Charge - per KW of maximum billing demand in the previous 11 months | W25: SFLF | Z25: Legal letter charge | AA25: Disconnect/Reconnect charges for non payment of account – at pole after regular hours | AL25: Fort Frances Power Corporation | AM25: Fort Frances Power Corporation | AO25: GENERAL SERVICE 50 TO 2,999 KW - INTERVAL METERED | AP25: kW
A26: GENERAL SERVICE 50 TO 2,999 KW - TIME OF USE | B26: January | I26: Monthly Distribution Wheeling Service Rate - Dedicated LV Line | W26: DLF_Secondary_LT_5000kW | Z26: Meter dispute charge plus Measurement Canada fees (if meter found correct) | AA26: Disconnect/Reconnect charges for non payment of account – at pole during regular hours | AL26: Greater Sudbury Hydro Inc. | AM26: Greater Sudbury Hydro Inc. | AO26: GENERAL SERVICE 50 TO 2,999 KW - TIME OF USE | AP26: kW
A27: GENERAL SERVICE 50 TO 4,999 KW | B27: February | I27: Monthly Distribution Wheeling Service Rate - Hydro One Networks | W27: DLF_Secondary_GT_5000kW | Z27: Notification charge | AA27: Disconnect/Reconnection for >300 volts - after regular hours | AL27: Grimsby Power Inc. | AM27: Grimsby Power Inc. | AO27: GENERAL SERVICE 50 TO 4,999 KW | AP27: kW
A28: GENERAL SERVICE 50 TO 4,999 KW - INTERVAL METERED | B28: March | I28: Monthly Distribution Wheeling Service Rate - Shared LV Line | W28: DLF_Primary_LT_5000kW | Z28: Pulling Post Dated Cheques | AA28: Disconnect/Reconnection for >300 volts - during regular hours | AL28: Guelph Hydro Electric Systems Inc. | AM28: Guelph Hydro Electric Systems Inc. | AO28: GENERAL SERVICE 50 TO 4,999 KW - INTERVAL METERED | AP28: kW
A29: GENERAL SERVICE 50 TO 4,999 KW - TIME OF USE | B29: April | I29: Monthly Distribution Wheeling Service Rate - Waterloo North Hydro | W29: DLF_Primary_GT_5000kW | Z29: Request for other billing information | AA29: Disposal of Concrete Poles | AL29: Haldimand County Hydro Inc. | AM29: Haldimand County Hydro Inc. | AO29: GENERAL SERVICE 50 TO 4,999 KW - TIME OF USE | AP29: kW
A30: GENERAL SERVICE 50 TO 4,999 KW (COGENERATION) | B30: May | I30: Rate Rider for Application of Tax Change - effective until April 30, 2015 | W30: TLF_Secondary_LT_5000kW | Z30: Returned cheque (plus bank charges) | AA30: Dispute Test – Commercial TT -- MC | AL30: Halton Hills Hydro Inc. | AM30: Halton Hills Hydro Inc. | AO30: GENERAL SERVICE 50 TO 4,999 KW (COGENERATION) | AP30: kW
A31: GENERAL SERVICE 50 TO 4,999 KW (FORMERLY TIME OF USE) | B31: June | I31: Rate Rider for Application of Tax Change - effective until December 31, 2014 | W31: TLF_Secondary_GT_5000kW | Z31: Returned cheque charge (plus bank charges) | AA31: Install/Remove load control device – after regular hours | AL31: Hearst Power Distribution Company Limited | AM31: Hearst Power Distribution Company Limited | AO31: GENERAL SERVICE 50 TO 4,999 KW (FORMERLY TIME OF USE) | AP31: kW
A32: GENERAL SERVICE 50 TO 499 KW | B32: July | I32: Rate Rider for Application of Tax Change (2014) - effective until April 30, 2015 | W32: TLF_Primary_LT_5000kW | Z32: Special Billing Service (aggregation) | AA32: Install/Remove load control device – during regular hours | AL32: Horizon Utilities Corporation | AM32: Horizon Utilities Corporation | AO32: GENERAL SERVICE 50 TO 499 KW | AP32: kW
A33: GENERAL SERVICE 50 TO 699 KW | B33: August | I33: Rate Rider for Application of Tax Change (per connection) - effective until April 30, 2015 | W33: TLF_Primary_GT_5000kW | Z33: Special Billing Service (sub-metering charge per meter) | AA33: Interval Meter Interrogation | AL33: Hydro 2000 Inc. | AM33: Hydro 2000 Inc. | AO33: GENERAL SERVICE 50 TO 699 KW | AP33: kW
A34: GENERAL SERVICE 50 TO 999 KW | B34: September | I34: Rate Rider for CGAAP Accounting Changes (2013) - effective until April 30, 2017 | W34: TLF_EmbeddedDistributor | Z34: Special meter reads | AA34: Interval Meter Load Management Tool Charge $/month | AL34: Hydro Hawkesbury Inc. | AM34: Hydro Hawkesbury Inc. | AO34: GENERAL SERVICE 50 TO 999 KW | AP34: kW
A35: GENERAL SERVICE 50 TO 999 KW - INTERVAL METERED | B35: October | I35: Rate Rider for Deferral/Variance Account (2012) - effective unitl April 30, 2016 | Z35: Statement of Account | AA35: Interval meter request change | AL35: Hydro One Brampton Networks Inc. | AM35: Hydro One Brampton Networks Inc. | AO35: GENERAL SERVICE 50 TO 999 KW - INTERVAL METERED | AP35: kW
A36: GENERAL SERVICE 500 TO 4,999 KW | B36: November | I36: Rate Rider for Deferral/Variance Account Disposition – effective until April 30, 2015 | Z36: Unprocessed Payment Charge (plus bank charges) | AA36: Late Payment – per annum | AL36: Hydro One Networks Inc. | AM36: Hydro One Networks Inc. | AO36: GENERAL SERVICE 500 TO 4,999 KW | AP36: kW
A37: GENERAL SERVICE 700 TO 4,999 KW | B37: December | I37: Rate Rider for Deferral/Variance Account Disposition (2012) - effective until April 30, 2016 | AA37: Late Payment – per month | AL37: Hydro Ottawa Limited | AM37: Hydro Ottawa Limited | AO37: GENERAL SERVICE 700 TO 4,999 KW | AP37: kW
A38: GENERAL SERVICE DEMAND BILLED (50 KW AND ABOVE) [GSD] | I38: Rate Rider for Deferral/Variance Account Disposition (2013) - effective until April 30, 2014 | AA38: Layout fees | AL38: Innisfil Hydro Distribution Systems Limited | AM38: Innisfil Hydro Distribution Systems Limited | AO38: GENERAL SERVICE DEMAND BILLED (50 KW AND ABOVE) [GSD] | AP38: kW
A39: GENERAL SERVICE ENERGY BILLED (LESS THAN 50 KW) [GSE-METERED] | I39: Rate Rider for Deferral/Variance Account Disposition (2014) - effective until April 28, 2016 | AA39: Meter dispute charge plus Measurement Canada fees (if meter found correct) | AL39: Kenora Hydro Electric Corporation Ltd. | AM39: Kenora Hydro Electric Corporation Ltd. | AO39: GENERAL SERVICE ENERGY BILLED (LESS THAN 50 KW) [GSE-METERED] | AP39: kWh
A40: GENERAL SERVICE ENERGY BILLED (LESS THAN TO 50 KW) [GSE-UNMETERED] | I40: Rate Rider for Deferral/Variance Account Disposition (2014) - effective until April 30, 2015 | AA40: Meter Interrogation Charge | AL40: Kingston Hydro Corporation | AM40: Kingston Hydro Corporation | AO40: GENERAL SERVICE ENERGY BILLED (LESS THAN TO 50 KW) [GSE-UNMETERED] | AP40: kWh
A41: GENERAL SERVICE EQUAL TO OR GREATER THAN 1,500 KW | I41: Rate Rider for Deferral/Variance Account Disposition (2014) - effective until December 31, 2014 | AA41: Missed Service Appointment | AL41: Kitchener-Wilmot Hydro Inc. | AM41: Kitchener-Wilmot Hydro Inc. | AO41: GENERAL SERVICE EQUAL TO OR GREATER THAN 1,500 KW | AP41: kW
A42: GENERAL SERVICE EQUAL TO OR GREATER THAN 1,500 KW - INTERVAL METERED | I42: Rate Rider for Deferral/Variance Account Disposition (2014) - effective until December 31, 2015 | AA42: Norfolk Pole Rentals – Billed | AL42: Lakefront Utilities Inc. | AM42: Lakefront Utilities Inc. | AO42: GENERAL SERVICE EQUAL TO OR GREATER THAN 1,500 KW - INTERVAL METERED | AP42: kW
A43: GENERAL SERVICE GREATER THAN 1,000 KW | I43: Rate Rider for Deferral/Variance Account Dispositon (2012) - effective until April 30, 2016 | AA43: Optional Interval/TOU Meter charge $/month | AL43: Lakeland Power Distribution Ltd. | AM43: Lakeland Power Distribution Ltd. | AO43: GENERAL SERVICE GREATER THAN 1,000 KW | AP43: kW
A44: GENERAL SERVICE GREATER THAN 50 kW - WMP | I44: Rate Rider for Disposition of Accounting Changes Under CGAAP Account 1576 - effective until April 30, 2016 | AA44: Overtime Locate | AL44: London Hydro Inc. | AM44: London Hydro Inc. | AO44: GENERAL SERVICE GREATER THAN 50 kW - WMP | AP44: kW
A45: GENERAL SERVICE INTERMEDIATE 1,000 TO 4,999 KW | I45: Rate Rider for Disposition of Deferral/Variance Accounts (2010) - effective until December 31, 2014 | AA45: Owner Requested Disconnection/Reconnection – after regular hours | AL45: Midland Power Utility Corporation | AM45: Midland Power Utility Corporation | AO45: GENERAL SERVICE INTERMEDIATE 1,000 TO 4,999 KW | AP45: kW
A46: GENERAL SERVICE INTERMEDIATE RATE CLASS 1,000 TO 4,999 KW (FORMERLY GENERAL SERVICE > 50 KW CUSTOMERS) | I46: Rate Rider for Disposition of Deferral/Variance Accounts (2011) - effective until April 30, 2015 | AA46: Owner Requested Disconnection/Reconnection – during regular hours | AL46: Milton Hydro Distribution Inc. | AM46: Milton Hydro Distribution Inc. | AO46: GENERAL SERVICE INTERMEDIATE RATE CLASS 1,000 TO 4,999 KW (FORMERLY GENERAL SERVICE > 50 KW CUSTOMERS) | AP46: kW
A47: GENERAL SERVICE INTERMEDIATE RATE CLASS 1,000 TO 4,999 KW (FORMERLY LARGE USE CUSTOMERS) | I47: Rate Rider for Disposition of Deferral/Variance Accounts (2011) - effective until April 30, 2016 | AA47: Returned cheque (plus bank charges) | AL47: Newmarket - Tay Power Distribution Ltd. | AM47: Newmarket - Tay Power Distribution Ltd. | AO47: GENERAL SERVICE INTERMEDIATE RATE CLASS 1,000 TO 4,999 KW (FORMERLY LARGE USE CUSTOMERS) | AP47: kW
A48: GENERAL SERVICE LESS THAN 50 KW | I48: Rate Rider for Disposition of Deferral/Variance Accounts (2012) - effective until April 30, 2014 | AA48: Rural system expansion / line connection fee | AL48: Niagara Peninsula Energy Inc. | AM48: Niagara Peninsula Energy Inc. | AO48: GENERAL SERVICE LESS THAN 50 KW | AP48: kWh
A49: GENERAL SERVICE LESS THAN 50 KW - SINGLE PHASE ENERGY-BILLED [G1] | I49: Rate Rider for Disposition of Deferral/Variance Accounts (2012) - effective until April 30, 2015 | AA49: Same Day Open Trench | AL49: Niagara-on-the-Lake Hydro Inc. | AM49: Niagara-on-the-Lake Hydro Inc. | AO49: GENERAL SERVICE LESS THAN 50 KW - SINGLE PHASE ENERGY-BILLED [G1] | AP49: kWh
A50: GENERAL SERVICE LESS THAN 50 KW - THREE PHASE ENERGY-BILLED [G3] | I50: Rate Rider for Disposition of Deferral/Variance Accounts (2012) - effective until April 30, 2016 | AA50: Scheduled Day Open Trench | AL50: Norfolk Power Distribution Inc. | AM50: Norfolk Power Distribution Inc. | AO50: GENERAL SERVICE LESS THAN 50 KW - THREE PHASE ENERGY-BILLED [G3] | AP50: kWh
A51: GENERAL SERVICE LESS THAN 50 KW - TRANSMISSION CLASS ENERGY-BILLED [T] | I51: Rate Rider for Disposition of Deferral/Variance Accounts (2012) - effective until August 31, 2014 | AA51: Service call – after regular hours | AL51: North Bay Hydro Distribution Limited | AM51: North Bay Hydro Distribution Limited | AO51: GENERAL SERVICE LESS THAN 50 KW - TRANSMISSION CLASS ENERGY-BILLED [T] | AP51: kWh
A52: GENERAL SERVICE LESS THAN 50 KW - URBAN ENERGY-BILLED [UG] | I52: Rate Rider for Disposition of Deferral/Variance Accounts (2012) - effective until December 31, 2015 | AA52: Service call – customer owned equipment | AL52: Northern Ontario Wires Inc. | AM52: Northern Ontario Wires Inc. | AO52: GENERAL SERVICE LESS THAN 50 KW - URBAN ENERGY-BILLED [UG] | AP52: kWh
A53: GENERAL SERVICE SINGLE PHASE - G1 | I53: Rate Rider for Disposition of Deferral/Variance Accounts (2012) - effective until December 31, 2016 Applicable only in the former service area of Clinton Power | AA53: Service Call – Customer-owned Equipment – After Regular Hours | AL53: Oakville Hydro Electricity Distribution Inc. | AM53: Oakville Hydro Electricity Distribution Inc. | AO53: GENERAL SERVICE SINGLE PHASE - G1 | AP53: kW
A54: GENERAL SERVICE THREE PHASE - G3 | I54: Rate Rider for Disposition of Deferral/Variance Accounts (2012) – effective until December 31, 2016 Applicable only in the former service area of Clinton Power | AA54: Service Call – Customer-owned Equipment – During Regular Hours | AL54: Orangeville Hydro Limited | AM54: Orangeville Hydro Limited | AO54: GENERAL SERVICE THREE PHASE - G3 | AP54: kW
A55: INTERMEDIATE USERS | I55: Rate Rider for Disposition of Deferral/Variance Accounts (2012) - effective until January 31, 2014 | AA55: Service Charge for onsite interrogation of interval meter due to customer phone line failure - required weekly until line repaired $ 6 | AL55: Orillia Power Distribution Corporation | AM55: Orillia Power Distribution Corporation | AO55: INTERMEDIATE USERS | AP55: kW
A56: INTERMEDIATE WITH SELF GENERATION | I56: Rate Rider for Disposition of Deferral/Variance Accounts (2012) - effective until June 30, 2014 | AA56: Service Layout - Commercial | AL56: Oshawa PUC Networks Inc. | AM56: Oshawa PUC Networks Inc. | AO56: INTERMEDIATE WITH SELF GENERATION | AP56: kW
A57: LARGE USE | I57: Rate Rider for Disposition of Deferral/Variance Accounts (2013) - Applicable only to Wholesale Market Participants - effective until April 30, 2015 | AA57: Service Layout - ResidentiaI | AL57: Ottawa River Power Corporation | AM57: Ottawa River Power Corporation | AO57: LARGE USE | AP57: kW
A58: LARGE USE - 3TS | I58: Rate Rider for Disposition of Deferral/Variance Accounts (2013) - effective until April 30, 2014 | AA58: Special Billing Service (sub-metering charge per meter) | AL58: Parry Sound Power Corporation | AM58: Parry Sound Power Corporation | AO58: LARGE USE - 3TS | AP58: kW
A59: LARGE USE - FORD ANNEX | I59: Rate Rider for Disposition of Deferral/Variance Accounts (2013) - effective until April 30, 2015 | AA59: Special meter reads | AL59: Peterborough Distribution Incorporated | AM59: Peterborough Distribution Incorporated | AO59: LARGE USE - FORD ANNEX | AP59: kW
A60: LARGE USE - REGULAR | I60: Rate Rider for Disposition of Deferral/Variance Accounts (2013) - effective until April 30, 2015 - not applicable to Wholesale Market Participants | AA60: Specific Charge for Access to the Power Poles - $/pole/year | AL60: PowerStream Inc. | AM60: PowerStream Inc. | AO60: LARGE USE - REGULAR | AP60: kW
A61: LARGE USE > 5000 KW | I61: Rate Rider for Disposition of Deferral/Variance Accounts (2013) - effective until April 30, 2017 | AA61: Specific Charge for Bell Canada Access to the Power Poles – per pole/year | AL61: PUC Distribution Inc. | AM61: PUC Distribution Inc. | AO61: LARGE USE > 5000 KW | AP61: kW
A62: microFIT | I62: Rate Rider for Disposition of Deferral/Variance Accounts (2013) - effective until August 31, 2014 | AA62: Switching for company maintenance – Charge based on Time and Materials | AL62: Renfrew Hydro Inc. | AM62: Renfrew Hydro Inc. | AO62: microFIT | AP62: $
A63: RESIDENTIAL | I63: Rate Rider for Disposition of Deferral/Variance Accounts (2013) - effective until December 31, 2014 | AA63: Temporary Service – Install & remove – overhead – no transformer | AL63: Rideau St. Lawrence Distribution Inc. | AM63: Rideau St. Lawrence Distribution Inc. | AO63: RESIDENTIAL | AP63: kWh
A64: RESIDENTIAL - HENSALL | I64: Rate Rider for Disposition of Deferral/Variance Accounts (2013) - effective until May 31, 2014 | AA64: Temporary Service – Install & remove – overhead – with transformer | AL64: Sioux Lookout Hydro Inc. | AM64: Sioux Lookout Hydro Inc. | AO64: RESIDENTIAL - HENSALL | AP64: kWh
A65: RESIDENTIAL - HIGH DENSITY [R1] | I65: Rate Rider for Disposition of Deferral/Variance Accounts (2014) - effective until December 31, 2015 | AA65: Temporary Service – Install & remove – underground – no transformer | AL65: St. Thomas Energy Inc. | AM65: St. Thomas Energy Inc. | AO65: RESIDENTIAL - HIGH DENSITY [R1] | AP65: kWh
A66: RESIDENTIAL - LOW DENSITY [R2] | I66: Rate Rider for Disposition of Deferred PILs Variance Account 1562 - effective until March 31, 2016 | AA66: Temporary service install & remove – overhead – no transformer | AL66: Thunder Bay Hydro Electricity Distribution Inc. | AM66: Thunder Bay Hydro Electricity Distribution Inc. | AO66: RESIDENTIAL - LOW DENSITY [R2] | AP66: kWh
A67: RESIDENTIAL - MEDIUM DENSITY [R1] | I67: Rate Rider for Disposition of Deferred PILs Variance Account 1562 (2012) - effective until April 30, 2015 | AA67: Temporary Service Install & Remove – Overhead – With Transformer | AL67: Tillsonburg Hydro Inc. | AM67: Tillsonburg Hydro Inc. | AO67: RESIDENTIAL - MEDIUM DENSITY [R1] | AP67: kWh
A68: RESIDENTIAL - NORMAL DENSITY [R2] | I68: Rate Rider for Disposition of Deferred PILs Variance Account 1562 (2012) - effective until April 30, 2016 | AA68: Temporary Service Install & Remove – Underground – No Transformer | AL68: Toronto Hydro-Electric System Limited | AM68: Toronto Hydro-Electric System Limited | AO68: RESIDENTIAL - NORMAL DENSITY [R2] | AP68: kWh
A69: RESIDENTIAL - TIME OF USE | I69: Rate Rider for Disposition of Deferred PILs Variance Account 1562 (2nd Installment - 2012) - effective until April 30, 2016 | AA69: Temporary service installation and removal – overhead – no transformer | AL69: Veridian Connections Inc. | AM69: Veridian Connections Inc. | AO69: RESIDENTIAL - TIME OF USE | AP69: kWh
A70: RESIDENTIAL - URBAN [UR] | I70: Rate Rider for Disposition of Deferred PILs Variance Account 1562 (per connection) (2012) - effective until April 30, 2015 | AA70: Temporary service installation and removal – overhead – with transformer | AL70: Wasaga Distribution Inc. | AM70: Wasaga Distribution Inc. | AO70: RESIDENTIAL - URBAN [UR] | AP70: kWh
A71: RESIDENTIAL REGULAR | I71: Rate Rider for Disposition of Deferred PILs Variance Account 1562 (per connection) (2012) - effective until April 30, 2016 | AA71: Temporary service installation and removal – underground – no transformer | AL71: Waterloo North Hydro Inc. | AM71: Waterloo North Hydro Inc. | AO71: RESIDENTIAL REGULAR | AP71: kWh
A72: RESIDENTIAL SUBURBAN | I72: Rate Rider for Disposition of Global Adjustment Sub-Account (2011) - effective until April 30, 2015 Applicable only for Non-RPP Customers | AL72: Welland Hydro-Electric System Corp. | AM72: Welland Hydro-Electric System Corp. | AO72: RESIDENTIAL SUBURBAN | AP72: kWh
A73: RESIDENTIAL SUBURBAN SEASONAL | I73: Rate Rider for Disposition of Global Adjustment Sub-Account (2011) - effective until April 30, 2016 Applicable only for Non-RPP Customers | AL73: Wellington North Power Inc. | AM73: Wellington North Power Inc. | AO73: RESIDENTIAL SUBURBAN SEASONAL | AP73: kWh
A74: RESIDENTIAL SUBURBAN YEAR ROUND | I74: Rate Rider for Disposition of Global Adjustment Sub-Account (2012) - effective until April 30, 2014 Applicable only for Non-RPP Customers | AL74: West Coast Huron Energy Inc. | AM74: West Coast Huron Energy Inc. | AO74: RESIDENTIAL SUBURBAN YEAR ROUND | AP74: kWh
A75: RESIDENTIAL URBAN | I75: Rate Rider for Disposition of Global Adjustment Sub-Account (2012) - effective until April 30, 2015 Applicable only for Non-RPP Customers | AL75: Westario Power Inc. | AM75: Westario Power Inc. | AO75: RESIDENTIAL URBAN | AP75: kWh
A76: RESIDENTIAL URBAN YEAR-ROUND | I76: Rate Rider for Disposition of Global Adjustment Sub-Account (2012) - effective until April 30, 2015 Applicatble only for Non-RPP Customers | AL76: Whitby Hydro Electric Corporation | AM76: Whitby Hydro Electric Corporation | AO76: RESIDENTIAL URBAN YEAR-ROUND | AP76: kWh
A77: SEASONAL RESIDENTIAL | I77: Rate Rider for Disposition of Global Adjustment Sub-Account (2012) - effective until April 30, 2016 Applicable only for Non-RPP Customers | AL77: Woodstock Hydro Services Inc. | AM77: Woodstock Hydro Services Inc. | AO77: SEASONAL RESIDENTIAL | AP77: kWh
A78: SEASONAL RESIDENTIAL - HIGH DENSITY [R3] | I78: Rate Rider for Disposition of Global Adjustment Sub-Account (2012) - effective until January 31, 2014. Applicable only for Non-RPP Customers | AO78: SEASONAL RESIDENTIAL - HIGH DENSITY [R3] | AP78: kWh
A79: SEASONAL RESIDENTIAL - NORMAL DENSITY [R4] | I79: Rate Rider for Disposition of Global Adjustment Sub-Account (2012) - effective until June 30, 2014 Applicable only for Non-RPP Customers | AO79: SEASONAL RESIDENTIAL - NORMAL DENSITY [R4] | AP79: kWh
A80: SENTINEL LIGHTING | I80: Rate Rider for Disposition of Global Adjustment Sub-Account (2012) Applicable only for Non-RPP Customers - effective until August 31, 2014 | AO80: SENTINEL LIGHTING | AP80: kW
A81: SMALL COMMERCIAL AND USL - PER CONNECTION | I81: Rate Rider for Disposition of Global Adjustment Sub-Account (2012) Applicable only to Non-RPP Customers - effective until August 31, 2014 | AO81: SMALL COMMERCIAL AND USL - PER CONNECTION | AP81: kWh
A82: SMALL COMMERCIAL AND USL - PER METER | I82: Rate Rider for Disposition of Global Adjustment Sub-Account (2013) - effective until April 30, 2014 Applicable only for Non-RPP Customers | AO82: SMALL COMMERCIAL AND USL - PER METER | AP82: kWh
A83: STANDARD A GENERAL SERVICE AIR ACCESS | I83: Rate Rider for Disposition of Global Adjustment Sub-Account (2013) - effective until April 30, 2015 Applicable only for Non-RPP Customers | AO83: STANDARD A GENERAL SERVICE AIR ACCESS | AP83: kWh
A84: STANDARD A GENERAL SERVICE ROAD/RAIL | I84: Rate Rider for Disposition of Global Adjustment Sub-Account (2013) - effective until April 30, 2015 Applicable only for Non-RPP Customers and excluding Wholesale Market Participants | AO84: STANDARD A GENERAL SERVICE ROAD/RAIL | AP84: kWh
A85: STANDARD A GRID CONNECTED | I85: Rate Rider for Disposition of Global Adjustment Sub-Account (2013) - effective until April 30, 2017 Applicable only for Non-RPP Customers | AO85: STANDARD A GRID CONNECTED | AP85: kWh
A86: STANDARD A RESIDENTIAL AIR ACCESS | I86: Rate Rider For Disposition of Global Adjustment Sub-Account (2013) - effective until August 31, 2014 Applicable only for Non-RPP Customers | AO86: STANDARD A RESIDENTIAL AIR ACCESS | AP86: kWh
A87: STANDARD A RESIDENTIAL ROAD/RAIL | I87: Rate Rider for Disposition of Global Adjustment Sub-Account (2013) - effective until December 31, 2014 Applicable only for Non-RPP Customers | AO87: STANDARD A RESIDENTIAL ROAD/RAIL | AP87: kWh
A88: STANDBY - GENERAL SERVICE 1,000 - 5,000 KW | I88: Rate Rider for Disposition of Global Adjustment Sub-Account (2013) - effective until May 31, 2014 Applicable only for Non-RPP Customers | AO88: STANDBY - GENERAL SERVICE 1,000 - 5,000 KW | AP88: kW
A89: STANDBY - GENERAL SERVICE 50 - 1,000 KW | I89: Rate Rider for Disposition of Global Adjustment Sub-Account (2014) - effective until December 31, 2014. Applicable only for Non-RPP - Class B Customers | AO89: STANDBY - GENERAL SERVICE 50 - 1,000 KW | AP89: kW
A90: STANDBY - LARGE USE | I90: Rate Rider for Disposition of Global Adjustment Sub-Account (2014) - effective until December 31, 2014. Applicable only for Non-RPP Customers | AO90: STANDBY - LARGE USE | AP90: kW
A91: STANDBY DISTRIBUTION SERVICE | I91: Rate Rider for Disposition of Global Adjustment Sub-Account (2014) - effective until December 31, 2014. Applicable only for Non-RPP Customers - Class A Customers | AO91: STANDBY DISTRIBUTION SERVICE | AP91: kW
A92: STANDBY POWER | I92: Rate Rider for Disposition of Global Adjustment Sub-Account (2014) - effective until December 31, 2014. Applicable only for Non-RPP Customers - Interval Metered | AO92: STANDBY POWER | AP92: kW
A93: STANDBY POWER - APPROVED ON AN INTERIM BASIS | I93: Rate Rider for Disposition of Global Adjustment Sub-Account (2014) - effective until December 31, 2014. Applicable only for Non-RPP Customers - Non Interval Metered | AO93: STANDBY POWER - APPROVED ON AN INTERIM BASIS | AP93: kW
A94: STANDBY POWER GENERAL SERVICE 1,500 TO 4,999 KW | I94: Rate Rider for Disposition of Global Adjustment Sub-Account (2014) - effective until December 31, 2015. Applicable only for Non-RPP Customers. | AO94: STANDBY POWER GENERAL SERVICE 1,500 TO 4,999 KW | AP94: kW
A95: STANDBY POWER GENERAL SERVICE 50 TO 1,499 KW | I95: Rate Rider for Disposition of Post Retirement Actuarial Gain - effective until March 31, 2025 | AO95: STANDBY POWER GENERAL SERVICE 50 TO 1,499 KW | AP95: kW
A96: STANDBY POWER GENERAL SERVICE LARGE USE | I96: Rate Rider for Disposition of Residual Hisotrical Smart Meter Costs - effective until April 30, 2015 | AO96: STANDBY POWER GENERAL SERVICE LARGE USE | AP96: kW
A97: STREET LIGHTING | I97: Rate Rider for Disposition of Residual Hisotrical Smart Meter Costs - effective until April 30, 2017 | AO97: STREET LIGHTING | AP97: kW
A98: SUB TRANSMISSION [ST] | I98: Rate Rider for Disposition of Residual Historical Smart Meter Costs - effective until April 30, 2014 | AO98: SUB TRANSMISSION [ST] | AP98: kW
A99: UNMETERED SCATTERED LOAD | I99: Rate Rider for Disposition of Residual Historical Smart Meter Costs - effective until April 30, 2016 | AO99: UNMETERED SCATTERED LOAD | AP99: kWh
A100: URBAN GENERAL SERVICE DEMAND BILLED (50 KW AND ABOVE) [UGD] | I100: Rate Rider for Disposition of Residual Historical Smart Meter Costs - effective until August 31, 2014 | AO100: URBAN GENERAL SERVICE DEMAND BILLED (50 KW AND ABOVE) [UGD] | AP100: kW
A101: URBAN GENERAL SERVICE ENERGY BILLED (LESS THAN 50 KW) [UGE] | I101: Rate Rider for Disposition of Residual Historical Smart Meter Costs - effective until August 31, 2015 | AO101: URBAN GENERAL SERVICE ENERGY BILLED (LESS THAN 50 KW) [UGE] | AP101: kWh
A102: WESTPORT SEWAGE TREATMENT PLANT | I102: Rate Rider for Disposition of Residual Historical Smart Meter Costs - effective until December 31, 2014 | AO102: WESTPORT SEWAGE TREATMENT PLANT | AP102: kW
A103: YEAR-ROUND RESIDENTIAL - R2 | I103: Rate Rider for Disposition of Residual Historical Smart Meter Costs – effective until December 31, 2014 | AO103: YEAR-ROUND RESIDENTIAL - R2 | AP103: kWh
I104: Rate Rider for Disposition of Residual Historical Smart Meter Costs - effective until December 31, 2015
I105: Rate Rider for Disposition of Residual Historical Smart Meter Costs - effective until December 31, 2016
I106: Rate Rider for Disposition of Residual Historical Smart Meter Costs - effective until October 31, 2014
I107: Rate Rider for Disposition of Residual Historical Smart Meter Costs - effective until September 30, 2014
I108: Rate Rider for Disposition of Residual Historical Smart Meter Costs - Non-Interval Metered - effective until April 30, 2014
I109: Rate Rider for Disposition of Residual Historical Smart Meter Costs 2 - in effect until the effective date of the next cost of service-based rate order
I110: Rate Rider for Disposition of Residual Historical Smart Meter Costs 3 - in effect until the effective date of the next cost of service-based rate order
I111: Rate Rider for Disposition of Residual Incremental Historical Smart Meter Costs - effective until August 31, 2015
I112: Rate Rider for Disposition of Stranded Meter costs - effective until April 30, 2015
I113: Rate Rider for Disposition of Stranded Meter Costs - effective until April 30, 2016
I114: Rate Rider for Disposition of Stranded Meter Costs - effective until April 30, 2017
I115: Rate Rider for Global Adjustment Sub Account Disposition - effective until April 30, 2016 Applicable only for Non RPP Customers
I116: Rate Rider for Global Adjustment Sub-Account Disposition (2014) - effective until April 28, 2016 Applicable only for Non-RPP Customers
I117: Rate Rider for Global Adjustment Sub-Account Disposition (2014) - effective until April 30, 2015 Applicable only for Non-RPP Customers
I118: Rate Rider for Global Adjustment Sub-Account Disposition (2014) - effective until December 30, 2015 Applicable only for Non-RPP Customers
I119: Rate Rider for Global Adjustment Sub-Account Disposition (2014) - effective until December 31, 2014 Applicable only for Non-RPP Customers
I120: Rate Rider for Global Adjustment Sub-Account Disposition (2014) - effective until December 31, 2015 Applicable only for Non-RPP Customers
I121: Rate Rider for Global Adjustment Sub-Account Disposition Applicable only for Non-RPP Customers - effective until April 30, 2015
I122: Rate Rider for Incremental Capital - Distribution Volumetric - effective until April 30, 2016
I123: Rate Rider for Incremental Capital - Service Charge - effective until April 30, 2016
I124: Rate Rider for Incremental Capital (2012) - effective until April 30, 2015
I125: Rate Rider for Lost Revenue Adjustment Mechanism Variance Account (LRAMVA) Recovery (2012 CDM Activities) - effective until April 30, 2015
I126: Rate Rider for Recover of Residual Historical Smart meter Costs - effective until June 30, 2014
I127: Rate Rider for Recovery of CGAAP/CWIP Differential - in effect until December 31, 2016
I128: Rate Rider for Recovery of Foregone Revenue - effective until April 30, 2015
I129: Rate Rider for Recovery of Forgone Revenue - effective until April 30, 2015
I130: Rate Rider for Recovery of Forgone Revenue - effective until December 31, 2014
I131: Rate Rider for Recovery of Green Energy Act related costs - effective until December 31, 2014
I132: Rate Rider for Recovery of Incremental Capital (2013) - in effect until the effective date of the next cost of service-based rate order
I133: Rate Rider for Recovery of Incremental Capital (2013) - in effect until the effective date of the next cost of service-based rate order
I134: Rate Rider for Recovery of Incremental Capital (2013) (per connection) - in effect until the effective date of the next cost of service-based rate order
I135: Rate Rider for Recovery of Incremental Capital (2013) (per connection)- in effect until the effective date of the next cost of service-based rate order
I136: Rate Rider for Recovery of Incremental Capital Costs
I137: Rate Rider for Recovery of Incremental Capital Costs - effective until April 30, 2015
I138: Rate Rider for Recovery of Incremental Capital Module Costs (2014) - in effect until the effective date of the next cost of service-based rate order
I139: Rate Rider for Recovery of Incremental Capital Module Costs (2014) - in effect until the effective date of the next cost of service-based rate order
I140: Rate Rider for Recovery of Lost Revenue Adjustment Mechanism ( LRAM)/Shared Savings Mechanism (SSM) (2012) - effective until August 31, 2014
I141: Rate Rider for Recovery of Lost Revenue Adjustment Mechanism (2013) - effective until December 31, 2014
I142: Rate Rider for Recovery of Lost Revenue Adjustment Mechanism (LRAM) - effective until April 30, 2016
I143: Rate Rider for Recovery of Lost Revenue Adjustment Mechanism (LRAM) (pre-2011 CDM Activities) - effective until April 30, 2015
I144: Rate Rider for Recovery of Lost Revenue Adjustment Mechanism (LRAM) (pre-2011 CDM Activities) (2013) - effective until April 30, 2015
I145: Rate Rider for Recovery of Lost Revenue Adjustment Mechanism (LRAM)/Shared Savings
I146: Rate Rider for Recovery of Lost Revenue Adjustment Mechanism (LRAM)/Shared Savings Mechanism (SSM) - effective until December 31, 2018 and applicable in the service area excluding the former service areas of Clinton Power and West Perth Power
I147: Rate Rider for Recovery of Lost Revenue Adjustment Mechanism (LRAM)/Shared Savings Mechanism (SSM) - effective until December 31, 2014 and applicable in the service area excluding the former service areas of Clinton Power and West Perth Power
I148: Rate Rider for Recovery of Lost Revenue Adjustment Mechanism (LRAM)/Shared Savings Mechanism (SSM) - effective until December 31, 2014 and applicable only in the former service area of Clinton Power
I149: Rate Rider for Recovery of Lost Revenue Adjustment Mechanism (LRAM)/Shared Savings Mechanism (SSM) - effective until December 31, 2014 and applicable only in the former service area of West Perth Power
I150: Rate Rider for Recovery of Lost Revenue Adjustment Mechanism (LRAM)/Shared Savings Mechanism (SSM) - effective until December 31, 2014 and applicable in the service area excluding the former service area of Clinton Power
I151: Rate Rider for Recovery of Lost Revenue Adjustment Mechanism (LRAM)/Shared Savings Mechanism (SSM) - effective until March 31, 2016
I152: Rate Rider for Recovery of Lost Revenue Adjustment Mechanism (LRAM)/Shared Savings Mechanism (SSM) (2012) - effective until August 31, 2014
I153: Rate Rider for Recovery of Lost Revenue Adjustment Mechanism (LRAM)/Shared Savings Mechanism (SSM) Recovery - effective until April 30, 2015
I154: Rate Rider for Recovery of Lost Revenue Adjustment Mechanism Variance Account (LRAMVA) (2014) - effective until April 30, 2015
I155: Rate Rider for Recovery of Residual Historical Smart Meter Costs - effective July 1, 2012 - April 30, 2016
I156: Rate Rider for Recovery of Smart Meter Incremental Revenue Requirement - effective until the date of the next cost of service-based rate order
I157: Rate Rider for Recovery of Smart Meter Incremental Revenue Requirement - effective until the effective date of the next cost of service-based rate order, or October 31, 2017, whichever occurs earlier
I158: Rate Rider for Recovery of Smart Meter Incremental Revenue Requirement - in effect until the effective date of the next cost of service-based rate order
I159: Rate Rider for Recovery of Smart Meter Incremental Revenue Requirement - Non-Interval Metered - in effect until the effective date of the next cost of service-based rate order
I160: Rate Rider for Recovery of Smart Meter Incremental Revenue Requirements - in effect until the effective date of the next cost of service application
I161: Rate Rider for Recovery of Smart Meter Stranded Assets - effective until April 30, 2016
I162: Rate Rider for Recovery of Storm Damage Costs - effective until August 31, 2017
I163: Rate Rider for Recovery of Stranded Assets - effective until April 30, 2016
I164: Rate Rider for Recovery of Stranded Meter Assets - effective July 1, 2012 - April 30, 2016
I165: Rate Rider for Recovery of Stranded Meter Assets – effective until April 30, 2015
I166: Rate Rider for Recovery of Stranded Meter Assets - effective until April 30, 2016
I167: Rate Rider for Recovery of Stranded Meter Assets - effective until April 30, 2017
I168: Rate Rider for Recovery of Stranded Meter Assets - effective until August 31, 2015
I169: Rate Rider for Recovery of Stranded Meter Assets - effective until August 31, 2017
I170: Rate Rider for Recovery of Stranded Meter Assets - effective until December 31, 2014
I171: Rate Rider for Recovery of Stranded Meter Assets - effective until December 31, 2015
I172: Rate Rider for Recovery of Stranded Meter Assets - effective until June 30, 2016
I173: Rate Rider for Recovery of Stranded Meter Assets - effective until March 31, 2016
I174: Rate Rider for Recovery of Stranded Meter Assets - effective until May 31, 2014
I175: Rate Rider for Reversal of Deferral/Variance Account Disposition (2011) - effective until April 30, 2015
I176: Rate Rider for Smart Meter Disposition - effective until April 30, 2016
I177: Rate Rider for Smart Meter Incremental Revenue Requirement - in effect until the effective date of the next cost of service-based rate order
I178: Rate Rider for Smart Metering Entity Charge - effective until October 31, 2018
I179: Rate Rider for Stranded Meter Cost Recovery - effective until April 30, 2017
I180: Rate Rider for Tax Change
I181: Rate Rider for Tax Change - effective until April 30, 2015
I182: Rate Rider for Tax Change (2014) - effective until April 30, 2015
I183: Retail Transmission Rate - Line and Transformation Connection Service Rate
I184: Retail Transmission Rate - Line and Transformation Connection Service Rate - (less than 1,000 kW)
I185: Retail Transmission Rate - Line and Transformation Connection Service Rate - Interval Metered
I186: Retail Transmission Rate - Line and Transformation Connection Service Rate - Interval Metered (1,000 to 4,999 kW)
I187: Retail Transmission Rate - Line and Transformation Connection Service Rate - Interval Metered (less than 1,000 kW)
I188: Retail Transmission Rate - Line and Transformation Connection Service Rate - Interval Metered < 1,000 kW
I189: Retail Transmission Rate - Line and Transformation Connection Service Rate FOR ALL SERVICE AREAS EXCEPT HENSALL
I190: Retail Transmission Rate - Line and Transformation Connection Service Rate - Interval Metered > 1,000 kW
I191: Retail Transmission Rate - Line Connection Service Rate
I192: Retail Transmission Rate - Network Service Rate
I193: Retail Transmission Rate - Network Service Rate - (less than 1,000 kW)
I194: Retail Transmission Rate - Network Service Rate - Interval Metered
I195: Retail Transmission Rate - Network Service Rate - Interval Metered (1,000 to 4,999 kW)
I196: Retail Transmission Rate - Network Service Rate - Interval Metered (less than 1,000 kW)
I197: Retail Transmission Rate - Network Service Rate - Interval Metered > 1,000 kW
I198: Retail Transmission Rate - Transformation Connection Service Rate
I199: Rider for Global Adjustment Sub-Account Disposition (2012) - effective until April 30, 2016 Applicable only for Non-RPP Customers
I200: Rural or Remote Electricity Rate Protection Charge (RRRP)
... 14 more rows

Sheet Sheet1 (hidden)
